{"text_format":"1","workbook":"xlsx","n_sheets":2,"sheets":["Delivery Services","Data - DO NOT DELETE"],"not_rendered":{"charts":0,"images":0,"macros":1,"external_links":1,"defined_names":8,"comments":0,"pivot_tables":0},"unopened":[],"bounds":{"document_bytes":16777216,"sheet_cells":100000,"rows_first":2000,"rows_last":500,"rows_between":2000,"halvings":0,"cell_chars":16384,"cell_head_chars":4096},"cells_cut":0,"cells_raw":0,"read":"whole","date_system":"1900"}

{"sheet":"Delivery Services","index":0,"n_rows":780,"n_cols":8,"rows_kept":780,"cut":false,"hidden":false,"merged":[[0,1,1,7],[2,5,7,5],[2,6,7,7],[8,5,22,7]]}
[null,"Delivery Services"]
[]
[]
[]
[]
[]
[]
[]
[]
[]
[]
[]
[]
[]
[]
[]
[]
[]
[]
[]
[]
[]
[]
[null,"Major Speciality Areas","Additional Areas & Skills","Legal Name","CSA #","Location","Contact Information","Confidential Pricing Document"]
[null,"Occupational Health and Safety","OnSide Workplace | Bullying and Harassment Prevention Training","ARETE Safety and Protection Inc.","CS-000821","Vancouver, BC","Hugh Pelmore, 604 732-1799\naretesafety@arete.ca",{"$f":"IFERROR(HYPERLINK(_xlfn.XLOOKUP(DeliveryServicesTable[[#This Row],[CSA '#]],CSA,Pricing_Hyperlink),\"Click Here\"),\"\")","v":"Click Here"}]
[null,"Occupational Health and Safety","Service to Safety – Workplace Violence Prevention – Practical Skills (OHS: Workplace Violence Prevention – Practical Skills)","ARETE Safety and Protection Inc.","CS-000821","Vancouver, BC","Hugh Pelmore, 604 732-1799\naretesafety@arete.ca",{"$f":"IFERROR(HYPERLINK(_xlfn.XLOOKUP(DeliveryServicesTable[[#This Row],[CSA '#]],CSA,Pricing_Hyperlink),\"Click Here\"),\"\")","v":"Click Here"}]
[null,null,"Coaching","Good Insights Strategy Inc.","CS-000822","Victoria, BC","Susan Kleinschmidt\n250 580-2606\nsusan@goodinsights.net",{"$f":"IFERROR(HYPERLINK(_xlfn.XLOOKUP(DeliveryServicesTable[[#This Row],[CSA '#]],CSA,Pricing_Hyperlink),\"Click Here\"),\"\")","v":"Click Here"}]
[null,null,"Facilitation","Good Insights Strategy Inc.","CS-000822","Victoria, BC","Susan Kleinschmidt\n250 580-2606\nsusan@goodinsights.net",{"$f":"IFERROR(HYPERLINK(_xlfn.XLOOKUP(DeliveryServicesTable[[#This Row],[CSA '#]],CSA,Pricing_Hyperlink),\"Click Here\"),\"\")","v":"Click Here"}]
[null,null,"Innovative learning","Good Insights Strategy Inc.","CS-000822","Victoria, BC","Susan Kleinschmidt\n250 580-2606\nsusan@goodinsights.net",{"$f":"IFERROR(HYPERLINK(_xlfn.XLOOKUP(DeliveryServicesTable[[#This Row],[CSA '#]],CSA,Pricing_Hyperlink),\"Click Here\"),\"\")","v":"Click Here"}]
[null,null,"Mentoring","Good Insights Strategy Inc.","CS-000822","Victoria, BC","Susan Kleinschmidt\n250 580-2606\nsusan@goodinsights.net",{"$f":"IFERROR(HYPERLINK(_xlfn.XLOOKUP(DeliveryServicesTable[[#This Row],[CSA '#]],CSA,Pricing_Hyperlink),\"Click Here\"),\"\")","v":"Click Here"}]
[null,null,"Organizational Behaviour","Good Insights Strategy Inc.","CS-000822","Victoria, BC","Susan Kleinschmidt\n250 580-2606\nsusan@goodinsights.net",{"$f":"IFERROR(HYPERLINK(_xlfn.XLOOKUP(DeliveryServicesTable[[#This Row],[CSA '#]],CSA,Pricing_Hyperlink),\"Click Here\"),\"\")","v":"Click Here"}]
[null,"Face to Face",null,"Good Insights Strategy Inc.","CS-000822","Victoria, BC","Susan Kleinschmidt\n250 580-2606\nsusan@goodinsights.net",{"$f":"IFERROR(HYPERLINK(_xlfn.XLOOKUP(DeliveryServicesTable[[#This Row],[CSA '#]],CSA,Pricing_Hyperlink),\"Click Here\"),\"\")","v":"Click Here"}]
[null,"Virtual",null,"Good Insights Strategy Inc.","CS-000822","Victoria, BC","Susan Kleinschmidt\n250 580-2606\nsusan@goodinsights.net",{"$f":"IFERROR(HYPERLINK(_xlfn.XLOOKUP(DeliveryServicesTable[[#This Row],[CSA '#]],CSA,Pricing_Hyperlink),\"Click Here\"),\"\")","v":"Click Here"}]
[null,"Blended Learning","Virtual instruciton or workshop","Spark + Co, People Performance Ltd.","CS-000825","Salt Spring Island, BC","Holly MacDonald\n250 537-9461\nholly@sparkandco.ca",{"$f":"IFERROR(HYPERLINK(_xlfn.XLOOKUP(DeliveryServicesTable[[#This Row],[CSA '#]],CSA,Pricing_Hyperlink),\"Click Here\"),\"\")","v":"Click Here"}]
[null,"Virtual","Train-the-Trainer","Spark + Co, People Performance Ltd.","CS-000825","Salt Spring Island, BC","Holly MacDonald\n250 537-9461\nholly@sparkandco.ca",{"$f":"IFERROR(HYPERLINK(_xlfn.XLOOKUP(DeliveryServicesTable[[#This Row],[CSA '#]],CSA,Pricing_Hyperlink),\"Click Here\"),\"\")","v":"Click Here"}]
[null,null,"Project Management","R.F. Binnie & Associates Ltd., and ThinkSpace Performance (Joint Venture)","CS-000826","Burnaby, BC","Andrew Swift\nT: 778 945-6077\naswift@binnie.com",{"$f":"IFERROR(HYPERLINK(_xlfn.XLOOKUP(DeliveryServicesTable[[#This Row],[CSA '#]],CSA,Pricing_Hyperlink),\"Click Here\"),\"\")","v":"Click Here"}]
[null,null,"Supervisory Skills","R.F. Binnie & Associates Ltd., and ThinkSpace Performance (Joint Venture)","CS-000826","Burnaby, BC","Andrew Swift\nT: 778 945-6077\naswift@binnie.com",{"$f":"IFERROR(HYPERLINK(_xlfn.XLOOKUP(DeliveryServicesTable[[#This Row],[CSA '#]],CSA,Pricing_Hyperlink),\"Click Here\"),\"\")","v":"Click Here"}]
[null,null,"Organizational Governance","R.F. Binnie & Associates Ltd., and ThinkSpace Performance (Joint Venture)","CS-000826","Burnaby, BC","Andrew Swift\nT: 778 945-6077\naswift@binnie.com",{"$f":"IFERROR(HYPERLINK(_xlfn.XLOOKUP(DeliveryServicesTable[[#This Row],[CSA '#]],CSA,Pricing_Hyperlink),\"Click Here\"),\"\")","v":"Click Here"}]
[null,null,"Performance\nMeasurement and Accountability","R.F. Binnie & Associates Ltd., and ThinkSpace Performance (Joint Venture)","CS-000826","Burnaby, BC","Andrew Swift\nT: 778 945-6077\naswift@binnie.com",{"$f":"IFERROR(HYPERLINK(_xlfn.XLOOKUP(DeliveryServicesTable[[#This Row],[CSA '#]],CSA,Pricing_Hyperlink),\"Click Here\"),\"\")","v":"Click Here"}]
[null,null,"Process Analysis","R.F. Binnie & Associates Ltd., and ThinkSpace Performance (Joint Venture)","CS-000826","Burnaby, BC","Andrew Swift\nT: 778 945-6077\naswift@binnie.com",{"$f":"IFERROR(HYPERLINK(_xlfn.XLOOKUP(DeliveryServicesTable[[#This Row],[CSA '#]],CSA,Pricing_Hyperlink),\"Click Here\"),\"\")","v":"Click Here"}]
[null,null,"Change Management","R.F. Binnie & Associates Ltd., and ThinkSpace Performance (Joint Venture)","CS-000826","Burnaby, BC","Andrew Swift\nT: 778 945-6077\naswift@binnie.com",{"$f":"IFERROR(HYPERLINK(_xlfn.XLOOKUP(DeliveryServicesTable[[#This Row],[CSA '#]],CSA,Pricing_Hyperlink),\"Click Here\"),\"\")","v":"Click Here"}]
[null,null,"Interviewing and\nRecruiting","R.F. Binnie & Associates Ltd., and ThinkSpace Performance (Joint Venture)","CS-000826","Burnaby, BC","Andrew Swift\nT: 778 945-6077\naswift@binnie.com",{"$f":"IFERROR(HYPERLINK(_xlfn.XLOOKUP(DeliveryServicesTable[[#This Row],[CSA '#]],CSA,Pricing_Hyperlink),\"Click Here\"),\"\")","v":"Click Here"}]
[null,null,"Business\n Performance Improvement","R.F. Binnie & Associates Ltd., and ThinkSpace Performance (Joint Venture)","CS-000826","Burnaby, BC","Andrew Swift\nT: 778 945-6077\naswift@binnie.com",{"$f":"IFERROR(HYPERLINK(_xlfn.XLOOKUP(DeliveryServicesTable[[#This Row],[CSA '#]],CSA,Pricing_Hyperlink),\"Click Here\"),\"\")","v":"Click Here"}]
[null,null,"Coaching","R.F. Binnie & Associates Ltd., and ThinkSpace Performance (Joint Venture)","CS-000826","Burnaby, BC","Andrew Swift\nT: 778 945-6077\naswift@binnie.com",{"$f":"IFERROR(HYPERLINK(_xlfn.XLOOKUP(DeliveryServicesTable[[#This Row],[CSA '#]],CSA,Pricing_Hyperlink),\"Click Here\"),\"\")","v":"Click Here"}]
[null,null,"Strategic Planning","R.F. Binnie & Associates Ltd., and ThinkSpace Performance (Joint Venture)","CS-000826","Burnaby, BC","Andrew Swift\nT: 778 945-6077\naswift@binnie.com",{"$f":"IFERROR(HYPERLINK(_xlfn.XLOOKUP(DeliveryServicesTable[[#This Row],[CSA '#]],CSA,Pricing_Hyperlink),\"Click Here\"),\"\")","v":"Click Here"}]
[null,null,"Business Analysis","R.F. Binnie & Associates Ltd., and ThinkSpace Performance (Joint Venture)","CS-000826","Burnaby, BC","Andrew Swift\nT: 778 945-6077\naswift@binnie.com",{"$f":"IFERROR(HYPERLINK(_xlfn.XLOOKUP(DeliveryServicesTable[[#This Row],[CSA '#]],CSA,Pricing_Hyperlink),\"Click Here\"),\"\")","v":"Click Here"}]
[null,null,"Business Diagnostics","R.F. Binnie & Associates Ltd., and ThinkSpace Performance (Joint Venture)","CS-000826","Burnaby, BC","Andrew Swift\nT: 778 945-6077\naswift@binnie.com",{"$f":"IFERROR(HYPERLINK(_xlfn.XLOOKUP(DeliveryServicesTable[[#This Row],[CSA '#]],CSA,Pricing_Hyperlink),\"Click Here\"),\"\")","v":"Click Here"}]
[null,null,"Personal Branding","R.F. Binnie & Associates Ltd., and ThinkSpace Performance (Joint Venture)","CS-000826","Burnaby, BC","Andrew Swift\nT: 778 945-6077\naswift@binnie.com",{"$f":"IFERROR(HYPERLINK(_xlfn.XLOOKUP(DeliveryServicesTable[[#This Row],[CSA '#]],CSA,Pricing_Hyperlink),\"Click Here\"),\"\")","v":"Click Here"}]
[null,null,"Leadership","R.F. Binnie & Associates Ltd., and ThinkSpace Performance (Joint Venture)","CS-000826","Burnaby, BC","Andrew Swift\nT: 778 945-6077\naswift@binnie.com",{"$f":"IFERROR(HYPERLINK(_xlfn.XLOOKUP(DeliveryServicesTable[[#This Row],[CSA '#]],CSA,Pricing_Hyperlink),\"Click Here\"),\"\")","v":"Click Here"}]
[null,null,"Proposal Writing","R.F. Binnie & Associates Ltd., and ThinkSpace Performance (Joint Venture)","CS-000826","Burnaby, BC","Andrew Swift\nT: 778 945-6077\naswift@binnie.com",{"$f":"IFERROR(HYPERLINK(_xlfn.XLOOKUP(DeliveryServicesTable[[#This Row],[CSA '#]],CSA,Pricing_Hyperlink),\"Click Here\"),\"\")","v":"Click Here"}]
[null,null,"Facilitation","R.F. Binnie & Associates Ltd., and ThinkSpace Performance (Joint Venture)","CS-000826","Burnaby, BC","Andrew Swift\nT: 778 945-6077\naswift@binnie.com",{"$f":"IFERROR(HYPERLINK(_xlfn.XLOOKUP(DeliveryServicesTable[[#This Row],[CSA '#]],CSA,Pricing_Hyperlink),\"Click Here\"),\"\")","v":"Click Here"}]
[null,"Face to Face",null,"Linda Dobson dba Linda Dobson and Associates","CS-000827","Salt Spring Island, BC","Linda Dobson\n778 231-8812\nLindadobson1@gmail.com",{"$f":"IFERROR(HYPERLINK(_xlfn.XLOOKUP(DeliveryServicesTable[[#This Row],[CSA '#]],CSA,Pricing_Hyperlink),\"Click Here\"),\"\")","v":"Click Here"}]
[null,null,"Conflict and Leadership","Linda Dobson dba Linda Dobson and Associates","CS-000827","Salt Spring Island, BC","Linda Dobson\n778 231-8812\nLindadobson1@gmail.com",{"$f":"IFERROR(HYPERLINK(_xlfn.XLOOKUP(DeliveryServicesTable[[#This Row],[CSA '#]],CSA,Pricing_Hyperlink),\"Click Here\"),\"\")","v":"Click Here"}]
[null,null,"Conflict Management","Linda Dobson dba Linda Dobson and Associates","CS-000827","Salt Spring Island, BC","Linda Dobson\n778 231-8812\nLindadobson1@gmail.com",{"$f":"IFERROR(HYPERLINK(_xlfn.XLOOKUP(DeliveryServicesTable[[#This Row],[CSA '#]],CSA,Pricing_Hyperlink),\"Click Here\"),\"\")","v":"Click Here"}]
[null,"In-person, virtual\nand blended\nfacilitation","Change Management Support","Berlin, Eaton & Associates Ltd. Dba Berlineaton","CS-000831","Victoria, BC","Shelly Berlin \n250-472-3767",{"$f":"IFERROR(HYPERLINK(_xlfn.XLOOKUP(DeliveryServicesTable[[#This Row],[CSA '#]],CSA,Pricing_Hyperlink),\"Click Here\"),\"\")","v":"Click Here"}]
[null,null,"Strategy Development and\nImplementation","Berlin, Eaton & Associates Ltd. Dba Berlineaton","CS-000831","Victoria, BC","Shelly Berlin \n250-472-3767",{"$f":"IFERROR(HYPERLINK(_xlfn.XLOOKUP(DeliveryServicesTable[[#This Row],[CSA '#]],CSA,Pricing_Hyperlink),\"Click Here\"),\"\")","v":"Click Here"}]
[null,null,"Continuous Improvement and\nProcess Redesign","Berlin, Eaton & Associates Ltd. Dba Berlineaton","CS-000831","Victoria, BC","Shelly Berlin \n250-472-3767",{"$f":"IFERROR(HYPERLINK(_xlfn.XLOOKUP(DeliveryServicesTable[[#This Row],[CSA '#]],CSA,Pricing_Hyperlink),\"Click Here\"),\"\")","v":"Click Here"}]
[null,null,"Small and Large Group Facilitation","Berlin, Eaton & Associates Ltd. Dba Berlineaton","CS-000831","Victoria, BC","Shelly Berlin \n250-472-3767",{"$f":"IFERROR(HYPERLINK(_xlfn.XLOOKUP(DeliveryServicesTable[[#This Row],[CSA '#]],CSA,Pricing_Hyperlink),\"Click Here\"),\"\")","v":"Click Here"}]
[null,null,"Change Management Support","Berlin, Eaton & Associates Ltd. Dba Berlineaton","CS-000831","Victoria, BC","Shelly Berlin \n250-472-3767",{"$f":"IFERROR(HYPERLINK(_xlfn.XLOOKUP(DeliveryServicesTable[[#This Row],[CSA '#]],CSA,Pricing_Hyperlink),\"Click Here\"),\"\")","v":"Click Here"}]
[null,null,"Organizational Diagnostics and\nAnalysis","Berlin, Eaton & Associates Ltd. Dba Berlineaton","CS-000831","Victoria, BC","Shelly Berlin \n250-472-3767",{"$f":"IFERROR(HYPERLINK(_xlfn.XLOOKUP(DeliveryServicesTable[[#This Row],[CSA '#]],CSA,Pricing_Hyperlink),\"Click Here\"),\"\")","v":"Click Here"}]
[null,null,"Team and Leadership\nDevelopment","Berlin, Eaton & Associates Ltd. Dba Berlineaton","CS-000831","Victoria, BC","Shelly Berlin \n250-472-3767",{"$f":"IFERROR(HYPERLINK(_xlfn.XLOOKUP(DeliveryServicesTable[[#This Row],[CSA '#]],CSA,Pricing_Hyperlink),\"Click Here\"),\"\")","v":"Click Here"}]
[null,null,"Project Management Competency\nDevelopment and 360 Degree\nEvaluations.","Berlin, Eaton & Associates Ltd. Dba Berlineaton","CS-000831","Victoria, BC","Shelly Berlin \n250-472-3767",{"$f":"IFERROR(HYPERLINK(_xlfn.XLOOKUP(DeliveryServicesTable[[#This Row],[CSA '#]],CSA,Pricing_Hyperlink),\"Click Here\"),\"\")","v":"Click Here"}]
[null,null,"Performance Measurement and\nEvaluation","Berlin, Eaton & Associates Ltd. Dba Berlineaton","CS-000831","Victoria, BC","Shelly Berlin \n250-472-3767",{"$f":"IFERROR(HYPERLINK(_xlfn.XLOOKUP(DeliveryServicesTable[[#This Row],[CSA '#]],CSA,Pricing_Hyperlink),\"Click Here\"),\"\")","v":"Click Here"}]
[null,null,"Performance Auditing","Berlin, Eaton & Associates Ltd. Dba Berlineaton","CS-000831","Victoria, BC","Shelly Berlin \n250-472-3767",{"$f":"IFERROR(HYPERLINK(_xlfn.XLOOKUP(DeliveryServicesTable[[#This Row],[CSA '#]],CSA,Pricing_Hyperlink),\"Click Here\"),\"\")","v":"Click Here"}]
[null,"In-person, virtual\nand blended\nfacilitation","Session Support","Berlin, Eaton & Associates Ltd. Dba Berlineaton","CS-000831","Victoria, BC","Shelly Berlin \n250-472-3767",{"$f":"IFERROR(HYPERLINK(_xlfn.XLOOKUP(DeliveryServicesTable[[#This Row],[CSA '#]],CSA,Pricing_Hyperlink),\"Click Here\"),\"\")","v":"Click Here"}]
[null,null,"Strategy Development and\nImplementation","Berlin, Eaton & Associates Ltd. Dba Berlineaton","CS-000831","Victoria, BC","Shelly Berlin \n250-472-3767",{"$f":"IFERROR(HYPERLINK(_xlfn.XLOOKUP(DeliveryServicesTable[[#This Row],[CSA '#]],CSA,Pricing_Hyperlink),\"Click Here\"),\"\")","v":"Click Here"}]
[null,null,"Continuous Improvement and\nProcess Redesign","Berlin, Eaton & Associates Ltd. Dba Berlineaton","CS-000831","Victoria, BC","Shelly Berlin \n250-472-3767",{"$f":"IFERROR(HYPERLINK(_xlfn.XLOOKUP(DeliveryServicesTable[[#This Row],[CSA '#]],CSA,Pricing_Hyperlink),\"Click Here\"),\"\")","v":"Click Here"}]
[null,null,"Small and Large Group Facilitation","Berlin, Eaton & Associates Ltd. Dba Berlineaton","CS-000831","Victoria, BC","Shelly Berlin \n250-472-3767",{"$f":"IFERROR(HYPERLINK(_xlfn.XLOOKUP(DeliveryServicesTable[[#This Row],[CSA '#]],CSA,Pricing_Hyperlink),\"Click Here\"),\"\")","v":"Click Here"}]
[null,null,"Change Management Support","Berlin, Eaton & Associates Ltd. Dba Berlineaton","CS-000831","Victoria, BC","Shelly Berlin \n250-472-3767",{"$f":"IFERROR(HYPERLINK(_xlfn.XLOOKUP(DeliveryServicesTable[[#This Row],[CSA '#]],CSA,Pricing_Hyperlink),\"Click Here\"),\"\")","v":"Click Here"}]
[null,null,"Organizational Diagnostics and\nAnalysis","Berlin, Eaton & Associates Ltd. Dba Berlineaton","CS-000831","Victoria, BC","Shelly Berlin \n250-472-3767",{"$f":"IFERROR(HYPERLINK(_xlfn.XLOOKUP(DeliveryServicesTable[[#This Row],[CSA '#]],CSA,Pricing_Hyperlink),\"Click Here\"),\"\")","v":"Click Here"}]
[null,"In-person, virtual\nand blended\nfacilitation","Project Management","Berlin, Eaton & Associates Ltd. Dba Berlineaton","CS-000831","Victoria, BC","Shelly Berlin \n250-472-3767",{"$f":"IFERROR(HYPERLINK(_xlfn.XLOOKUP(DeliveryServicesTable[[#This Row],[CSA '#]],CSA,Pricing_Hyperlink),\"Click Here\"),\"\")","v":"Click Here"}]
[null,"Virtual","Mindfulness-Based Stress Reduction: Everyday  Tools, Practices, and Skills for Well-Being and Staying Grounded in Stressful Times","Patricia Kathryn Galaczy","CS-000843","Victoria, BC","Patricia Galaczy\n778 678-2326\npatricia@theartofdialogue.com",{"$f":"IFERROR(HYPERLINK(_xlfn.XLOOKUP(DeliveryServicesTable[[#This Row],[CSA '#]],CSA,Pricing_Hyperlink),\"Click Here\"),\"\")","v":"Click Here"}]
[null,"Face to Face","Mindful Communication and Listening ","Patricia Kathryn Galaczy","CS-000843","Victoria, BC","Patricia Galaczy\n778 678-2326\npatricia@theartofdialogue.com",{"$f":"IFERROR(HYPERLINK(_xlfn.XLOOKUP(DeliveryServicesTable[[#This Row],[CSA '#]],CSA,Pricing_Hyperlink),\"Click Here\"),\"\")","v":"Click Here"}]
[null,"Virtual","Mindful Communication and Listening ","Patricia Kathryn Galaczy","CS-000843","Victoria, BC","Patricia Galaczy\n778 678-2326\npatricia@theartofdialogue.com",{"$f":"IFERROR(HYPERLINK(_xlfn.XLOOKUP(DeliveryServicesTable[[#This Row],[CSA '#]],CSA,Pricing_Hyperlink),\"Click Here\"),\"\")","v":"Click Here"}]
[null,"Face to Face","Mindfulness in the Workplace ","Patricia Kathryn Galaczy","CS-000843","Victoria, BC","Patricia Galaczy\n778 678-2326\npatricia@theartofdialogue.com",{"$f":"IFERROR(HYPERLINK(_xlfn.XLOOKUP(DeliveryServicesTable[[#This Row],[CSA '#]],CSA,Pricing_Hyperlink),\"Click Here\"),\"\")","v":"Click Here"}]
[null,"Virtual","Mindfulness in the Workplace ","Patricia Kathryn Galaczy","CS-000843","Victoria, BC","Patricia Galaczy\n778 678-2326\npatricia@theartofdialogue.com",{"$f":"IFERROR(HYPERLINK(_xlfn.XLOOKUP(DeliveryServicesTable[[#This Row],[CSA '#]],CSA,Pricing_Hyperlink),\"Click Here\"),\"\")","v":"Click Here"}]
[null,"Face to Face","Emotional Literacy and Coping with Change ","Patricia Kathryn Galaczy","CS-000843","Victoria, BC","Patricia Galaczy\n778 678-2326\npatricia@theartofdialogue.com",{"$f":"IFERROR(HYPERLINK(_xlfn.XLOOKUP(DeliveryServicesTable[[#This Row],[CSA '#]],CSA,Pricing_Hyperlink),\"Click Here\"),\"\")","v":"Click Here"}]
[null,"Face to Face","Emotional Literacy and Coping with Change ","Patricia Kathryn Galaczy","CS-000843","Victoria, BC","Patricia Galaczy\n778 678-2326\npatricia@theartofdialogue.com",{"$f":"IFERROR(HYPERLINK(_xlfn.XLOOKUP(DeliveryServicesTable[[#This Row],[CSA '#]],CSA,Pricing_Hyperlink),\"Click Here\"),\"\")","v":"Click Here"}]
[null,"Virtual","Procurement","Three E Training Inc.","CS-000848","Edmonton, AB","Kara Thompson\n780 758-8040\nkarathompson@3etraining.ca",{"$f":"IFERROR(HYPERLINK(_xlfn.XLOOKUP(DeliveryServicesTable[[#This Row],[CSA '#]],CSA,Pricing_Hyperlink),\"Click Here\"),\"\")","v":"Click Here"}]
[null,"Virtual","Contract Management","Three E Training Inc.","CS-000848","Edmonton, AB","Kara Thompson\n780 758-8040\nkarathompson@3etraining.ca",{"$f":"IFERROR(HYPERLINK(_xlfn.XLOOKUP(DeliveryServicesTable[[#This Row],[CSA '#]],CSA,Pricing_Hyperlink),\"Click Here\"),\"\")","v":"Click Here"}]
[null,"Virtual","Leadership","Three E Training Inc.","CS-000848","Edmonton, AB","Kara Thompson\n780 758-8040\nkarathompson@3etraining.ca",{"$f":"IFERROR(HYPERLINK(_xlfn.XLOOKUP(DeliveryServicesTable[[#This Row],[CSA '#]],CSA,Pricing_Hyperlink),\"Click Here\"),\"\")","v":"Click Here"}]
[null,"Virtual","Diversity","Three E Training Inc.","CS-000848","Edmonton, AB","Kara Thompson\n780 758-8040\nkarathompson@3etraining.ca",{"$f":"IFERROR(HYPERLINK(_xlfn.XLOOKUP(DeliveryServicesTable[[#This Row],[CSA '#]],CSA,Pricing_Hyperlink),\"Click Here\"),\"\")","v":"Click Here"}]
[null,"Virtual","Project Management","Three E Training Inc.","CS-000848","Edmonton, AB","Kara Thompson\n780 758-8040\nkarathompson@3etraining.ca",{"$f":"IFERROR(HYPERLINK(_xlfn.XLOOKUP(DeliveryServicesTable[[#This Row],[CSA '#]],CSA,Pricing_Hyperlink),\"Click Here\"),\"\")","v":"Click Here"}]
[null,"Virtual","Leadership Excellence","Three E Training Inc.","CS-000848","Edmonton, AB","Kara Thompson\n780 758-8040\nkarathompson@3etraining.ca",{"$f":"IFERROR(HYPERLINK(_xlfn.XLOOKUP(DeliveryServicesTable[[#This Row],[CSA '#]],CSA,Pricing_Hyperlink),\"Click Here\"),\"\")","v":"Click Here"}]
[null,"Virtual","Change Management","Three E Training Inc.","CS-000848","Edmonton, AB","Kara Thompson\n780 758-8040\nkarathompson@3etraining.ca",{"$f":"IFERROR(HYPERLINK(_xlfn.XLOOKUP(DeliveryServicesTable[[#This Row],[CSA '#]],CSA,Pricing_Hyperlink),\"Click Here\"),\"\")","v":"Click Here"}]
[null,"Virtual","Conflict Management","Three E Training Inc.","CS-000848","Edmonton, AB","Kara Thompson\n780 758-8040\nkarathompson@3etraining.ca",{"$f":"IFERROR(HYPERLINK(_xlfn.XLOOKUP(DeliveryServicesTable[[#This Row],[CSA '#]],CSA,Pricing_Hyperlink),\"Click Here\"),\"\")","v":"Click Here"}]
[null,"Virtual","Development   ","Three E Training Inc.","CS-000848","Edmonton, AB","Kara Thompson\n780 758-8040\nkarathompson@3etraining.ca",{"$f":"IFERROR(HYPERLINK(_xlfn.XLOOKUP(DeliveryServicesTable[[#This Row],[CSA '#]],CSA,Pricing_Hyperlink),\"Click Here\"),\"\")","v":"Click Here"}]
[null,"Virtual","Coaching","Three E Training Inc.","CS-000848","Edmonton, AB","Kara Thompson\n780 758-8040\nkarathompson@3etraining.ca",{"$f":"IFERROR(HYPERLINK(_xlfn.XLOOKUP(DeliveryServicesTable[[#This Row],[CSA '#]],CSA,Pricing_Hyperlink),\"Click Here\"),\"\")","v":"Click Here"}]
[null,"Virtual","Communications","Three E Training Inc.","CS-000848","Edmonton, AB","Kara Thompson\n780 758-8040\nkarathompson@3etraining.ca",{"$f":"IFERROR(HYPERLINK(_xlfn.XLOOKUP(DeliveryServicesTable[[#This Row],[CSA '#]],CSA,Pricing_Hyperlink),\"Click Here\"),\"\")","v":"Click Here"}]
[null,"Virtual","Financial","Three E Training Inc.","CS-000848","Edmonton, AB","Kara Thompson\n780 758-8040\nkarathompson@3etraining.ca",{"$f":"IFERROR(HYPERLINK(_xlfn.XLOOKUP(DeliveryServicesTable[[#This Row],[CSA '#]],CSA,Pricing_Hyperlink),\"Click Here\"),\"\")","v":"Click Here"}]
[null,"Virtual","Project Management","Three E Training Inc.","CS-000848","Edmonton, AB","Kara Thompson\n780 758-8040\nkarathompson@3etraining.ca",{"$f":"IFERROR(HYPERLINK(_xlfn.XLOOKUP(DeliveryServicesTable[[#This Row],[CSA '#]],CSA,Pricing_Hyperlink),\"Click Here\"),\"\")","v":"Click Here"}]
[null,"Blended Learning","Experiential/action learning with face-to-face, synchronous and a-synchronous delivery options","TaylorMade Learning Solutions Inc.","CS-000852","Nanaimo, BC","Sharon deLure\n250 729-5960\nsdelure@shaw.ca",{"$f":"IFERROR(HYPERLINK(_xlfn.XLOOKUP(DeliveryServicesTable[[#This Row],[CSA '#]],CSA,Pricing_Hyperlink),\"Click Here\"),\"\")","v":"Click Here"}]
[null,"Face to Face","Experiential/action learning","TaylorMade Learning Solutions Inc.","CS-000852","Nanaimo, BC","Sharon deLure\n250 729-5960\nsdelure@shaw.ca",{"$f":"IFERROR(HYPERLINK(_xlfn.XLOOKUP(DeliveryServicesTable[[#This Row],[CSA '#]],CSA,Pricing_Hyperlink),\"Click Here\"),\"\")","v":"Click Here"}]
[null,"Virtual","Synchronous and a-scynchronous, experiential/action learning","TaylorMade Learning Solutions Inc.","CS-000852","Nanaimo, BC","Sharon deLure\n250 729-5960\nsdelure@shaw.ca",{"$f":"IFERROR(HYPERLINK(_xlfn.XLOOKUP(DeliveryServicesTable[[#This Row],[CSA '#]],CSA,Pricing_Hyperlink),\"Click Here\"),\"\")","v":"Click Here"}]
[null,"Other","Experiential/action learning, work place culture, project management","TaylorMade Learning Solutions Inc.","CS-000852","Nanaimo, BC","Sharon deLure\n250 729-5960\nsdelure@shaw.ca",{"$f":"IFERROR(HYPERLINK(_xlfn.XLOOKUP(DeliveryServicesTable[[#This Row],[CSA '#]],CSA,Pricing_Hyperlink),\"Click Here\"),\"\")","v":"Click Here"}]
[null,"Blended Learning","Adult learning principles; Communications (verbal, non-verbal, written)","PrinceHeron Enterprises Ltd. Dba PrinceHeron Communications","CS-000854","Victoria, BC","Fiona Prince, 250 418-5982\nfiona@princeheron.com\nRon Heron, 250 418-5221",{"$f":"IFERROR(HYPERLINK(_xlfn.XLOOKUP(DeliveryServicesTable[[#This Row],[CSA '#]],CSA,Pricing_Hyperlink),\"Click Here\"),\"\")","v":"Click Here"}]
[null,"Virtual","Adult learning principles; Communications (verbal, non-verbal, written)","PrinceHeron Enterprises Ltd. Dba PrinceHeron Communications","CS-000854","Victoria, BC","Fiona Prince, 250 418-5982\nfiona@princeheron.com\nRon Heron, 250 418-5221",{"$f":"IFERROR(HYPERLINK(_xlfn.XLOOKUP(DeliveryServicesTable[[#This Row],[CSA '#]],CSA,Pricing_Hyperlink),\"Click Here\"),\"\")","v":"Click Here"}]
[null,null,"Coaching ","Dr. Catherine Carr dba Carr Kline & Associates Inc.","CS-000855","Victoria, BC","Catherine Carr\n250 857-3610\nCatherine@catherinecarr.ca",{"$f":"IFERROR(HYPERLINK(_xlfn.XLOOKUP(DeliveryServicesTable[[#This Row],[CSA '#]],CSA,Pricing_Hyperlink),\"Click Here\"),\"\")","v":"Click Here"}]
[null,null,"Leadership","Dr. Catherine Carr dba Carr Kline & Associates Inc.","CS-000855","Victoria, BC","Catherine Carr\n250 857-3610\nCatherine@catherinecarr.ca",{"$f":"IFERROR(HYPERLINK(_xlfn.XLOOKUP(DeliveryServicesTable[[#This Row],[CSA '#]],CSA,Pricing_Hyperlink),\"Click Here\"),\"\")","v":"Click Here"}]
[null,null,"Teams","Dr. Catherine Carr dba Carr Kline & Associates Inc.","CS-000855","Victoria, BC","Catherine Carr\n250 857-3610\nCatherine@catherinecarr.ca",{"$f":"IFERROR(HYPERLINK(_xlfn.XLOOKUP(DeliveryServicesTable[[#This Row],[CSA '#]],CSA,Pricing_Hyperlink),\"Click Here\"),\"\")","v":"Click Here"}]
[null,null,"Resiliency","Dr. Catherine Carr dba Carr Kline & Associates Inc.","CS-000855","Victoria, BC","Catherine Carr\n250 857-3610\nCatherine@catherinecarr.ca",{"$f":"IFERROR(HYPERLINK(_xlfn.XLOOKUP(DeliveryServicesTable[[#This Row],[CSA '#]],CSA,Pricing_Hyperlink),\"Click Here\"),\"\")","v":"Click Here"}]
[null,null,"360s","Dr. Catherine Carr dba Carr Kline & Associates Inc.","CS-000855","Victoria, BC","Catherine Carr\n250 857-3610\nCatherine@catherinecarr.ca",{"$f":"IFERROR(HYPERLINK(_xlfn.XLOOKUP(DeliveryServicesTable[[#This Row],[CSA '#]],CSA,Pricing_Hyperlink),\"Click Here\"),\"\")","v":"Click Here"}]
[null,"Face to Face",null,"Dr. Catherine Carr dba Carr Kline & Associates Inc.","CS-000855","Victoria, BC","Catherine Carr\n250 857-3610\nCatherine@catherinecarr.ca",{"$f":"IFERROR(HYPERLINK(_xlfn.XLOOKUP(DeliveryServicesTable[[#This Row],[CSA '#]],CSA,Pricing_Hyperlink),\"Click Here\"),\"\")","v":"Click Here"}]
[null,"Virtual",null,"Dr. Catherine Carr dba Carr Kline & Associates Inc.","CS-000855","Victoria, BC","Catherine Carr\n250 857-3610\nCatherine@catherinecarr.ca",{"$f":"IFERROR(HYPERLINK(_xlfn.XLOOKUP(DeliveryServicesTable[[#This Row],[CSA '#]],CSA,Pricing_Hyperlink),\"Click Here\"),\"\")","v":"Click Here"}]
[null,"Face to Face",null,"Dr. Catherine Carr dba Carr Kline & Associates Inc.","CS-000855","Victoria, BC","Catherine Carr\n250 857-3610\nCatherine@catherinecarr.ca",{"$f":"IFERROR(HYPERLINK(_xlfn.XLOOKUP(DeliveryServicesTable[[#This Row],[CSA '#]],CSA,Pricing_Hyperlink),\"Click Here\"),\"\")","v":"Click Here"}]
[null,"Virtual",null,"Dr. Catherine Carr dba Carr Kline & Associates Inc.","CS-000855","Victoria, BC","Catherine Carr\n250 857-3610\nCatherine@catherinecarr.ca",{"$f":"IFERROR(HYPERLINK(_xlfn.XLOOKUP(DeliveryServicesTable[[#This Row],[CSA '#]],CSA,Pricing_Hyperlink),\"Click Here\"),\"\")","v":"Click Here"}]
[null,null,"Executive Coaching","Coaching and Leadership International Inc.","CS-000856","Brentwood Bay, BC","Betska K-Burr\n250 652-5390\nbetska@coachingandleadership.com ",{"$f":"IFERROR(HYPERLINK(_xlfn.XLOOKUP(DeliveryServicesTable[[#This Row],[CSA '#]],CSA,Pricing_Hyperlink),\"Click Here\"),\"\")","v":"Click Here"}]
[null,null,"Building a Respectful Workplace","Coaching and Leadership International Inc.","CS-000856","Brentwood Bay, BC","Betska K-Burr\n250 652-5390\nbetska@coachingandleadership.com ",{"$f":"IFERROR(HYPERLINK(_xlfn.XLOOKUP(DeliveryServicesTable[[#This Row],[CSA '#]],CSA,Pricing_Hyperlink),\"Click Here\"),\"\")","v":"Click Here"}]
[null,null,"Coaching","Coaching and Leadership International Inc.","CS-000856","Brentwood Bay, BC","Betska K-Burr\n250 652-5390\nbetska@coachingandleadership.com ",{"$f":"IFERROR(HYPERLINK(_xlfn.XLOOKUP(DeliveryServicesTable[[#This Row],[CSA '#]],CSA,Pricing_Hyperlink),\"Click Here\"),\"\")","v":"Click Here"}]
[null,null,"Conflict Resolution","Coaching and Leadership International Inc.","CS-000856","Brentwood Bay, BC","Betska K-Burr\n250 652-5390\nbetska@coachingandleadership.com ",{"$f":"IFERROR(HYPERLINK(_xlfn.XLOOKUP(DeliveryServicesTable[[#This Row],[CSA '#]],CSA,Pricing_Hyperlink),\"Click Here\"),\"\")","v":"Click Here"}]
[null,null,"Innovation and Creativity","Coaching and Leadership International Inc.","CS-000856","Brentwood Bay, BC","Betska K-Burr\n250 652-5390\nbetska@coachingandleadership.com ",{"$f":"IFERROR(HYPERLINK(_xlfn.XLOOKUP(DeliveryServicesTable[[#This Row],[CSA '#]],CSA,Pricing_Hyperlink),\"Click Here\"),\"\")","v":"Click Here"}]
[null,null,"Leadership in Action","Coaching and Leadership International Inc.","CS-000856","Brentwood Bay, BC","Betska K-Burr\n250 652-5390\nbetska@coachingandleadership.com ",{"$f":"IFERROR(HYPERLINK(_xlfn.XLOOKUP(DeliveryServicesTable[[#This Row],[CSA '#]],CSA,Pricing_Hyperlink),\"Click Here\"),\"\")","v":"Click Here"}]
[null,null,"Leading Others","Coaching and Leadership International Inc.","CS-000856","Brentwood Bay, BC","Betska K-Burr\n250 652-5390\nbetska@coachingandleadership.com ",{"$f":"IFERROR(HYPERLINK(_xlfn.XLOOKUP(DeliveryServicesTable[[#This Row],[CSA '#]],CSA,Pricing_Hyperlink),\"Click Here\"),\"\")","v":"Click Here"}]
[null,null,"Leading Self First","Coaching and Leadership International Inc.","CS-000856","Brentwood Bay, BC","Betska K-Burr\n250 652-5390\nbetska@coachingandleadership.com ",{"$f":"IFERROR(HYPERLINK(_xlfn.XLOOKUP(DeliveryServicesTable[[#This Row],[CSA '#]],CSA,Pricing_Hyperlink),\"Click Here\"),\"\")","v":"Click Here"}]
[null,null,"Preventing Complex Situations in the Workplace","Coaching and Leadership International Inc.","CS-000856","Brentwood Bay, BC","Betska K-Burr\n250 652-5390\nbetska@coachingandleadership.com ",{"$f":"IFERROR(HYPERLINK(_xlfn.XLOOKUP(DeliveryServicesTable[[#This Row],[CSA '#]],CSA,Pricing_Hyperlink),\"Click Here\"),\"\")","v":"Click Here"}]
[null,null,"Strategic Planning","Coaching and Leadership International Inc.","CS-000856","Brentwood Bay, BC","Betska K-Burr\n250 652-5390\nbetska@coachingandleadership.com ",{"$f":"IFERROR(HYPERLINK(_xlfn.XLOOKUP(DeliveryServicesTable[[#This Row],[CSA '#]],CSA,Pricing_Hyperlink),\"Click Here\"),\"\")","v":"Click Here"}]
[null,null,"Learn How to Self Coach","Coaching and Leadership International Inc.","CS-000856","Brentwood Bay, BC","Betska K-Burr\n250 652-5390\nbetska@coachingandleadership.com ",{"$f":"IFERROR(HYPERLINK(_xlfn.XLOOKUP(DeliveryServicesTable[[#This Row],[CSA '#]],CSA,Pricing_Hyperlink),\"Click Here\"),\"\")","v":"Click Here"}]
[null,null,"Using Profile Assessments to create a Harmonioius Workplace","Coaching and Leadership International Inc.","CS-000856","Brentwood Bay, BC","Betska K-Burr\n250 652-5390\nbetska@coachingandleadership.com ",{"$f":"IFERROR(HYPERLINK(_xlfn.XLOOKUP(DeliveryServicesTable[[#This Row],[CSA '#]],CSA,Pricing_Hyperlink),\"Click Here\"),\"\")","v":"Click Here"}]
[null,"Face to Face",null,"Coaching and Leadership International Inc.","CS-000856","Brentwood Bay, BC","Betska K-Burr\n250 652-5390\nbetska@coachingandleadership.com ",{"$f":"IFERROR(HYPERLINK(_xlfn.XLOOKUP(DeliveryServicesTable[[#This Row],[CSA '#]],CSA,Pricing_Hyperlink),\"Click Here\"),\"\")","v":"Click Here"}]
[null,"Virtual",null,"Coaching and Leadership International Inc.","CS-000856","Brentwood Bay, BC","Betska K-Burr\n250 652-5390\nbetska@coachingandleadership.com ",{"$f":"IFERROR(HYPERLINK(_xlfn.XLOOKUP(DeliveryServicesTable[[#This Row],[CSA '#]],CSA,Pricing_Hyperlink),\"Click Here\"),\"\")","v":"Click Here"}]
[null,"Face to Face","Natural Resource Sector","Bolster Consulting Ltd.","CS-000861","Victoria, BC","Heath Bolster\n250 413-7322\nheath@bolster.ca",{"$f":"IFERROR(HYPERLINK(_xlfn.XLOOKUP(DeliveryServicesTable[[#This Row],[CSA '#]],CSA,Pricing_Hyperlink),\"Click Here\"),\"\")","v":"Click Here"}]
[null,"Blended Learnings","Natural Resource Sector","Bolster Consulting Ltd.","CS-000861","Victoria, BC","Heath Bolster\n250 413-7322\nheath@bolster.ca",{"$f":"IFERROR(HYPERLINK(_xlfn.XLOOKUP(DeliveryServicesTable[[#This Row],[CSA '#]],CSA,Pricing_Hyperlink),\"Click Here\"),\"\")","v":"Click Here"}]
[null,"Face to Face",null,"Tracey May Burns dba Burns & Associates, Consulting & Coaching","CS-000862","Victoria, BC","Tracey Burns\n250 812-4433\ntracey@traceyburns.com",{"$f":"IFERROR(HYPERLINK(_xlfn.XLOOKUP(DeliveryServicesTable[[#This Row],[CSA '#]],CSA,Pricing_Hyperlink),\"Click Here\"),\"\")","v":"Click Here"}]
[null,"Virtual ",null,"Tracey May Burns dba Burns & Associates, Consulting & Coaching","CS-000862","Victoria, BC","Tracey Burns\n250 812-4433\ntracey@traceyburns.com",{"$f":"IFERROR(HYPERLINK(_xlfn.XLOOKUP(DeliveryServicesTable[[#This Row],[CSA '#]],CSA,Pricing_Hyperlink),\"Click Here\"),\"\")","v":"Click Here"}]
[null,null,"Coaching","Tracey May Burns dba Burns & Associates, Consulting & Coaching","CS-000862","Victoria, BC","Tracey Burns\n250 812-4433\ntracey@traceyburns.com",{"$f":"IFERROR(HYPERLINK(_xlfn.XLOOKUP(DeliveryServicesTable[[#This Row],[CSA '#]],CSA,Pricing_Hyperlink),\"Click Here\"),\"\")","v":"Click Here"}]
[null,null,"Techniques and Tools","Tracey May Burns dba Burns & Associates, Consulting & Coaching","CS-000862","Victoria, BC","Tracey Burns\n250 812-4433\ntracey@traceyburns.com",{"$f":"IFERROR(HYPERLINK(_xlfn.XLOOKUP(DeliveryServicesTable[[#This Row],[CSA '#]],CSA,Pricing_Hyperlink),\"Click Here\"),\"\")","v":"Click Here"}]
[null,null,"Assessment","Tracey May Burns dba Burns & Associates, Consulting & Coaching","CS-000862","Victoria, BC","Tracey Burns\n250 812-4433\ntracey@traceyburns.com",{"$f":"IFERROR(HYPERLINK(_xlfn.XLOOKUP(DeliveryServicesTable[[#This Row],[CSA '#]],CSA,Pricing_Hyperlink),\"Click Here\"),\"\")","v":"Click Here"}]
[null,null,"Feedback","Tracey May Burns dba Burns & Associates, Consulting & Coaching","CS-000862","Victoria, BC","Tracey Burns\n250 812-4433\ntracey@traceyburns.com",{"$f":"IFERROR(HYPERLINK(_xlfn.XLOOKUP(DeliveryServicesTable[[#This Row],[CSA '#]],CSA,Pricing_Hyperlink),\"Click Here\"),\"\")","v":"Click Here"}]
[null,null,"Moodle","Tracey May Burns dba Burns & Associates, Consulting & Coaching","CS-000862","Victoria, BC","Tracey Burns\n250 812-4433\ntracey@traceyburns.com",{"$f":"IFERROR(HYPERLINK(_xlfn.XLOOKUP(DeliveryServicesTable[[#This Row],[CSA '#]],CSA,Pricing_Hyperlink),\"Click Here\"),\"\")","v":"Click Here"}]
[null,"Virtual","Discrimination Prevention Workshop","Hone People Development Consulting Corporation dba Hone Consulting","CS-000864","Victoria, BC","Randy Kennett\n250 413-3170\nrandy@honeconsulting.com",{"$f":"IFERROR(HYPERLINK(_xlfn.XLOOKUP(DeliveryServicesTable[[#This Row],[CSA '#]],CSA,Pricing_Hyperlink),\"Click Here\"),\"\")","v":"Click Here"}]
[null,"Virtual","Respectful Workplaces, Human Rights, Harassment, Bullying and Discrimination","Hone People Development Consulting Corporation dba Hone Consulting","CS-000864","Victoria, BC","Randy Kennett\n250 413-3170\nrandy@honeconsulting.com",{"$f":"IFERROR(HYPERLINK(_xlfn.XLOOKUP(DeliveryServicesTable[[#This Row],[CSA '#]],CSA,Pricing_Hyperlink),\"Click Here\"),\"\")","v":"Click Here"}]
[null,null,"Teams","Hone People Development Consulting Corporation dba Hone Consulting","CS-000864","Victoria, BC","Randy Kennett\n250 413-3170\nrandy@honeconsulting.com",{"$f":"IFERROR(HYPERLINK(_xlfn.XLOOKUP(DeliveryServicesTable[[#This Row],[CSA '#]],CSA,Pricing_Hyperlink),\"Click Here\"),\"\")","v":"Click Here"}]
[null,"Face to Face","Microsoft 365, Including Teams, SharePoint, and Dynamics 365","Christopher Stone","CS-000865","Victoria, BC","Christopher Stone\n250 884-0441\nChristopher.m.stone@gmail.com",{"$f":"IFERROR(HYPERLINK(_xlfn.XLOOKUP(DeliveryServicesTable[[#This Row],[CSA '#]],CSA,Pricing_Hyperlink),\"Click Here\"),\"\")","v":"Click Here"}]
[null,"Virtual","Microsoft 365, Including Teams, SharePoint, and Dynamics 365","Christopher Stone","CS-000865","Victoria, BC","Christopher Stone\n250 884-0441\nChristopher.m.stone@gmail.com",{"$f":"IFERROR(HYPERLINK(_xlfn.XLOOKUP(DeliveryServicesTable[[#This Row],[CSA '#]],CSA,Pricing_Hyperlink),\"Click Here\"),\"\")","v":"Click Here"}]
[null,"Face to Face","Leadership, Coaching, Health and Wellbeing, Communication","Lily Seto dba Lily Seto Coaching and Consulting","CS-000874","North Saanich, BC","Lily Seto\n778 679-4088\nlilyseto@telus.net",{"$f":"IFERROR(HYPERLINK(_xlfn.XLOOKUP(DeliveryServicesTable[[#This Row],[CSA '#]],CSA,Pricing_Hyperlink),\"Click Here\"),\"\")","v":"Click Here"}]
[null,"Virtual","Leadership, Coaching, Health and Wellbeing, Communication","Lily Seto dba Lily Seto Coaching and Consulting","CS-000874","North Saanich, BC","Lily Seto\n778 679-4088\nlilyseto@telus.net",{"$f":"IFERROR(HYPERLINK(_xlfn.XLOOKUP(DeliveryServicesTable[[#This Row],[CSA '#]],CSA,Pricing_Hyperlink),\"Click Here\"),\"\")","v":"Click Here"}]
[null,"Face to Face",null,"Pathways Training and eLearning","CS-000911","Toronto","Stephanie Stiles \n704-960-2867\nstephaniestiles@pathwaysinc.ca",{"$f":"IFERROR(HYPERLINK(_xlfn.XLOOKUP(DeliveryServicesTable[[#This Row],[CSA '#]],CSA,Pricing_Hyperlink),\"Click Here\"),\"\")","v":"Click Here"}]
[null,"Virtual",null,"Pathways Training and eLearning","CS-000911","Toronto","Stephanie Stiles \n704-960-2867\nstephaniestiles@pathwaysinc.ca",{"$f":"IFERROR(HYPERLINK(_xlfn.XLOOKUP(DeliveryServicesTable[[#This Row],[CSA '#]],CSA,Pricing_Hyperlink),\"Click Here\"),\"\")","v":"Click Here"}]
[null,"Blended Learning",null,"Pathways Training and eLearning","CS-000911","Toronto","Stephanie Stiles \n704-960-2867\nstephaniestiles@pathwaysinc.ca",{"$f":"IFERROR(HYPERLINK(_xlfn.XLOOKUP(DeliveryServicesTable[[#This Row],[CSA '#]],CSA,Pricing_Hyperlink),\"Click Here\"),\"\")","v":"Click Here"}]
[null,"Blended Learning",null,"Hille Learning Associates","CS-000912","Vancouver ","Albert Hille \n604 317-6602\nalbert@hillelearningassociates.ca ",{"$f":"IFERROR(HYPERLINK(_xlfn.XLOOKUP(DeliveryServicesTable[[#This Row],[CSA '#]],CSA,Pricing_Hyperlink),\"Click Here\"),\"\")","v":"Click Here"}]
[null,"Face to Face",null,"Hille Learning Associates","CS-000912","Vancouver ","Albert Hille \n604 317-6602\nalbert@hillelearningassociates.ca ",{"$f":"IFERROR(HYPERLINK(_xlfn.XLOOKUP(DeliveryServicesTable[[#This Row],[CSA '#]],CSA,Pricing_Hyperlink),\"Click Here\"),\"\")","v":"Click Here"}]
[null,"Virtual",null,"Hille Learning Associates","CS-000912","Vancouver ","Albert Hille \n604 317-6602\nalbert@hillelearningassociates.ca ",{"$f":"IFERROR(HYPERLINK(_xlfn.XLOOKUP(DeliveryServicesTable[[#This Row],[CSA '#]],CSA,Pricing_Hyperlink),\"Click Here\"),\"\")","v":"Click Here"}]
[null,"Other","Performance Coaching","Hille Learning Associates","CS-000912","Vancouver ","Albert Hille \n604 317-6602\nalbert@hillelearningassociates.ca ",{"$f":"IFERROR(HYPERLINK(_xlfn.XLOOKUP(DeliveryServicesTable[[#This Row],[CSA '#]],CSA,Pricing_Hyperlink),\"Click Here\"),\"\")","v":"Click Here"}]
[null,"Blended Learning","Research, design and implementation of customized Organizational Development and training and development solutions; Change and Transformation; Leadership; Coaching; Service Excellence, Friendly Consulting and Assessing, measuring and evaluating leadership development and culture shifts.","Patwell Consulting","CS-000913","Victoria","Beverley Patwell\n250 382-1908\nbpatwell@patwellconsulting.com ",{"$f":"IFERROR(HYPERLINK(_xlfn.XLOOKUP(DeliveryServicesTable[[#This Row],[CSA '#]],CSA,Pricing_Hyperlink),\"Click Here\"),\"\")","v":"Click Here"}]
[null,"Blended Learning","Research, design and implementation of customized CoachingOurselves Programs, Train the Trainer, author of CoachingOurselves Topic.","Patwell Consulting","CS-000913","Victoria","Beverley Patwell\n250 382-1908\nbpatwell@patwellconsulting.com ",{"$f":"IFERROR(HYPERLINK(_xlfn.XLOOKUP(DeliveryServicesTable[[#This Row],[CSA '#]],CSA,Pricing_Hyperlink),\"Click Here\"),\"\")","v":"Click Here"}]
[null,"Blended Learning","Research, design and implementation of customized Organizational Development including training and development solutions; Change and Transformation; Leadership; Coaching; Service Excellence, Friendly Consulting and Assessing, measuring and evaluating leadership development and culture shifts.","Patwell Consulting","CS-000913","Victoria","Beverley Patwell\n250 382-1908\nbpatwell@patwellconsulting.com ",{"$f":"IFERROR(HYPERLINK(_xlfn.XLOOKUP(DeliveryServicesTable[[#This Row],[CSA '#]],CSA,Pricing_Hyperlink),\"Click Here\"),\"\")","v":"Click Here"}]
[null,"Blended Learning","Research, author Leading Meaningful Change and other articles, design and implementation of customized Organizational Development and training and development solutions; Change and Transformation; Leadership; Coaching; Service Excellence, Friendly Consulting and Assessing, measuring and evaluating leadership development and culture shifts.","Patwell Consulting","CS-000913","Victoria","Beverley Patwell\n250 382-1908\nbpatwell@patwellconsulting.com ",{"$f":"IFERROR(HYPERLINK(_xlfn.XLOOKUP(DeliveryServicesTable[[#This Row],[CSA '#]],CSA,Pricing_Hyperlink),\"Click Here\"),\"\")","v":"Click Here"}]
[null,"Blended Learning","Research, design and implementation of customized Organizational Development and training and development solutions; Change and Transformation; Leadership; Coaching; Service Excellence, Friendly Consulting and Assessing, measuring and evaluating leadership development and culture shifts.","Patwell Consulting","CS-000913","Victoria","Beverley Patwell\n250 382-1908\nbpatwell@patwellconsulting.com ",{"$f":"IFERROR(HYPERLINK(_xlfn.XLOOKUP(DeliveryServicesTable[[#This Row],[CSA '#]],CSA,Pricing_Hyperlink),\"Click Here\"),\"\")","v":"Click Here"}]
[null,"Blended Learning","Research, design and implementation of customized Organizational Development and training and development solutions; Change and Transformation; Leadership; Coaching; Service Excellence, Friendly Consulting and Assessing, measuring and evaluating leadership development and culture shifts.","Patwell Consulting","CS-000913","Victoria","Beverley Patwell\n250 382-1908\nbpatwell@patwellconsulting.com ",{"$f":"IFERROR(HYPERLINK(_xlfn.XLOOKUP(DeliveryServicesTable[[#This Row],[CSA '#]],CSA,Pricing_Hyperlink),\"Click Here\"),\"\")","v":"Click Here"}]
[null,"Blended Learning","Research, design and implementation of customized Organizational Development and training and development solutions; Change and Transformation; Leadership; Coaching; Service Excellence, Friendly Consulting and Assessing, measuring and evaluating leadership development and culture shifts.","Patwell Consulting","CS-000913","Victoria","Beverley Patwell\n250 382-1908\nbpatwell@patwellconsulting.com ",{"$f":"IFERROR(HYPERLINK(_xlfn.XLOOKUP(DeliveryServicesTable[[#This Row],[CSA '#]],CSA,Pricing_Hyperlink),\"Click Here\"),\"\")","v":"Click Here"}]
[null,"Blended Learning","Research, design and implementation of customized CoachingOurselves Programs, Train the Trainer, author of CoachingOurselves Topic.","Patwell Consulting","CS-000913","Victoria","Beverley Patwell\n250 382-1908\nbpatwell@patwellconsulting.com ",{"$f":"IFERROR(HYPERLINK(_xlfn.XLOOKUP(DeliveryServicesTable[[#This Row],[CSA '#]],CSA,Pricing_Hyperlink),\"Click Here\"),\"\")","v":"Click Here"}]
[null,"Blended Learning","Research, design and implementation of customized Organizational Development and training and development solutions; Change and Transformation; Leadership; Coaching; Service Excellence, Friendly Consulting and Assessing, measuring and evaluating leadership development and culture shifts.","Patwell Consulting","CS-000913","Victoria","Beverley Patwell\n250 382-1908\nbpatwell@patwellconsulting.com ",{"$f":"IFERROR(HYPERLINK(_xlfn.XLOOKUP(DeliveryServicesTable[[#This Row],[CSA '#]],CSA,Pricing_Hyperlink),\"Click Here\"),\"\")","v":"Click Here"}]
[null,"Blended Learning","Research, design and implementation of customized Organizational Development and training and development solutions; Change and Transformation; Leadership; Coaching; Service Excellence, Friendly Consulting and Assessing, measuring and evaluating leadership development and culture shifts.","Patwell Consulting","CS-000913","Victoria","Beverley Patwell\n250 382-1908\nbpatwell@patwellconsulting.com ",{"$f":"IFERROR(HYPERLINK(_xlfn.XLOOKUP(DeliveryServicesTable[[#This Row],[CSA '#]],CSA,Pricing_Hyperlink),\"Click Here\"),\"\")","v":"Click Here"}]
[null,"Blended Learning","Research, design and implementation of customized Organizational Development and training and development solutions; Change and Transformation; Leadership; Coaching; Service Excellence, Friendly Consulting and Assessing, measuring and evaluating leadership development and culture shifts.","Patwell Consulting","CS-000913","Victoria","Beverley Patwell\n250 382-1908\nbpatwell@patwellconsulting.com ",{"$f":"IFERROR(HYPERLINK(_xlfn.XLOOKUP(DeliveryServicesTable[[#This Row],[CSA '#]],CSA,Pricing_Hyperlink),\"Click Here\"),\"\")","v":"Click Here"}]
[null,"Blended Learning","Research, design and implementation of customized Organizational Development and training and development solutions; Change and Transformation; Leadership; Coaching; Service Excellence, Friendly Consulting and Assessing, measuring and evaluating leadership development and culture shifts.","Patwell Consulting","CS-000913","Victoria","Beverley Patwell\n250 382-1908\nbpatwell@patwellconsulting.com ",{"$f":"IFERROR(HYPERLINK(_xlfn.XLOOKUP(DeliveryServicesTable[[#This Row],[CSA '#]],CSA,Pricing_Hyperlink),\"Click Here\"),\"\")","v":"Click Here"}]
[null,"Blended Learning","Research, design and implementation of customized Organizational Development and training and development solutions; Change and Transformation; Leadership; Coaching; Service Excellence, Friendly Consulting and Assessing, measuring and evaluating leadership development and culture shifts.","Patwell Consulting","CS-000913","Victoria","Beverley Patwell\n250 382-1908\nbpatwell@patwellconsulting.com ",{"$f":"IFERROR(HYPERLINK(_xlfn.XLOOKUP(DeliveryServicesTable[[#This Row],[CSA '#]],CSA,Pricing_Hyperlink),\"Click Here\"),\"\")","v":"Click Here"}]
[null,"Blended Learning","Research, design and implementation of customized Organizational Development and training and development solutions; Change and Transformation; Leadership; Coaching; Service Excellence, Friendly Consulting and Assessing, measuring and evaluating leadership development and culture shifts.","Patwell Consulting","CS-000913","Victoria","Beverley Patwell\n250 382-1908\nbpatwell@patwellconsulting.com ",{"$f":"IFERROR(HYPERLINK(_xlfn.XLOOKUP(DeliveryServicesTable[[#This Row],[CSA '#]],CSA,Pricing_Hyperlink),\"Click Here\"),\"\")","v":"Click Here"}]
[null,"Blended Learning","Research, design and implementation of customized Organizational Development and training and development solutions; Change and Transformation; Leadership; Coaching; Service Excellence, Friendly Consulting and Assessing, measuring and evaluating leadership development and culture shifts.","Patwell Consulting","CS-000913","Victoria","Beverley Patwell\n250 382-1908\nbpatwell@patwellconsulting.com ",{"$f":"IFERROR(HYPERLINK(_xlfn.XLOOKUP(DeliveryServicesTable[[#This Row],[CSA '#]],CSA,Pricing_Hyperlink),\"Click Here\"),\"\")","v":"Click Here"}]
[null,"Blended Learning","Research, design and implementation of customized Organizational Development and training and development solutions; Change and Transformation; Leadership; Coaching; Service Excellence, Friendly Consulting and Assessing, measuring and evaluating leadership development and culture shifts.","Patwell Consulting","CS-000913","Victoria","Beverley Patwell\n250 382-1908\nbpatwell@patwellconsulting.com ",{"$f":"IFERROR(HYPERLINK(_xlfn.XLOOKUP(DeliveryServicesTable[[#This Row],[CSA '#]],CSA,Pricing_Hyperlink),\"Click Here\"),\"\")","v":"Click Here"}]
[null,"Blended Learning","Research, design and implementation of customized Organizational Development and training and development solutions; Change and Transformation; Leadership; Coaching; Service Excellence, Friendly Consulting and Assessing, measuring and evaluating leadership development and culture shifts.","Patwell Consulting","CS-000913","Victoria","Beverley Patwell\n250 382-1908\nbpatwell@patwellconsulting.com ",{"$f":"IFERROR(HYPERLINK(_xlfn.XLOOKUP(DeliveryServicesTable[[#This Row],[CSA '#]],CSA,Pricing_Hyperlink),\"Click Here\"),\"\")","v":"Click Here"}]
[null,"Blended Learning","Research, design and implementation of customized Organizational Development and training and development solutions; Change and Transformation; Leadership; Coaching; Service Excellence, Friendly Consulting and Assessing, measuring and evaluating leadership development and culture shifts.","Patwell Consulting","CS-000913","Victoria","Beverley Patwell\n250 382-1908\nbpatwell@patwellconsulting.com ",{"$f":"IFERROR(HYPERLINK(_xlfn.XLOOKUP(DeliveryServicesTable[[#This Row],[CSA '#]],CSA,Pricing_Hyperlink),\"Click Here\"),\"\")","v":"Click Here"}]
[null,"Blended Learning","Research, design and implementation of customized Organizational Development and training and development solutions; Change and Transformation; Leadership; Coaching; Service Excellence, Friendly Consulting and Assessing, measuring and evaluating leadership development and culture shifts.","Patwell Consulting","CS-000913","Victoria","Beverley Patwell\n250 382-1908\nbpatwell@patwellconsulting.com ",{"$f":"IFERROR(HYPERLINK(_xlfn.XLOOKUP(DeliveryServicesTable[[#This Row],[CSA '#]],CSA,Pricing_Hyperlink),\"Click Here\"),\"\")","v":"Click Here"}]
[null,"Blended Learning","Research, design and implementation of customized Organizational Development including training and development solutions; Change and Transformation; Leadership; Coaching; Service Excellence, Friendly Consulting and Assessing, measuring and evaluating leadership development and culture shifts.","Patwell Consulting","CS-000913","Victoria","Beverley Patwell\n250 382-1908\nbpatwell@patwellconsulting.com ",{"$f":"IFERROR(HYPERLINK(_xlfn.XLOOKUP(DeliveryServicesTable[[#This Row],[CSA '#]],CSA,Pricing_Hyperlink),\"Click Here\"),\"\")","v":"Click Here"}]
[null,"Blended Learning","Research, design and implementation of customized Organizational Development including training and development solutions; Change and Transformation; Leadership; Coaching; Service Excellence, Friendly Consulting and Assessing, measuring and evaluating leadership development and culture shifts.","Patwell Consulting","CS-000913","Victoria","Beverley Patwell\n250 382-1908\nbpatwell@patwellconsulting.com ",{"$f":"IFERROR(HYPERLINK(_xlfn.XLOOKUP(DeliveryServicesTable[[#This Row],[CSA '#]],CSA,Pricing_Hyperlink),\"Click Here\"),\"\")","v":"Click Here"}]
[null,"Face to Face","Agile Inception Workshop -- Team Based Collaborative Agile  Planning","Alluvial Management Consulting","CS-000915","Victoria","Mack Adams\n250 886-4273\nmack@alluvial-consulting.com",{"$f":"IFERROR(HYPERLINK(_xlfn.XLOOKUP(DeliveryServicesTable[[#This Row],[CSA '#]],CSA,Pricing_Hyperlink),\"Click Here\"),\"\")","v":"Click Here"}]
[null,"Virtual","Agile Inception Workshop -- Team Based Collaborative Agile  Planning","Alluvial Management Consulting","CS-000915","Victoria","Mack Adams\n250 886-4273\nmack@alluvial-consulting.com",{"$f":"IFERROR(HYPERLINK(_xlfn.XLOOKUP(DeliveryServicesTable[[#This Row],[CSA '#]],CSA,Pricing_Hyperlink),\"Click Here\"),\"\")","v":"Click Here"}]
[null,"Face to Face","Agile Organizational Assessment Workshop - Understand where your organization is on it's agile journey","Alluvial Management Consulting","CS-000915","Victoria","Mack Adams\n250 886-4273\nmack@alluvial-consulting.com",{"$f":"IFERROR(HYPERLINK(_xlfn.XLOOKUP(DeliveryServicesTable[[#This Row],[CSA '#]],CSA,Pricing_Hyperlink),\"Click Here\"),\"\")","v":"Click Here"}]
[null,"Virtual","Agile Organizational Assessment Workshop - Understand where your organization is on it's agile journey","Alluvial Management Consulting","CS-000915","Victoria","Mack Adams\n250 886-4273\nmack@alluvial-consulting.com",{"$f":"IFERROR(HYPERLINK(_xlfn.XLOOKUP(DeliveryServicesTable[[#This Row],[CSA '#]],CSA,Pricing_Hyperlink),\"Click Here\"),\"\")","v":"Click Here"}]
[null,"Face to Face","Agile Team Coaching","Alluvial Management Consulting","CS-000915","Victoria","Mack Adams\n250 886-4273\nmack@alluvial-consulting.com",{"$f":"IFERROR(HYPERLINK(_xlfn.XLOOKUP(DeliveryServicesTable[[#This Row],[CSA '#]],CSA,Pricing_Hyperlink),\"Click Here\"),\"\")","v":"Click Here"}]
[null,"Virtual","Agile Team Coaching","Alluvial Management Consulting","CS-000915","Victoria","Mack Adams\n250 886-4273\nmack@alluvial-consulting.com",{"$f":"IFERROR(HYPERLINK(_xlfn.XLOOKUP(DeliveryServicesTable[[#This Row],[CSA '#]],CSA,Pricing_Hyperlink),\"Click Here\"),\"\")","v":"Click Here"}]
[null,"Face to Face","Guiding Change in an Agile Environment - Change  Platform Workshop","Alluvial Management Consulting","CS-000915","Victoria","Mack Adams\n250 886-4273\nmack@alluvial-consulting.com",{"$f":"IFERROR(HYPERLINK(_xlfn.XLOOKUP(DeliveryServicesTable[[#This Row],[CSA '#]],CSA,Pricing_Hyperlink),\"Click Here\"),\"\")","v":"Click Here"}]
[null,"Virtual","Guiding Change in an Agile Environment - Change  Platform Workshop","Alluvial Management Consulting","CS-000915","Victoria","Mack Adams\n250 886-4273\nmack@alluvial-consulting.com",{"$f":"IFERROR(HYPERLINK(_xlfn.XLOOKUP(DeliveryServicesTable[[#This Row],[CSA '#]],CSA,Pricing_Hyperlink),\"Click Here\"),\"\")","v":"Click Here"}]
[null,"Other","Blended/ Face to Face or virtual","Camosun College","CS-000918","Victoria","Nannette Plant\n250 370-4683\nplant@camosun.ca ",{"$f":"IFERROR(HYPERLINK(_xlfn.XLOOKUP(DeliveryServicesTable[[#This Row],[CSA '#]],CSA,Pricing_Hyperlink),\"Click Here\"),\"\")","v":"Click Here"}]
[null,"Other","Face to Face or virtual","Camosun College","CS-000918","Victoria","Nannette Plant\n250 370-4683\nplant@camosun.ca ",{"$f":"IFERROR(HYPERLINK(_xlfn.XLOOKUP(DeliveryServicesTable[[#This Row],[CSA '#]],CSA,Pricing_Hyperlink),\"Click Here\"),\"\")","v":"Click Here"}]
[null,"Other","Face to Face or virtual:\nFacilitator - Instruction, International Educ, Trades, Indigenous Education, Innovation and Tech","Camosun College","CS-000918","Victoria","Nannette Plant\n250 370-4683\nplant@camosun.ca ",{"$f":"IFERROR(HYPERLINK(_xlfn.XLOOKUP(DeliveryServicesTable[[#This Row],[CSA '#]],CSA,Pricing_Hyperlink),\"Click Here\"),\"\")","v":"Click Here"}]
[null,"Face to Face",null,"Camosun College","CS-000918","Victoria","Nannette Plant\n250 370-4683\nplant@camosun.ca ",{"$f":"IFERROR(HYPERLINK(_xlfn.XLOOKUP(DeliveryServicesTable[[#This Row],[CSA '#]],CSA,Pricing_Hyperlink),\"Click Here\"),\"\")","v":"Click Here"}]
[null,"Virtual","Delivery across all topic areas - Customer Service, Sales, Leadership, Management, Communication, Team & Personal Excellence, Project Management, Team and Culture, Employee Mindset, Job Roles / Processes. Delivery of  customized training content based on organizational requirements  ","Customer Service Professionals Network Inc.","CS-001040","Markham, ON","Jessica Cryer,  905-477-5544,  info@mycspn.com",{"$f":"IFERROR(HYPERLINK(_xlfn.XLOOKUP(DeliveryServicesTable[[#This Row],[CSA '#]],CSA,Pricing_Hyperlink),\"Click Here\"),\"\")","v":"Click Here"}]
[null,"Face to Face","Accounting","Simon Fraser University","CS-001041","Burnaby, BC","Seychelle Cushing\n778-782-5822\nseychelle_cushing@sfu.ca\n",{"$f":"IFERROR(HYPERLINK(_xlfn.XLOOKUP(DeliveryServicesTable[[#This Row],[CSA '#]],CSA,Pricing_Hyperlink),\"Click Here\"),\"\")","v":"Click Here"}]
[null,"Blended Learning","Accounting","Simon Fraser University","CS-001041","Burnaby, BC","Seychelle Cushing\n778-782-5822\nseychelle_cushing@sfu.ca\n",{"$f":"IFERROR(HYPERLINK(_xlfn.XLOOKUP(DeliveryServicesTable[[#This Row],[CSA '#]],CSA,Pricing_Hyperlink),\"Click Here\"),\"\")","v":"Click Here"}]
[null,"Virtual","Accounting","Simon Fraser University","CS-001041","Burnaby, BC","Seychelle Cushing\n778-782-5822\nseychelle_cushing@sfu.ca\n",{"$f":"IFERROR(HYPERLINK(_xlfn.XLOOKUP(DeliveryServicesTable[[#This Row],[CSA '#]],CSA,Pricing_Hyperlink),\"Click Here\"),\"\")","v":"Click Here"}]
[null,"Face to Face","Advanced Research Computing (ARC)","Simon Fraser University","CS-001041","Burnaby, BC","Seychelle Cushing\n778-782-5822\nseychelle_cushing@sfu.ca\n",{"$f":"IFERROR(HYPERLINK(_xlfn.XLOOKUP(DeliveryServicesTable[[#This Row],[CSA '#]],CSA,Pricing_Hyperlink),\"Click Here\"),\"\")","v":"Click Here"}]
[null,"Blended Learning","Advanced Research Computing (ARC)","Simon Fraser University","CS-001041","Burnaby, BC","Seychelle Cushing\n778-782-5822\nseychelle_cushing@sfu.ca\n",{"$f":"IFERROR(HYPERLINK(_xlfn.XLOOKUP(DeliveryServicesTable[[#This Row],[CSA '#]],CSA,Pricing_Hyperlink),\"Click Here\"),\"\")","v":"Click Here"}]
[null,"Virtual","Advanced Research Computing (ARC)","Simon Fraser University","CS-001041","Burnaby, BC","Seychelle Cushing\n778-782-5822\nseychelle_cushing@sfu.ca\n",{"$f":"IFERROR(HYPERLINK(_xlfn.XLOOKUP(DeliveryServicesTable[[#This Row],[CSA '#]],CSA,Pricing_Hyperlink),\"Click Here\"),\"\")","v":"Click Here"}]
[null,"Face to Face","Advanced SQL","Simon Fraser University","CS-001041","Burnaby, BC","Seychelle Cushing\n778-782-5822\nseychelle_cushing@sfu.ca\n",{"$f":"IFERROR(HYPERLINK(_xlfn.XLOOKUP(DeliveryServicesTable[[#This Row],[CSA '#]],CSA,Pricing_Hyperlink),\"Click Here\"),\"\")","v":"Click Here"}]
[null,"Blended Learning","Advanced SQL","Simon Fraser University","CS-001041","Burnaby, BC","Seychelle Cushing\n778-782-5822\nseychelle_cushing@sfu.ca\n",{"$f":"IFERROR(HYPERLINK(_xlfn.XLOOKUP(DeliveryServicesTable[[#This Row],[CSA '#]],CSA,Pricing_Hyperlink),\"Click Here\"),\"\")","v":"Click Here"}]
[null,"Virtual","Advanced SQL","Simon Fraser University","CS-001041","Burnaby, BC","Seychelle Cushing\n778-782-5822\nseychelle_cushing@sfu.ca\n",{"$f":"IFERROR(HYPERLINK(_xlfn.XLOOKUP(DeliveryServicesTable[[#This Row],[CSA '#]],CSA,Pricing_Hyperlink),\"Click Here\"),\"\")","v":"Click Here"}]
[null,"Face to Face","Analytics Solution Design","Simon Fraser University","CS-001041","Burnaby, BC","Seychelle Cushing\n778-782-5822\nseychelle_cushing@sfu.ca\n",{"$f":"IFERROR(HYPERLINK(_xlfn.XLOOKUP(DeliveryServicesTable[[#This Row],[CSA '#]],CSA,Pricing_Hyperlink),\"Click Here\"),\"\")","v":"Click Here"}]
[null,"Blended Learning","Analytics Solution Design","Simon Fraser University","CS-001041","Burnaby, BC","Seychelle Cushing\n778-782-5822\nseychelle_cushing@sfu.ca\n",{"$f":"IFERROR(HYPERLINK(_xlfn.XLOOKUP(DeliveryServicesTable[[#This Row],[CSA '#]],CSA,Pricing_Hyperlink),\"Click Here\"),\"\")","v":"Click Here"}]
[null,"Virtual","Analytics Solution Design","Simon Fraser University","CS-001041","Burnaby, BC","Seychelle Cushing\n778-782-5822\nseychelle_cushing@sfu.ca\n",{"$f":"IFERROR(HYPERLINK(_xlfn.XLOOKUP(DeliveryServicesTable[[#This Row],[CSA '#]],CSA,Pricing_Hyperlink),\"Click Here\"),\"\")","v":"Click Here"}]
[null,"Face to Face","Artificial Intelligence (AI)","Simon Fraser University","CS-001041","Burnaby, BC","Seychelle Cushing\n778-782-5822\nseychelle_cushing@sfu.ca\n",{"$f":"IFERROR(HYPERLINK(_xlfn.XLOOKUP(DeliveryServicesTable[[#This Row],[CSA '#]],CSA,Pricing_Hyperlink),\"Click Here\"),\"\")","v":"Click Here"}]
[null,"Blended Learning","Artificial Intelligence (AI)","Simon Fraser University","CS-001041","Burnaby, BC","Seychelle Cushing\n778-782-5822\nseychelle_cushing@sfu.ca\n",{"$f":"IFERROR(HYPERLINK(_xlfn.XLOOKUP(DeliveryServicesTable[[#This Row],[CSA '#]],CSA,Pricing_Hyperlink),\"Click Here\"),\"\")","v":"Click Here"}]
[null,"Virtual","Artificial Intelligence (AI)","Simon Fraser University","CS-001041","Burnaby, BC","Seychelle Cushing\n778-782-5822\nseychelle_cushing@sfu.ca\n",{"$f":"IFERROR(HYPERLINK(_xlfn.XLOOKUP(DeliveryServicesTable[[#This Row],[CSA '#]],CSA,Pricing_Hyperlink),\"Click Here\"),\"\")","v":"Click Here"}]
[null,"Face to Face","Big Data Analysis","Simon Fraser University","CS-001041","Burnaby, BC","Seychelle Cushing\n778-782-5822\nseychelle_cushing@sfu.ca\n",{"$f":"IFERROR(HYPERLINK(_xlfn.XLOOKUP(DeliveryServicesTable[[#This Row],[CSA '#]],CSA,Pricing_Hyperlink),\"Click Here\"),\"\")","v":"Click Here"}]
[null,"Blended Learning","Big Data Analysis","Simon Fraser University","CS-001041","Burnaby, BC","Seychelle Cushing\n778-782-5822\nseychelle_cushing@sfu.ca\n",{"$f":"IFERROR(HYPERLINK(_xlfn.XLOOKUP(DeliveryServicesTable[[#This Row],[CSA '#]],CSA,Pricing_Hyperlink),\"Click Here\"),\"\")","v":"Click Here"}]
[null,"Virtual","Big Data Analysis","Simon Fraser University","CS-001041","Burnaby, BC","Seychelle Cushing\n778-782-5822\nseychelle_cushing@sfu.ca\n",{"$f":"IFERROR(HYPERLINK(_xlfn.XLOOKUP(DeliveryServicesTable[[#This Row],[CSA '#]],CSA,Pricing_Hyperlink),\"Click Here\"),\"\")","v":"Click Here"}]
[null,"Face to Face","Business Analytics","Simon Fraser University","CS-001041","Burnaby, BC","Seychelle Cushing\n778-782-5822\nseychelle_cushing@sfu.ca\n",{"$f":"IFERROR(HYPERLINK(_xlfn.XLOOKUP(DeliveryServicesTable[[#This Row],[CSA '#]],CSA,Pricing_Hyperlink),\"Click Here\"),\"\")","v":"Click Here"}]
[null,"Blended Learning","Business Analytics","Simon Fraser University","CS-001041","Burnaby, BC","Seychelle Cushing\n778-782-5822\nseychelle_cushing@sfu.ca\n",{"$f":"IFERROR(HYPERLINK(_xlfn.XLOOKUP(DeliveryServicesTable[[#This Row],[CSA '#]],CSA,Pricing_Hyperlink),\"Click Here\"),\"\")","v":"Click Here"}]
[null,"Virtual","Business Analytics","Simon Fraser University","CS-001041","Burnaby, BC","Seychelle Cushing\n778-782-5822\nseychelle_cushing@sfu.ca\n",{"$f":"IFERROR(HYPERLINK(_xlfn.XLOOKUP(DeliveryServicesTable[[#This Row],[CSA '#]],CSA,Pricing_Hyperlink),\"Click Here\"),\"\")","v":"Click Here"}]
[null,"Face to Face","Business Case Development","Simon Fraser University","CS-001041","Burnaby, BC","Seychelle Cushing\n778-782-5822\nseychelle_cushing@sfu.ca\n",{"$f":"IFERROR(HYPERLINK(_xlfn.XLOOKUP(DeliveryServicesTable[[#This Row],[CSA '#]],CSA,Pricing_Hyperlink),\"Click Here\"),\"\")","v":"Click Here"}]
[null,"Blended Learning","Business Case Development","Simon Fraser University","CS-001041","Burnaby, BC","Seychelle Cushing\n778-782-5822\nseychelle_cushing@sfu.ca\n",{"$f":"IFERROR(HYPERLINK(_xlfn.XLOOKUP(DeliveryServicesTable[[#This Row],[CSA '#]],CSA,Pricing_Hyperlink),\"Click Here\"),\"\")","v":"Click Here"}]
[null,"Virtual","Business Case Development","Simon Fraser University","CS-001041","Burnaby, BC","Seychelle Cushing\n778-782-5822\nseychelle_cushing@sfu.ca\n",{"$f":"IFERROR(HYPERLINK(_xlfn.XLOOKUP(DeliveryServicesTable[[#This Row],[CSA '#]],CSA,Pricing_Hyperlink),\"Click Here\"),\"\")","v":"Click Here"}]
[null,"Face to Face","Business Ethics","Simon Fraser University","CS-001041","Burnaby, BC","Seychelle Cushing\n778-782-5822\nseychelle_cushing@sfu.ca\n",{"$f":"IFERROR(HYPERLINK(_xlfn.XLOOKUP(DeliveryServicesTable[[#This Row],[CSA '#]],CSA,Pricing_Hyperlink),\"Click Here\"),\"\")","v":"Click Here"}]
[null,"Blended Learning","Business Ethics","Simon Fraser University","CS-001041","Burnaby, BC","Seychelle Cushing\n778-782-5822\nseychelle_cushing@sfu.ca\n",{"$f":"IFERROR(HYPERLINK(_xlfn.XLOOKUP(DeliveryServicesTable[[#This Row],[CSA '#]],CSA,Pricing_Hyperlink),\"Click Here\"),\"\")","v":"Click Here"}]
[null,"Virtual","Business Ethics","Simon Fraser University","CS-001041","Burnaby, BC","Seychelle Cushing\n778-782-5822\nseychelle_cushing@sfu.ca\n",{"$f":"IFERROR(HYPERLINK(_xlfn.XLOOKUP(DeliveryServicesTable[[#This Row],[CSA '#]],CSA,Pricing_Hyperlink),\"Click Here\"),\"\")","v":"Click Here"}]
[null,"Face to Face","Business Innovation and Creativity","Simon Fraser University","CS-001041","Burnaby, BC","Seychelle Cushing\n778-782-5822\nseychelle_cushing@sfu.ca\n",{"$f":"IFERROR(HYPERLINK(_xlfn.XLOOKUP(DeliveryServicesTable[[#This Row],[CSA '#]],CSA,Pricing_Hyperlink),\"Click Here\"),\"\")","v":"Click Here"}]
[null,"Blended Learning","Business Innovation and Creativity","Simon Fraser University","CS-001041","Burnaby, BC","Seychelle Cushing\n778-782-5822\nseychelle_cushing@sfu.ca\n",{"$f":"IFERROR(HYPERLINK(_xlfn.XLOOKUP(DeliveryServicesTable[[#This Row],[CSA '#]],CSA,Pricing_Hyperlink),\"Click Here\"),\"\")","v":"Click Here"}]
[null,"Virtual","Business Innovation and Creativity","Simon Fraser University","CS-001041","Burnaby, BC","Seychelle Cushing\n778-782-5822\nseychelle_cushing@sfu.ca\n",{"$f":"IFERROR(HYPERLINK(_xlfn.XLOOKUP(DeliveryServicesTable[[#This Row],[CSA '#]],CSA,Pricing_Hyperlink),\"Click Here\"),\"\")","v":"Click Here"}]
[null,"Face to Face","Business Insight Development","Simon Fraser University","CS-001041","Burnaby, BC","Seychelle Cushing\n778-782-5822\nseychelle_cushing@sfu.ca\n",{"$f":"IFERROR(HYPERLINK(_xlfn.XLOOKUP(DeliveryServicesTable[[#This Row],[CSA '#]],CSA,Pricing_Hyperlink),\"Click Here\"),\"\")","v":"Click Here"}]
[null,"Blended Learning","Business Insight Development","Simon Fraser University","CS-001041","Burnaby, BC","Seychelle Cushing\n778-782-5822\nseychelle_cushing@sfu.ca\n",{"$f":"IFERROR(HYPERLINK(_xlfn.XLOOKUP(DeliveryServicesTable[[#This Row],[CSA '#]],CSA,Pricing_Hyperlink),\"Click Here\"),\"\")","v":"Click Here"}]
[null,"Virtual","Business Insight Development","Simon Fraser University","CS-001041","Burnaby, BC","Seychelle Cushing\n778-782-5822\nseychelle_cushing@sfu.ca\n",{"$f":"IFERROR(HYPERLINK(_xlfn.XLOOKUP(DeliveryServicesTable[[#This Row],[CSA '#]],CSA,Pricing_Hyperlink),\"Click Here\"),\"\")","v":"Click Here"}]
[null,"Face to Face","Business Models","Simon Fraser University","CS-001041","Burnaby, BC","Seychelle Cushing\n778-782-5822\nseychelle_cushing@sfu.ca\n",{"$f":"IFERROR(HYPERLINK(_xlfn.XLOOKUP(DeliveryServicesTable[[#This Row],[CSA '#]],CSA,Pricing_Hyperlink),\"Click Here\"),\"\")","v":"Click Here"}]
[null,"Blended Learning","Business Models","Simon Fraser University","CS-001041","Burnaby, BC","Seychelle Cushing\n778-782-5822\nseychelle_cushing@sfu.ca\n",{"$f":"IFERROR(HYPERLINK(_xlfn.XLOOKUP(DeliveryServicesTable[[#This Row],[CSA '#]],CSA,Pricing_Hyperlink),\"Click Here\"),\"\")","v":"Click Here"}]
[null,"Virtual","Business Models","Simon Fraser University","CS-001041","Burnaby, BC","Seychelle Cushing\n778-782-5822\nseychelle_cushing@sfu.ca\n",{"$f":"IFERROR(HYPERLINK(_xlfn.XLOOKUP(DeliveryServicesTable[[#This Row],[CSA '#]],CSA,Pricing_Hyperlink),\"Click Here\"),\"\")","v":"Click Here"}]
[null,"Face to Face","Business Operations Design","Simon Fraser University","CS-001041","Burnaby, BC","Seychelle Cushing\n778-782-5822\nseychelle_cushing@sfu.ca\n",{"$f":"IFERROR(HYPERLINK(_xlfn.XLOOKUP(DeliveryServicesTable[[#This Row],[CSA '#]],CSA,Pricing_Hyperlink),\"Click Here\"),\"\")","v":"Click Here"}]
[null,"Blended Learning","Business Operations Design","Simon Fraser University","CS-001041","Burnaby, BC","Seychelle Cushing\n778-782-5822\nseychelle_cushing@sfu.ca\n",{"$f":"IFERROR(HYPERLINK(_xlfn.XLOOKUP(DeliveryServicesTable[[#This Row],[CSA '#]],CSA,Pricing_Hyperlink),\"Click Here\"),\"\")","v":"Click Here"}]
[null,"Virtual","Business Operations Design","Simon Fraser University","CS-001041","Burnaby, BC","Seychelle Cushing\n778-782-5822\nseychelle_cushing@sfu.ca\n",{"$f":"IFERROR(HYPERLINK(_xlfn.XLOOKUP(DeliveryServicesTable[[#This Row],[CSA '#]],CSA,Pricing_Hyperlink),\"Click Here\"),\"\")","v":"Click Here"}]
[null,"Face to Face","Business Operations Overview","Simon Fraser University","CS-001041","Burnaby, BC","Seychelle Cushing\n778-782-5822\nseychelle_cushing@sfu.ca\n",{"$f":"IFERROR(HYPERLINK(_xlfn.XLOOKUP(DeliveryServicesTable[[#This Row],[CSA '#]],CSA,Pricing_Hyperlink),\"Click Here\"),\"\")","v":"Click Here"}]
[null,"Blended Learning","Business Operations Overview","Simon Fraser University","CS-001041","Burnaby, BC","Seychelle Cushing\n778-782-5822\nseychelle_cushing@sfu.ca\n",{"$f":"IFERROR(HYPERLINK(_xlfn.XLOOKUP(DeliveryServicesTable[[#This Row],[CSA '#]],CSA,Pricing_Hyperlink),\"Click Here\"),\"\")","v":"Click Here"}]
[null,"Virtual","Business Operations Overview","Simon Fraser University","CS-001041","Burnaby, BC","Seychelle Cushing\n778-782-5822\nseychelle_cushing@sfu.ca\n",{"$f":"IFERROR(HYPERLINK(_xlfn.XLOOKUP(DeliveryServicesTable[[#This Row],[CSA '#]],CSA,Pricing_Hyperlink),\"Click Here\"),\"\")","v":"Click Here"}]
[null,"Face to Face","Business Strategy","Simon Fraser University","CS-001041","Burnaby, BC","Seychelle Cushing\n778-782-5822\nseychelle_cushing@sfu.ca\n",{"$f":"IFERROR(HYPERLINK(_xlfn.XLOOKUP(DeliveryServicesTable[[#This Row],[CSA '#]],CSA,Pricing_Hyperlink),\"Click Here\"),\"\")","v":"Click Here"}]
[null,"Blended Learning","Business Strategy","Simon Fraser University","CS-001041","Burnaby, BC","Seychelle Cushing\n778-782-5822\nseychelle_cushing@sfu.ca\n",{"$f":"IFERROR(HYPERLINK(_xlfn.XLOOKUP(DeliveryServicesTable[[#This Row],[CSA '#]],CSA,Pricing_Hyperlink),\"Click Here\"),\"\")","v":"Click Here"}]
[null,"Virtual","Business Strategy","Simon Fraser University","CS-001041","Burnaby, BC","Seychelle Cushing\n778-782-5822\nseychelle_cushing@sfu.ca\n",{"$f":"IFERROR(HYPERLINK(_xlfn.XLOOKUP(DeliveryServicesTable[[#This Row],[CSA '#]],CSA,Pricing_Hyperlink),\"Click Here\"),\"\")","v":"Click Here"}]
[null,"Face to Face","Business, Community and Government","Simon Fraser University","CS-001041","Burnaby, BC","Seychelle Cushing\n778-782-5822\nseychelle_cushing@sfu.ca\n",{"$f":"IFERROR(HYPERLINK(_xlfn.XLOOKUP(DeliveryServicesTable[[#This Row],[CSA '#]],CSA,Pricing_Hyperlink),\"Click Here\"),\"\")","v":"Click Here"}]
[null,"Blended Learning","Business, Community and Government","Simon Fraser University","CS-001041","Burnaby, BC","Seychelle Cushing\n778-782-5822\nseychelle_cushing@sfu.ca\n",{"$f":"IFERROR(HYPERLINK(_xlfn.XLOOKUP(DeliveryServicesTable[[#This Row],[CSA '#]],CSA,Pricing_Hyperlink),\"Click Here\"),\"\")","v":"Click Here"}]
[null,"Virtual","Business, Community and Government","Simon Fraser University","CS-001041","Burnaby, BC","Seychelle Cushing\n778-782-5822\nseychelle_cushing@sfu.ca\n",{"$f":"IFERROR(HYPERLINK(_xlfn.XLOOKUP(DeliveryServicesTable[[#This Row],[CSA '#]],CSA,Pricing_Hyperlink),\"Click Here\"),\"\")","v":"Click Here"}]
[null,"Face to Face","Career Development","Simon Fraser University","CS-001041","Burnaby, BC","Seychelle Cushing\n778-782-5822\nseychelle_cushing@sfu.ca\n",{"$f":"IFERROR(HYPERLINK(_xlfn.XLOOKUP(DeliveryServicesTable[[#This Row],[CSA '#]],CSA,Pricing_Hyperlink),\"Click Here\"),\"\")","v":"Click Here"}]
[null,"Blended Learning","Career Development","Simon Fraser University","CS-001041","Burnaby, BC","Seychelle Cushing\n778-782-5822\nseychelle_cushing@sfu.ca\n",{"$f":"IFERROR(HYPERLINK(_xlfn.XLOOKUP(DeliveryServicesTable[[#This Row],[CSA '#]],CSA,Pricing_Hyperlink),\"Click Here\"),\"\")","v":"Click Here"}]
[null,"Virtual","Career Development","Simon Fraser University","CS-001041","Burnaby, BC","Seychelle Cushing\n778-782-5822\nseychelle_cushing@sfu.ca\n",{"$f":"IFERROR(HYPERLINK(_xlfn.XLOOKUP(DeliveryServicesTable[[#This Row],[CSA '#]],CSA,Pricing_Hyperlink),\"Click Here\"),\"\")","v":"Click Here"}]
[null,"Face to Face","Change Management","Simon Fraser University","CS-001041","Burnaby, BC","Seychelle Cushing\n778-782-5822\nseychelle_cushing@sfu.ca\n",{"$f":"IFERROR(HYPERLINK(_xlfn.XLOOKUP(DeliveryServicesTable[[#This Row],[CSA '#]],CSA,Pricing_Hyperlink),\"Click Here\"),\"\")","v":"Click Here"}]
[null,"Blended Learning","Change Management","Simon Fraser University","CS-001041","Burnaby, BC","Seychelle Cushing\n778-782-5822\nseychelle_cushing@sfu.ca\n",{"$f":"IFERROR(HYPERLINK(_xlfn.XLOOKUP(DeliveryServicesTable[[#This Row],[CSA '#]],CSA,Pricing_Hyperlink),\"Click Here\"),\"\")","v":"Click Here"}]
[null,"Virtual","Change Management","Simon Fraser University","CS-001041","Burnaby, BC","Seychelle Cushing\n778-782-5822\nseychelle_cushing@sfu.ca\n",{"$f":"IFERROR(HYPERLINK(_xlfn.XLOOKUP(DeliveryServicesTable[[#This Row],[CSA '#]],CSA,Pricing_Hyperlink),\"Click Here\"),\"\")","v":"Click Here"}]
[null,"Face to Face","Classification","Simon Fraser University","CS-001041","Burnaby, BC","Seychelle Cushing\n778-782-5822\nseychelle_cushing@sfu.ca\n",{"$f":"IFERROR(HYPERLINK(_xlfn.XLOOKUP(DeliveryServicesTable[[#This Row],[CSA '#]],CSA,Pricing_Hyperlink),\"Click Here\"),\"\")","v":"Click Here"}]
[null,"Blended Learning","Classification","Simon Fraser University","CS-001041","Burnaby, BC","Seychelle Cushing\n778-782-5822\nseychelle_cushing@sfu.ca\n",{"$f":"IFERROR(HYPERLINK(_xlfn.XLOOKUP(DeliveryServicesTable[[#This Row],[CSA '#]],CSA,Pricing_Hyperlink),\"Click Here\"),\"\")","v":"Click Here"}]
[null,"Virtual","Classification","Simon Fraser University","CS-001041","Burnaby, BC","Seychelle Cushing\n778-782-5822\nseychelle_cushing@sfu.ca\n",{"$f":"IFERROR(HYPERLINK(_xlfn.XLOOKUP(DeliveryServicesTable[[#This Row],[CSA '#]],CSA,Pricing_Hyperlink),\"Click Here\"),\"\")","v":"Click Here"}]
[null,"Face to Face","Clustering","Simon Fraser University","CS-001041","Burnaby, BC","Seychelle Cushing\n778-782-5822\nseychelle_cushing@sfu.ca\n",{"$f":"IFERROR(HYPERLINK(_xlfn.XLOOKUP(DeliveryServicesTable[[#This Row],[CSA '#]],CSA,Pricing_Hyperlink),\"Click Here\"),\"\")","v":"Click Here"}]
[null,"Blended Learning","Clustering","Simon Fraser University","CS-001041","Burnaby, BC","Seychelle Cushing\n778-782-5822\nseychelle_cushing@sfu.ca\n",{"$f":"IFERROR(HYPERLINK(_xlfn.XLOOKUP(DeliveryServicesTable[[#This Row],[CSA '#]],CSA,Pricing_Hyperlink),\"Click Here\"),\"\")","v":"Click Here"}]
[null,"Virtual","Clustering","Simon Fraser University","CS-001041","Burnaby, BC","Seychelle Cushing\n778-782-5822\nseychelle_cushing@sfu.ca\n",{"$f":"IFERROR(HYPERLINK(_xlfn.XLOOKUP(DeliveryServicesTable[[#This Row],[CSA '#]],CSA,Pricing_Hyperlink),\"Click Here\"),\"\")","v":"Click Here"}]
[null,"Face to Face","Communication","Simon Fraser University","CS-001041","Burnaby, BC","Seychelle Cushing\n778-782-5822\nseychelle_cushing@sfu.ca\n",{"$f":"IFERROR(HYPERLINK(_xlfn.XLOOKUP(DeliveryServicesTable[[#This Row],[CSA '#]],CSA,Pricing_Hyperlink),\"Click Here\"),\"\")","v":"Click Here"}]
[null,"Blended Learning","Communication","Simon Fraser University","CS-001041","Burnaby, BC","Seychelle Cushing\n778-782-5822\nseychelle_cushing@sfu.ca\n",{"$f":"IFERROR(HYPERLINK(_xlfn.XLOOKUP(DeliveryServicesTable[[#This Row],[CSA '#]],CSA,Pricing_Hyperlink),\"Click Here\"),\"\")","v":"Click Here"}]
[null,"Virtual","Communication","Simon Fraser University","CS-001041","Burnaby, BC","Seychelle Cushing\n778-782-5822\nseychelle_cushing@sfu.ca\n",{"$f":"IFERROR(HYPERLINK(_xlfn.XLOOKUP(DeliveryServicesTable[[#This Row],[CSA '#]],CSA,Pricing_Hyperlink),\"Click Here\"),\"\")","v":"Click Here"}]
[null,"Face to Face","Complex Systems Modelling","Simon Fraser University","CS-001041","Burnaby, BC","Seychelle Cushing\n778-782-5822\nseychelle_cushing@sfu.ca\n",{"$f":"IFERROR(HYPERLINK(_xlfn.XLOOKUP(DeliveryServicesTable[[#This Row],[CSA '#]],CSA,Pricing_Hyperlink),\"Click Here\"),\"\")","v":"Click Here"}]
[null,"Blended Learning","Complex Systems Modelling","Simon Fraser University","CS-001041","Burnaby, BC","Seychelle Cushing\n778-782-5822\nseychelle_cushing@sfu.ca\n",{"$f":"IFERROR(HYPERLINK(_xlfn.XLOOKUP(DeliveryServicesTable[[#This Row],[CSA '#]],CSA,Pricing_Hyperlink),\"Click Here\"),\"\")","v":"Click Here"}]
[null,"Virtual","Complex Systems Modelling","Simon Fraser University","CS-001041","Burnaby, BC","Seychelle Cushing\n778-782-5822\nseychelle_cushing@sfu.ca\n",{"$f":"IFERROR(HYPERLINK(_xlfn.XLOOKUP(DeliveryServicesTable[[#This Row],[CSA '#]],CSA,Pricing_Hyperlink),\"Click Here\"),\"\")","v":"Click Here"}]
[null,"Face to Face","Computer Vision","Simon Fraser University","CS-001041","Burnaby, BC","Seychelle Cushing\n778-782-5822\nseychelle_cushing@sfu.ca\n",{"$f":"IFERROR(HYPERLINK(_xlfn.XLOOKUP(DeliveryServicesTable[[#This Row],[CSA '#]],CSA,Pricing_Hyperlink),\"Click Here\"),\"\")","v":"Click Here"}]
[null,"Blended Learning","Computer Vision","Simon Fraser University","CS-001041","Burnaby, BC","Seychelle Cushing\n778-782-5822\nseychelle_cushing@sfu.ca\n",{"$f":"IFERROR(HYPERLINK(_xlfn.XLOOKUP(DeliveryServicesTable[[#This Row],[CSA '#]],CSA,Pricing_Hyperlink),\"Click Here\"),\"\")","v":"Click Here"}]
[null,"Virtual","Computer Vision","Simon Fraser University","CS-001041","Burnaby, BC","Seychelle Cushing\n778-782-5822\nseychelle_cushing@sfu.ca\n",{"$f":"IFERROR(HYPERLINK(_xlfn.XLOOKUP(DeliveryServicesTable[[#This Row],[CSA '#]],CSA,Pricing_Hyperlink),\"Click Here\"),\"\")","v":"Click Here"}]
[null,"Face to Face","Corporate Finance","Simon Fraser University","CS-001041","Burnaby, BC","Seychelle Cushing\n778-782-5822\nseychelle_cushing@sfu.ca\n",{"$f":"IFERROR(HYPERLINK(_xlfn.XLOOKUP(DeliveryServicesTable[[#This Row],[CSA '#]],CSA,Pricing_Hyperlink),\"Click Here\"),\"\")","v":"Click Here"}]
[null,"Blended Learning","Corporate Finance","Simon Fraser University","CS-001041","Burnaby, BC","Seychelle Cushing\n778-782-5822\nseychelle_cushing@sfu.ca\n",{"$f":"IFERROR(HYPERLINK(_xlfn.XLOOKUP(DeliveryServicesTable[[#This Row],[CSA '#]],CSA,Pricing_Hyperlink),\"Click Here\"),\"\")","v":"Click Here"}]
[null,"Virtual","Corporate Finance","Simon Fraser University","CS-001041","Burnaby, BC","Seychelle Cushing\n778-782-5822\nseychelle_cushing@sfu.ca\n",{"$f":"IFERROR(HYPERLINK(_xlfn.XLOOKUP(DeliveryServicesTable[[#This Row],[CSA '#]],CSA,Pricing_Hyperlink),\"Click Here\"),\"\")","v":"Click Here"}]
[null,"Face to Face","Corporate Social Responsibility","Simon Fraser University","CS-001041","Burnaby, BC","Seychelle Cushing\n778-782-5822\nseychelle_cushing@sfu.ca\n",{"$f":"IFERROR(HYPERLINK(_xlfn.XLOOKUP(DeliveryServicesTable[[#This Row],[CSA '#]],CSA,Pricing_Hyperlink),\"Click Here\"),\"\")","v":"Click Here"}]
[null,"Blended Learning","Corporate Social Responsibility","Simon Fraser University","CS-001041","Burnaby, BC","Seychelle Cushing\n778-782-5822\nseychelle_cushing@sfu.ca\n",{"$f":"IFERROR(HYPERLINK(_xlfn.XLOOKUP(DeliveryServicesTable[[#This Row],[CSA '#]],CSA,Pricing_Hyperlink),\"Click Here\"),\"\")","v":"Click Here"}]
[null,"Virtual","Corporate Social Responsibility","Simon Fraser University","CS-001041","Burnaby, BC","Seychelle Cushing\n778-782-5822\nseychelle_cushing@sfu.ca\n",{"$f":"IFERROR(HYPERLINK(_xlfn.XLOOKUP(DeliveryServicesTable[[#This Row],[CSA '#]],CSA,Pricing_Hyperlink),\"Click Here\"),\"\")","v":"Click Here"}]
[null,"Face to Face","Credit Risk Management","Simon Fraser University","CS-001041","Burnaby, BC","Seychelle Cushing\n778-782-5822\nseychelle_cushing@sfu.ca\n",{"$f":"IFERROR(HYPERLINK(_xlfn.XLOOKUP(DeliveryServicesTable[[#This Row],[CSA '#]],CSA,Pricing_Hyperlink),\"Click Here\"),\"\")","v":"Click Here"}]
[null,"Blended Learning","Credit Risk Management","Simon Fraser University","CS-001041","Burnaby, BC","Seychelle Cushing\n778-782-5822\nseychelle_cushing@sfu.ca\n",{"$f":"IFERROR(HYPERLINK(_xlfn.XLOOKUP(DeliveryServicesTable[[#This Row],[CSA '#]],CSA,Pricing_Hyperlink),\"Click Here\"),\"\")","v":"Click Here"}]
[null,"Virtual","Credit Risk Management","Simon Fraser University","CS-001041","Burnaby, BC","Seychelle Cushing\n778-782-5822\nseychelle_cushing@sfu.ca\n",{"$f":"IFERROR(HYPERLINK(_xlfn.XLOOKUP(DeliveryServicesTable[[#This Row],[CSA '#]],CSA,Pricing_Hyperlink),\"Click Here\"),\"\")","v":"Click Here"}]
[null,"Face to Face","Critical Thinking and Problem Solving","Simon Fraser University","CS-001041","Burnaby, BC","Seychelle Cushing\n778-782-5822\nseychelle_cushing@sfu.ca\n",{"$f":"IFERROR(HYPERLINK(_xlfn.XLOOKUP(DeliveryServicesTable[[#This Row],[CSA '#]],CSA,Pricing_Hyperlink),\"Click Here\"),\"\")","v":"Click Here"}]
[null,"Blended Learning","Critical Thinking and Problem Solving","Simon Fraser University","CS-001041","Burnaby, BC","Seychelle Cushing\n778-782-5822\nseychelle_cushing@sfu.ca\n",{"$f":"IFERROR(HYPERLINK(_xlfn.XLOOKUP(DeliveryServicesTable[[#This Row],[CSA '#]],CSA,Pricing_Hyperlink),\"Click Here\"),\"\")","v":"Click Here"}]
[null,"Virtual","Critical Thinking and Problem Solving","Simon Fraser University","CS-001041","Burnaby, BC","Seychelle Cushing\n778-782-5822\nseychelle_cushing@sfu.ca\n",{"$f":"IFERROR(HYPERLINK(_xlfn.XLOOKUP(DeliveryServicesTable[[#This Row],[CSA '#]],CSA,Pricing_Hyperlink),\"Click Here\"),\"\")","v":"Click Here"}]
[null,"Face to Face","Cross Cultural Management","Simon Fraser University","CS-001041","Burnaby, BC","Seychelle Cushing\n778-782-5822\nseychelle_cushing@sfu.ca\n",{"$f":"IFERROR(HYPERLINK(_xlfn.XLOOKUP(DeliveryServicesTable[[#This Row],[CSA '#]],CSA,Pricing_Hyperlink),\"Click Here\"),\"\")","v":"Click Here"}]
[null,"Blended Learning","Cross Cultural Management","Simon Fraser University","CS-001041","Burnaby, BC","Seychelle Cushing\n778-782-5822\nseychelle_cushing@sfu.ca\n",{"$f":"IFERROR(HYPERLINK(_xlfn.XLOOKUP(DeliveryServicesTable[[#This Row],[CSA '#]],CSA,Pricing_Hyperlink),\"Click Here\"),\"\")","v":"Click Here"}]
[null,"Virtual","Cross Cultural Management","Simon Fraser University","CS-001041","Burnaby, BC","Seychelle Cushing\n778-782-5822\nseychelle_cushing@sfu.ca\n",{"$f":"IFERROR(HYPERLINK(_xlfn.XLOOKUP(DeliveryServicesTable[[#This Row],[CSA '#]],CSA,Pricing_Hyperlink),\"Click Here\"),\"\")","v":"Click Here"}]
[null,"Face to Face","Data Analytics","Simon Fraser University","CS-001041","Burnaby, BC","Seychelle Cushing\n778-782-5822\nseychelle_cushing@sfu.ca\n",{"$f":"IFERROR(HYPERLINK(_xlfn.XLOOKUP(DeliveryServicesTable[[#This Row],[CSA '#]],CSA,Pricing_Hyperlink),\"Click Here\"),\"\")","v":"Click Here"}]
[null,"Blended Learning","Data Analytics","Simon Fraser University","CS-001041","Burnaby, BC","Seychelle Cushing\n778-782-5822\nseychelle_cushing@sfu.ca\n",{"$f":"IFERROR(HYPERLINK(_xlfn.XLOOKUP(DeliveryServicesTable[[#This Row],[CSA '#]],CSA,Pricing_Hyperlink),\"Click Here\"),\"\")","v":"Click Here"}]
[null,"Virtual","Data Analytics","Simon Fraser University","CS-001041","Burnaby, BC","Seychelle Cushing\n778-782-5822\nseychelle_cushing@sfu.ca\n",{"$f":"IFERROR(HYPERLINK(_xlfn.XLOOKUP(DeliveryServicesTable[[#This Row],[CSA '#]],CSA,Pricing_Hyperlink),\"Click Here\"),\"\")","v":"Click Here"}]
[null,"Face to Face","Data and Decision-Making","Simon Fraser University","CS-001041","Burnaby, BC","Seychelle Cushing\n778-782-5822\nseychelle_cushing@sfu.ca\n",{"$f":"IFERROR(HYPERLINK(_xlfn.XLOOKUP(DeliveryServicesTable[[#This Row],[CSA '#]],CSA,Pricing_Hyperlink),\"Click Here\"),\"\")","v":"Click Here"}]
[null,"Blended Learning","Data and Decision-Making","Simon Fraser University","CS-001041","Burnaby, BC","Seychelle Cushing\n778-782-5822\nseychelle_cushing@sfu.ca\n",{"$f":"IFERROR(HYPERLINK(_xlfn.XLOOKUP(DeliveryServicesTable[[#This Row],[CSA '#]],CSA,Pricing_Hyperlink),\"Click Here\"),\"\")","v":"Click Here"}]
[null,"Virtual","Data and Decision-Making","Simon Fraser University","CS-001041","Burnaby, BC","Seychelle Cushing\n778-782-5822\nseychelle_cushing@sfu.ca\n",{"$f":"IFERROR(HYPERLINK(_xlfn.XLOOKUP(DeliveryServicesTable[[#This Row],[CSA '#]],CSA,Pricing_Hyperlink),\"Click Here\"),\"\")","v":"Click Here"}]
[null,"Face to Face","Data Cleaning","Simon Fraser University","CS-001041","Burnaby, BC","Seychelle Cushing\n778-782-5822\nseychelle_cushing@sfu.ca\n",{"$f":"IFERROR(HYPERLINK(_xlfn.XLOOKUP(DeliveryServicesTable[[#This Row],[CSA '#]],CSA,Pricing_Hyperlink),\"Click Here\"),\"\")","v":"Click Here"}]
[null,"Blended Learning","Data Cleaning","Simon Fraser University","CS-001041","Burnaby, BC","Seychelle Cushing\n778-782-5822\nseychelle_cushing@sfu.ca\n",{"$f":"IFERROR(HYPERLINK(_xlfn.XLOOKUP(DeliveryServicesTable[[#This Row],[CSA '#]],CSA,Pricing_Hyperlink),\"Click Here\"),\"\")","v":"Click Here"}]
[null,"Virtual","Data Cleaning","Simon Fraser University","CS-001041","Burnaby, BC","Seychelle Cushing\n778-782-5822\nseychelle_cushing@sfu.ca\n",{"$f":"IFERROR(HYPERLINK(_xlfn.XLOOKUP(DeliveryServicesTable[[#This Row],[CSA '#]],CSA,Pricing_Hyperlink),\"Click Here\"),\"\")","v":"Click Here"}]
[null,"Face to Face","Data Collection","Simon Fraser University","CS-001041","Burnaby, BC","Seychelle Cushing\n778-782-5822\nseychelle_cushing@sfu.ca\n",{"$f":"IFERROR(HYPERLINK(_xlfn.XLOOKUP(DeliveryServicesTable[[#This Row],[CSA '#]],CSA,Pricing_Hyperlink),\"Click Here\"),\"\")","v":"Click Here"}]
[null,"Blended Learning","Data Collection","Simon Fraser University","CS-001041","Burnaby, BC","Seychelle Cushing\n778-782-5822\nseychelle_cushing@sfu.ca\n",{"$f":"IFERROR(HYPERLINK(_xlfn.XLOOKUP(DeliveryServicesTable[[#This Row],[CSA '#]],CSA,Pricing_Hyperlink),\"Click Here\"),\"\")","v":"Click Here"}]
[null,"Virtual","Data Collection","Simon Fraser University","CS-001041","Burnaby, BC","Seychelle Cushing\n778-782-5822\nseychelle_cushing@sfu.ca\n",{"$f":"IFERROR(HYPERLINK(_xlfn.XLOOKUP(DeliveryServicesTable[[#This Row],[CSA '#]],CSA,Pricing_Hyperlink),\"Click Here\"),\"\")","v":"Click Here"}]
[null,"Face to Face","Data Conversion","Simon Fraser University","CS-001041","Burnaby, BC","Seychelle Cushing\n778-782-5822\nseychelle_cushing@sfu.ca\n",{"$f":"IFERROR(HYPERLINK(_xlfn.XLOOKUP(DeliveryServicesTable[[#This Row],[CSA '#]],CSA,Pricing_Hyperlink),\"Click Here\"),\"\")","v":"Click Here"}]
[null,"Blended Learning","Data Conversion","Simon Fraser University","CS-001041","Burnaby, BC","Seychelle Cushing\n778-782-5822\nseychelle_cushing@sfu.ca\n",{"$f":"IFERROR(HYPERLINK(_xlfn.XLOOKUP(DeliveryServicesTable[[#This Row],[CSA '#]],CSA,Pricing_Hyperlink),\"Click Here\"),\"\")","v":"Click Here"}]
[null,"Virtual","Data Conversion","Simon Fraser University","CS-001041","Burnaby, BC","Seychelle Cushing\n778-782-5822\nseychelle_cushing@sfu.ca\n",{"$f":"IFERROR(HYPERLINK(_xlfn.XLOOKUP(DeliveryServicesTable[[#This Row],[CSA '#]],CSA,Pricing_Hyperlink),\"Click Here\"),\"\")","v":"Click Here"}]
[null,"Face to Face","Data Discovery and Acquisition","Simon Fraser University","CS-001041","Burnaby, BC","Seychelle Cushing\n778-782-5822\nseychelle_cushing@sfu.ca\n",{"$f":"IFERROR(HYPERLINK(_xlfn.XLOOKUP(DeliveryServicesTable[[#This Row],[CSA '#]],CSA,Pricing_Hyperlink),\"Click Here\"),\"\")","v":"Click Here"}]
[null,"Blended Learning","Data Discovery and Acquisition","Simon Fraser University","CS-001041","Burnaby, BC","Seychelle Cushing\n778-782-5822\nseychelle_cushing@sfu.ca\n",{"$f":"IFERROR(HYPERLINK(_xlfn.XLOOKUP(DeliveryServicesTable[[#This Row],[CSA '#]],CSA,Pricing_Hyperlink),\"Click Here\"),\"\")","v":"Click Here"}]
[null,"Virtual","Data Discovery and Acquisition","Simon Fraser University","CS-001041","Burnaby, BC","Seychelle Cushing\n778-782-5822\nseychelle_cushing@sfu.ca\n",{"$f":"IFERROR(HYPERLINK(_xlfn.XLOOKUP(DeliveryServicesTable[[#This Row],[CSA '#]],CSA,Pricing_Hyperlink),\"Click Here\"),\"\")","v":"Click Here"}]
[null,"Face to Face","Data Engineering","Simon Fraser University","CS-001041","Burnaby, BC","Seychelle Cushing\n778-782-5822\nseychelle_cushing@sfu.ca\n",{"$f":"IFERROR(HYPERLINK(_xlfn.XLOOKUP(DeliveryServicesTable[[#This Row],[CSA '#]],CSA,Pricing_Hyperlink),\"Click Here\"),\"\")","v":"Click Here"}]
[null,"Blended Learning","Data Engineering","Simon Fraser University","CS-001041","Burnaby, BC","Seychelle Cushing\n778-782-5822\nseychelle_cushing@sfu.ca\n",{"$f":"IFERROR(HYPERLINK(_xlfn.XLOOKUP(DeliveryServicesTable[[#This Row],[CSA '#]],CSA,Pricing_Hyperlink),\"Click Here\"),\"\")","v":"Click Here"}]
[null,"Virtual","Data Engineering","Simon Fraser University","CS-001041","Burnaby, BC","Seychelle Cushing\n778-782-5822\nseychelle_cushing@sfu.ca\n",{"$f":"IFERROR(HYPERLINK(_xlfn.XLOOKUP(DeliveryServicesTable[[#This Row],[CSA '#]],CSA,Pricing_Hyperlink),\"Click Here\"),\"\")","v":"Click Here"}]
[null,"Face to Face","Data Ethics","Simon Fraser University","CS-001041","Burnaby, BC","Seychelle Cushing\n778-782-5822\nseychelle_cushing@sfu.ca\n",{"$f":"IFERROR(HYPERLINK(_xlfn.XLOOKUP(DeliveryServicesTable[[#This Row],[CSA '#]],CSA,Pricing_Hyperlink),\"Click Here\"),\"\")","v":"Click Here"}]
[null,"Blended Learning","Data Ethics","Simon Fraser University","CS-001041","Burnaby, BC","Seychelle Cushing\n778-782-5822\nseychelle_cushing@sfu.ca\n",{"$f":"IFERROR(HYPERLINK(_xlfn.XLOOKUP(DeliveryServicesTable[[#This Row],[CSA '#]],CSA,Pricing_Hyperlink),\"Click Here\"),\"\")","v":"Click Here"}]
[null,"Virtual","Data Ethics","Simon Fraser University","CS-001041","Burnaby, BC","Seychelle Cushing\n778-782-5822\nseychelle_cushing@sfu.ca\n",{"$f":"IFERROR(HYPERLINK(_xlfn.XLOOKUP(DeliveryServicesTable[[#This Row],[CSA '#]],CSA,Pricing_Hyperlink),\"Click Here\"),\"\")","v":"Click Here"}]
[null,"Face to Face","Data Literacy","Simon Fraser University","CS-001041","Burnaby, BC","Seychelle Cushing\n778-782-5822\nseychelle_cushing@sfu.ca\n",{"$f":"IFERROR(HYPERLINK(_xlfn.XLOOKUP(DeliveryServicesTable[[#This Row],[CSA '#]],CSA,Pricing_Hyperlink),\"Click Here\"),\"\")","v":"Click Here"}]
[null,"Blended Learning","Data Literacy","Simon Fraser University","CS-001041","Burnaby, BC","Seychelle Cushing\n778-782-5822\nseychelle_cushing@sfu.ca\n",{"$f":"IFERROR(HYPERLINK(_xlfn.XLOOKUP(DeliveryServicesTable[[#This Row],[CSA '#]],CSA,Pricing_Hyperlink),\"Click Here\"),\"\")","v":"Click Here"}]
[null,"Virtual","Data Literacy","Simon Fraser University","CS-001041","Burnaby, BC","Seychelle Cushing\n778-782-5822\nseychelle_cushing@sfu.ca\n",{"$f":"IFERROR(HYPERLINK(_xlfn.XLOOKUP(DeliveryServicesTable[[#This Row],[CSA '#]],CSA,Pricing_Hyperlink),\"Click Here\"),\"\")","v":"Click Here"}]
[null,"Face to Face","Data Management","Simon Fraser University","CS-001041","Burnaby, BC","Seychelle Cushing\n778-782-5822\nseychelle_cushing@sfu.ca\n",{"$f":"IFERROR(HYPERLINK(_xlfn.XLOOKUP(DeliveryServicesTable[[#This Row],[CSA '#]],CSA,Pricing_Hyperlink),\"Click Here\"),\"\")","v":"Click Here"}]
[null,"Blended Learning","Data Management","Simon Fraser University","CS-001041","Burnaby, BC","Seychelle Cushing\n778-782-5822\nseychelle_cushing@sfu.ca\n",{"$f":"IFERROR(HYPERLINK(_xlfn.XLOOKUP(DeliveryServicesTable[[#This Row],[CSA '#]],CSA,Pricing_Hyperlink),\"Click Here\"),\"\")","v":"Click Here"}]
[null,"Virtual","Data Management","Simon Fraser University","CS-001041","Burnaby, BC","Seychelle Cushing\n778-782-5822\nseychelle_cushing@sfu.ca\n",{"$f":"IFERROR(HYPERLINK(_xlfn.XLOOKUP(DeliveryServicesTable[[#This Row],[CSA '#]],CSA,Pricing_Hyperlink),\"Click Here\"),\"\")","v":"Click Here"}]
[null,"Face to Face","Data Manipulation","Simon Fraser University","CS-001041","Burnaby, BC","Seychelle Cushing\n778-782-5822\nseychelle_cushing@sfu.ca\n",{"$f":"IFERROR(HYPERLINK(_xlfn.XLOOKUP(DeliveryServicesTable[[#This Row],[CSA '#]],CSA,Pricing_Hyperlink),\"Click Here\"),\"\")","v":"Click Here"}]
[null,"Blended Learning","Data Manipulation","Simon Fraser University","CS-001041","Burnaby, BC","Seychelle Cushing\n778-782-5822\nseychelle_cushing@sfu.ca\n",{"$f":"IFERROR(HYPERLINK(_xlfn.XLOOKUP(DeliveryServicesTable[[#This Row],[CSA '#]],CSA,Pricing_Hyperlink),\"Click Here\"),\"\")","v":"Click Here"}]
[null,"Virtual","Data Manipulation","Simon Fraser University","CS-001041","Burnaby, BC","Seychelle Cushing\n778-782-5822\nseychelle_cushing@sfu.ca\n",{"$f":"IFERROR(HYPERLINK(_xlfn.XLOOKUP(DeliveryServicesTable[[#This Row],[CSA '#]],CSA,Pricing_Hyperlink),\"Click Here\"),\"\")","v":"Click Here"}]
[null,"Face to Face","Data Mining","Simon Fraser University","CS-001041","Burnaby, BC","Seychelle Cushing\n778-782-5822\nseychelle_cushing@sfu.ca\n",{"$f":"IFERROR(HYPERLINK(_xlfn.XLOOKUP(DeliveryServicesTable[[#This Row],[CSA '#]],CSA,Pricing_Hyperlink),\"Click Here\"),\"\")","v":"Click Here"}]
[null,"Blended Learning","Data Mining","Simon Fraser University","CS-001041","Burnaby, BC","Seychelle Cushing\n778-782-5822\nseychelle_cushing@sfu.ca\n",{"$f":"IFERROR(HYPERLINK(_xlfn.XLOOKUP(DeliveryServicesTable[[#This Row],[CSA '#]],CSA,Pricing_Hyperlink),\"Click Here\"),\"\")","v":"Click Here"}]
[null,"Virtual","Data Mining","Simon Fraser University","CS-001041","Burnaby, BC","Seychelle Cushing\n778-782-5822\nseychelle_cushing@sfu.ca\n",{"$f":"IFERROR(HYPERLINK(_xlfn.XLOOKUP(DeliveryServicesTable[[#This Row],[CSA '#]],CSA,Pricing_Hyperlink),\"Click Here\"),\"\")","v":"Click Here"}]
[null,"Face to Face","Data Pre-processing","Simon Fraser University","CS-001041","Burnaby, BC","Seychelle Cushing\n778-782-5822\nseychelle_cushing@sfu.ca\n",{"$f":"IFERROR(HYPERLINK(_xlfn.XLOOKUP(DeliveryServicesTable[[#This Row],[CSA '#]],CSA,Pricing_Hyperlink),\"Click Here\"),\"\")","v":"Click Here"}]
[null,"Blended Learning","Data Pre-processing","Simon Fraser University","CS-001041","Burnaby, BC","Seychelle Cushing\n778-782-5822\nseychelle_cushing@sfu.ca\n",{"$f":"IFERROR(HYPERLINK(_xlfn.XLOOKUP(DeliveryServicesTable[[#This Row],[CSA '#]],CSA,Pricing_Hyperlink),\"Click Here\"),\"\")","v":"Click Here"}]
[null,"Virtual","Data Pre-processing","Simon Fraser University","CS-001041","Burnaby, BC","Seychelle Cushing\n778-782-5822\nseychelle_cushing@sfu.ca\n",{"$f":"IFERROR(HYPERLINK(_xlfn.XLOOKUP(DeliveryServicesTable[[#This Row],[CSA '#]],CSA,Pricing_Hyperlink),\"Click Here\"),\"\")","v":"Click Here"}]
[null,"Face to Face","Data Science Tools","Simon Fraser University","CS-001041","Burnaby, BC","Seychelle Cushing\n778-782-5822\nseychelle_cushing@sfu.ca\n",{"$f":"IFERROR(HYPERLINK(_xlfn.XLOOKUP(DeliveryServicesTable[[#This Row],[CSA '#]],CSA,Pricing_Hyperlink),\"Click Here\"),\"\")","v":"Click Here"}]
[null,"Blended Learning","Data Science Tools","Simon Fraser University","CS-001041","Burnaby, BC","Seychelle Cushing\n778-782-5822\nseychelle_cushing@sfu.ca\n",{"$f":"IFERROR(HYPERLINK(_xlfn.XLOOKUP(DeliveryServicesTable[[#This Row],[CSA '#]],CSA,Pricing_Hyperlink),\"Click Here\"),\"\")","v":"Click Here"}]
[null,"Virtual","Data Science Tools","Simon Fraser University","CS-001041","Burnaby, BC","Seychelle Cushing\n778-782-5822\nseychelle_cushing@sfu.ca\n",{"$f":"IFERROR(HYPERLINK(_xlfn.XLOOKUP(DeliveryServicesTable[[#This Row],[CSA '#]],CSA,Pricing_Hyperlink),\"Click Here\"),\"\")","v":"Click Here"}]
[null,"Face to Face","Data Security","Simon Fraser University","CS-001041","Burnaby, BC","Seychelle Cushing\n778-782-5822\nseychelle_cushing@sfu.ca\n",{"$f":"IFERROR(HYPERLINK(_xlfn.XLOOKUP(DeliveryServicesTable[[#This Row],[CSA '#]],CSA,Pricing_Hyperlink),\"Click Here\"),\"\")","v":"Click Here"}]
[null,"Blended Learning","Data Security","Simon Fraser University","CS-001041","Burnaby, BC","Seychelle Cushing\n778-782-5822\nseychelle_cushing@sfu.ca\n",{"$f":"IFERROR(HYPERLINK(_xlfn.XLOOKUP(DeliveryServicesTable[[#This Row],[CSA '#]],CSA,Pricing_Hyperlink),\"Click Here\"),\"\")","v":"Click Here"}]
[null,"Virtual","Data Security","Simon Fraser University","CS-001041","Burnaby, BC","Seychelle Cushing\n778-782-5822\nseychelle_cushing@sfu.ca\n",{"$f":"IFERROR(HYPERLINK(_xlfn.XLOOKUP(DeliveryServicesTable[[#This Row],[CSA '#]],CSA,Pricing_Hyperlink),\"Click Here\"),\"\")","v":"Click Here"}]
[null,"Face to Face","Data Storytelling","Simon Fraser University","CS-001041","Burnaby, BC","Seychelle Cushing\n778-782-5822\nseychelle_cushing@sfu.ca\n",{"$f":"IFERROR(HYPERLINK(_xlfn.XLOOKUP(DeliveryServicesTable[[#This Row],[CSA '#]],CSA,Pricing_Hyperlink),\"Click Here\"),\"\")","v":"Click Here"}]
[null,"Blended Learning","Data Storytelling","Simon Fraser University","CS-001041","Burnaby, BC","Seychelle Cushing\n778-782-5822\nseychelle_cushing@sfu.ca\n",{"$f":"IFERROR(HYPERLINK(_xlfn.XLOOKUP(DeliveryServicesTable[[#This Row],[CSA '#]],CSA,Pricing_Hyperlink),\"Click Here\"),\"\")","v":"Click Here"}]
[null,"Virtual","Data Storytelling","Simon Fraser University","CS-001041","Burnaby, BC","Seychelle Cushing\n778-782-5822\nseychelle_cushing@sfu.ca\n",{"$f":"IFERROR(HYPERLINK(_xlfn.XLOOKUP(DeliveryServicesTable[[#This Row],[CSA '#]],CSA,Pricing_Hyperlink),\"Click Here\"),\"\")","v":"Click Here"}]
[null,"Face to Face","Data Visualization","Simon Fraser University","CS-001041","Burnaby, BC","Seychelle Cushing\n778-782-5822\nseychelle_cushing@sfu.ca\n",{"$f":"IFERROR(HYPERLINK(_xlfn.XLOOKUP(DeliveryServicesTable[[#This Row],[CSA '#]],CSA,Pricing_Hyperlink),\"Click Here\"),\"\")","v":"Click Here"}]
[null,"Blended Learning","Data Visualization","Simon Fraser University","CS-001041","Burnaby, BC","Seychelle Cushing\n778-782-5822\nseychelle_cushing@sfu.ca\n",{"$f":"IFERROR(HYPERLINK(_xlfn.XLOOKUP(DeliveryServicesTable[[#This Row],[CSA '#]],CSA,Pricing_Hyperlink),\"Click Here\"),\"\")","v":"Click Here"}]
[null,"Virtual","Data Visualization","Simon Fraser University","CS-001041","Burnaby, BC","Seychelle Cushing\n778-782-5822\nseychelle_cushing@sfu.ca\n",{"$f":"IFERROR(HYPERLINK(_xlfn.XLOOKUP(DeliveryServicesTable[[#This Row],[CSA '#]],CSA,Pricing_Hyperlink),\"Click Here\"),\"\")","v":"Click Here"}]
[null,"Face to Face","Data Visualization & Visual Analytics","Simon Fraser University","CS-001041","Burnaby, BC","Seychelle Cushing\n778-782-5822\nseychelle_cushing@sfu.ca\n",{"$f":"IFERROR(HYPERLINK(_xlfn.XLOOKUP(DeliveryServicesTable[[#This Row],[CSA '#]],CSA,Pricing_Hyperlink),\"Click Here\"),\"\")","v":"Click Here"}]
[null,"Blended Learning","Data Visualization & Visual Analytics","Simon Fraser University","CS-001041","Burnaby, BC","Seychelle Cushing\n778-782-5822\nseychelle_cushing@sfu.ca\n",{"$f":"IFERROR(HYPERLINK(_xlfn.XLOOKUP(DeliveryServicesTable[[#This Row],[CSA '#]],CSA,Pricing_Hyperlink),\"Click Here\"),\"\")","v":"Click Here"}]
[null,"Virtual","Data Visualization & Visual Analytics","Simon Fraser University","CS-001041","Burnaby, BC","Seychelle Cushing\n778-782-5822\nseychelle_cushing@sfu.ca\n",{"$f":"IFERROR(HYPERLINK(_xlfn.XLOOKUP(DeliveryServicesTable[[#This Row],[CSA '#]],CSA,Pricing_Hyperlink),\"Click Here\"),\"\")","v":"Click Here"}]
[null,"Face to Face","Database Design","Simon Fraser University","CS-001041","Burnaby, BC","Seychelle Cushing\n778-782-5822\nseychelle_cushing@sfu.ca\n",{"$f":"IFERROR(HYPERLINK(_xlfn.XLOOKUP(DeliveryServicesTable[[#This Row],[CSA '#]],CSA,Pricing_Hyperlink),\"Click Here\"),\"\")","v":"Click Here"}]
[null,"Blended Learning","Database Design","Simon Fraser University","CS-001041","Burnaby, BC","Seychelle Cushing\n778-782-5822\nseychelle_cushing@sfu.ca\n",{"$f":"IFERROR(HYPERLINK(_xlfn.XLOOKUP(DeliveryServicesTable[[#This Row],[CSA '#]],CSA,Pricing_Hyperlink),\"Click Here\"),\"\")","v":"Click Here"}]
[null,"Virtual","Database Design","Simon Fraser University","CS-001041","Burnaby, BC","Seychelle Cushing\n778-782-5822\nseychelle_cushing@sfu.ca\n",{"$f":"IFERROR(HYPERLINK(_xlfn.XLOOKUP(DeliveryServicesTable[[#This Row],[CSA '#]],CSA,Pricing_Hyperlink),\"Click Here\"),\"\")","v":"Click Here"}]
[null,"Face to Face","Databases","Simon Fraser University","CS-001041","Burnaby, BC","Seychelle Cushing\n778-782-5822\nseychelle_cushing@sfu.ca\n",{"$f":"IFERROR(HYPERLINK(_xlfn.XLOOKUP(DeliveryServicesTable[[#This Row],[CSA '#]],CSA,Pricing_Hyperlink),\"Click Here\"),\"\")","v":"Click Here"}]
[null,"Blended Learning","Databases","Simon Fraser University","CS-001041","Burnaby, BC","Seychelle Cushing\n778-782-5822\nseychelle_cushing@sfu.ca\n",{"$f":"IFERROR(HYPERLINK(_xlfn.XLOOKUP(DeliveryServicesTable[[#This Row],[CSA '#]],CSA,Pricing_Hyperlink),\"Click Here\"),\"\")","v":"Click Here"}]
[null,"Virtual","Databases","Simon Fraser University","CS-001041","Burnaby, BC","Seychelle Cushing\n778-782-5822\nseychelle_cushing@sfu.ca\n",{"$f":"IFERROR(HYPERLINK(_xlfn.XLOOKUP(DeliveryServicesTable[[#This Row],[CSA '#]],CSA,Pricing_Hyperlink),\"Click Here\"),\"\")","v":"Click Here"}]
[null,"Face to Face","Data-informed Decision Making","Simon Fraser University","CS-001041","Burnaby, BC","Seychelle Cushing\n778-782-5822\nseychelle_cushing@sfu.ca\n",{"$f":"IFERROR(HYPERLINK(_xlfn.XLOOKUP(DeliveryServicesTable[[#This Row],[CSA '#]],CSA,Pricing_Hyperlink),\"Click Here\"),\"\")","v":"Click Here"}]
[null,"Blended Learning","Data-informed Decision Making","Simon Fraser University","CS-001041","Burnaby, BC","Seychelle Cushing\n778-782-5822\nseychelle_cushing@sfu.ca\n",{"$f":"IFERROR(HYPERLINK(_xlfn.XLOOKUP(DeliveryServicesTable[[#This Row],[CSA '#]],CSA,Pricing_Hyperlink),\"Click Here\"),\"\")","v":"Click Here"}]
[null,"Virtual","Data-informed Decision Making","Simon Fraser University","CS-001041","Burnaby, BC","Seychelle Cushing\n778-782-5822\nseychelle_cushing@sfu.ca\n",{"$f":"IFERROR(HYPERLINK(_xlfn.XLOOKUP(DeliveryServicesTable[[#This Row],[CSA '#]],CSA,Pricing_Hyperlink),\"Click Here\"),\"\")","v":"Click Here"}]
[null,"Face to Face","Derivative Securities","Simon Fraser University","CS-001041","Burnaby, BC","Seychelle Cushing\n778-782-5822\nseychelle_cushing@sfu.ca\n",{"$f":"IFERROR(HYPERLINK(_xlfn.XLOOKUP(DeliveryServicesTable[[#This Row],[CSA '#]],CSA,Pricing_Hyperlink),\"Click Here\"),\"\")","v":"Click Here"}]
[null,"Blended Learning","Derivative Securities","Simon Fraser University","CS-001041","Burnaby, BC","Seychelle Cushing\n778-782-5822\nseychelle_cushing@sfu.ca\n",{"$f":"IFERROR(HYPERLINK(_xlfn.XLOOKUP(DeliveryServicesTable[[#This Row],[CSA '#]],CSA,Pricing_Hyperlink),\"Click Here\"),\"\")","v":"Click Here"}]
[null,"Virtual","Derivative Securities","Simon Fraser University","CS-001041","Burnaby, BC","Seychelle Cushing\n778-782-5822\nseychelle_cushing@sfu.ca\n",{"$f":"IFERROR(HYPERLINK(_xlfn.XLOOKUP(DeliveryServicesTable[[#This Row],[CSA '#]],CSA,Pricing_Hyperlink),\"Click Here\"),\"\")","v":"Click Here"}]
[null,"Face to Face","Ensuring Quality of Data and Sources","Simon Fraser University","CS-001041","Burnaby, BC","Seychelle Cushing\n778-782-5822\nseychelle_cushing@sfu.ca\n",{"$f":"IFERROR(HYPERLINK(_xlfn.XLOOKUP(DeliveryServicesTable[[#This Row],[CSA '#]],CSA,Pricing_Hyperlink),\"Click Here\"),\"\")","v":"Click Here"}]
[null,"Blended Learning","Ensuring Quality of Data and Sources","Simon Fraser University","CS-001041","Burnaby, BC","Seychelle Cushing\n778-782-5822\nseychelle_cushing@sfu.ca\n",{"$f":"IFERROR(HYPERLINK(_xlfn.XLOOKUP(DeliveryServicesTable[[#This Row],[CSA '#]],CSA,Pricing_Hyperlink),\"Click Here\"),\"\")","v":"Click Here"}]
[null,"Virtual","Ensuring Quality of Data and Sources","Simon Fraser University","CS-001041","Burnaby, BC","Seychelle Cushing\n778-782-5822\nseychelle_cushing@sfu.ca\n",{"$f":"IFERROR(HYPERLINK(_xlfn.XLOOKUP(DeliveryServicesTable[[#This Row],[CSA '#]],CSA,Pricing_Hyperlink),\"Click Here\"),\"\")","v":"Click Here"}]
[null,"Face to Face","Enterprise Risk Management","Simon Fraser University","CS-001041","Burnaby, BC","Seychelle Cushing\n778-782-5822\nseychelle_cushing@sfu.ca\n",{"$f":"IFERROR(HYPERLINK(_xlfn.XLOOKUP(DeliveryServicesTable[[#This Row],[CSA '#]],CSA,Pricing_Hyperlink),\"Click Here\"),\"\")","v":"Click Here"}]
[null,"Blended Learning","Enterprise Risk Management","Simon Fraser University","CS-001041","Burnaby, BC","Seychelle Cushing\n778-782-5822\nseychelle_cushing@sfu.ca\n",{"$f":"IFERROR(HYPERLINK(_xlfn.XLOOKUP(DeliveryServicesTable[[#This Row],[CSA '#]],CSA,Pricing_Hyperlink),\"Click Here\"),\"\")","v":"Click Here"}]
[null,"Virtual","Enterprise Risk Management","Simon Fraser University","CS-001041","Burnaby, BC","Seychelle Cushing\n778-782-5822\nseychelle_cushing@sfu.ca\n",{"$f":"IFERROR(HYPERLINK(_xlfn.XLOOKUP(DeliveryServicesTable[[#This Row],[CSA '#]],CSA,Pricing_Hyperlink),\"Click Here\"),\"\")","v":"Click Here"}]
[null,"Face to Face","Enterprise Strategic Risk Management","Simon Fraser University","CS-001041","Burnaby, BC","Seychelle Cushing\n778-782-5822\nseychelle_cushing@sfu.ca\n",{"$f":"IFERROR(HYPERLINK(_xlfn.XLOOKUP(DeliveryServicesTable[[#This Row],[CSA '#]],CSA,Pricing_Hyperlink),\"Click Here\"),\"\")","v":"Click Here"}]
[null,"Blended Learning","Enterprise Strategic Risk Management","Simon Fraser University","CS-001041","Burnaby, BC","Seychelle Cushing\n778-782-5822\nseychelle_cushing@sfu.ca\n",{"$f":"IFERROR(HYPERLINK(_xlfn.XLOOKUP(DeliveryServicesTable[[#This Row],[CSA '#]],CSA,Pricing_Hyperlink),\"Click Here\"),\"\")","v":"Click Here"}]
[null,"Virtual","Enterprise Strategic Risk Management","Simon Fraser University","CS-001041","Burnaby, BC","Seychelle Cushing\n778-782-5822\nseychelle_cushing@sfu.ca\n",{"$f":"IFERROR(HYPERLINK(_xlfn.XLOOKUP(DeliveryServicesTable[[#This Row],[CSA '#]],CSA,Pricing_Hyperlink),\"Click Here\"),\"\")","v":"Click Here"}]
[null,"Face to Face","Entrepreneurial Finance","Simon Fraser University","CS-001041","Burnaby, BC","Seychelle Cushing\n778-782-5822\nseychelle_cushing@sfu.ca\n",{"$f":"IFERROR(HYPERLINK(_xlfn.XLOOKUP(DeliveryServicesTable[[#This Row],[CSA '#]],CSA,Pricing_Hyperlink),\"Click Here\"),\"\")","v":"Click Here"}]
[null,"Blended Learning","Entrepreneurial Finance","Simon Fraser University","CS-001041","Burnaby, BC","Seychelle Cushing\n778-782-5822\nseychelle_cushing@sfu.ca\n",{"$f":"IFERROR(HYPERLINK(_xlfn.XLOOKUP(DeliveryServicesTable[[#This Row],[CSA '#]],CSA,Pricing_Hyperlink),\"Click Here\"),\"\")","v":"Click Here"}]
[null,"Virtual","Entrepreneurial Finance","Simon Fraser University","CS-001041","Burnaby, BC","Seychelle Cushing\n778-782-5822\nseychelle_cushing@sfu.ca\n",{"$f":"IFERROR(HYPERLINK(_xlfn.XLOOKUP(DeliveryServicesTable[[#This Row],[CSA '#]],CSA,Pricing_Hyperlink),\"Click Here\"),\"\")","v":"Click Here"}]
[null,"Face to Face","Entrepreneurship","Simon Fraser University","CS-001041","Burnaby, BC","Seychelle Cushing\n778-782-5822\nseychelle_cushing@sfu.ca\n",{"$f":"IFERROR(HYPERLINK(_xlfn.XLOOKUP(DeliveryServicesTable[[#This Row],[CSA '#]],CSA,Pricing_Hyperlink),\"Click Here\"),\"\")","v":"Click Here"}]
[null,"Blended Learning","Entrepreneurship","Simon Fraser University","CS-001041","Burnaby, BC","Seychelle Cushing\n778-782-5822\nseychelle_cushing@sfu.ca\n",{"$f":"IFERROR(HYPERLINK(_xlfn.XLOOKUP(DeliveryServicesTable[[#This Row],[CSA '#]],CSA,Pricing_Hyperlink),\"Click Here\"),\"\")","v":"Click Here"}]
[null,"Virtual","Entrepreneurship","Simon Fraser University","CS-001041","Burnaby, BC","Seychelle Cushing\n778-782-5822\nseychelle_cushing@sfu.ca\n",{"$f":"IFERROR(HYPERLINK(_xlfn.XLOOKUP(DeliveryServicesTable[[#This Row],[CSA '#]],CSA,Pricing_Hyperlink),\"Click Here\"),\"\")","v":"Click Here"}]
[null,"Face to Face","Equity Security Analysis and Management","Simon Fraser University","CS-001041","Burnaby, BC","Seychelle Cushing\n778-782-5822\nseychelle_cushing@sfu.ca\n",{"$f":"IFERROR(HYPERLINK(_xlfn.XLOOKUP(DeliveryServicesTable[[#This Row],[CSA '#]],CSA,Pricing_Hyperlink),\"Click Here\"),\"\")","v":"Click Here"}]
[null,"Blended Learning","Equity Security Analysis and Management","Simon Fraser University","CS-001041","Burnaby, BC","Seychelle Cushing\n778-782-5822\nseychelle_cushing@sfu.ca\n",{"$f":"IFERROR(HYPERLINK(_xlfn.XLOOKUP(DeliveryServicesTable[[#This Row],[CSA '#]],CSA,Pricing_Hyperlink),\"Click Here\"),\"\")","v":"Click Here"}]
[null,"Virtual","Equity Security Analysis and Management","Simon Fraser University","CS-001041","Burnaby, BC","Seychelle Cushing\n778-782-5822\nseychelle_cushing@sfu.ca\n",{"$f":"IFERROR(HYPERLINK(_xlfn.XLOOKUP(DeliveryServicesTable[[#This Row],[CSA '#]],CSA,Pricing_Hyperlink),\"Click Here\"),\"\")","v":"Click Here"}]
[null,"Face to Face","Ethics","Simon Fraser University","CS-001041","Burnaby, BC","Seychelle Cushing\n778-782-5822\nseychelle_cushing@sfu.ca\n",{"$f":"IFERROR(HYPERLINK(_xlfn.XLOOKUP(DeliveryServicesTable[[#This Row],[CSA '#]],CSA,Pricing_Hyperlink),\"Click Here\"),\"\")","v":"Click Here"}]
[null,"Blended Learning","Ethics","Simon Fraser University","CS-001041","Burnaby, BC","Seychelle Cushing\n778-782-5822\nseychelle_cushing@sfu.ca\n",{"$f":"IFERROR(HYPERLINK(_xlfn.XLOOKUP(DeliveryServicesTable[[#This Row],[CSA '#]],CSA,Pricing_Hyperlink),\"Click Here\"),\"\")","v":"Click Here"}]
[null,"Virtual","Ethics","Simon Fraser University","CS-001041","Burnaby, BC","Seychelle Cushing\n778-782-5822\nseychelle_cushing@sfu.ca\n",{"$f":"IFERROR(HYPERLINK(_xlfn.XLOOKUP(DeliveryServicesTable[[#This Row],[CSA '#]],CSA,Pricing_Hyperlink),\"Click Here\"),\"\")","v":"Click Here"}]
[null,"Face to Face","Evaluating Data and Sources","Simon Fraser University","CS-001041","Burnaby, BC","Seychelle Cushing\n778-782-5822\nseychelle_cushing@sfu.ca\n",{"$f":"IFERROR(HYPERLINK(_xlfn.XLOOKUP(DeliveryServicesTable[[#This Row],[CSA '#]],CSA,Pricing_Hyperlink),\"Click Here\"),\"\")","v":"Click Here"}]
[null,"Blended Learning","Evaluating Data and Sources","Simon Fraser University","CS-001041","Burnaby, BC","Seychelle Cushing\n778-782-5822\nseychelle_cushing@sfu.ca\n",{"$f":"IFERROR(HYPERLINK(_xlfn.XLOOKUP(DeliveryServicesTable[[#This Row],[CSA '#]],CSA,Pricing_Hyperlink),\"Click Here\"),\"\")","v":"Click Here"}]
[null,"Virtual","Evaluating Data and Sources","Simon Fraser University","CS-001041","Burnaby, BC","Seychelle Cushing\n778-782-5822\nseychelle_cushing@sfu.ca\n",{"$f":"IFERROR(HYPERLINK(_xlfn.XLOOKUP(DeliveryServicesTable[[#This Row],[CSA '#]],CSA,Pricing_Hyperlink),\"Click Here\"),\"\")","v":"Click Here"}]
[null,"Face to Face","Finance","Simon Fraser University","CS-001041","Burnaby, BC","Seychelle Cushing\n778-782-5822\nseychelle_cushing@sfu.ca\n",{"$f":"IFERROR(HYPERLINK(_xlfn.XLOOKUP(DeliveryServicesTable[[#This Row],[CSA '#]],CSA,Pricing_Hyperlink),\"Click Here\"),\"\")","v":"Click Here"}]
[null,"Blended Learning","Finance","Simon Fraser University","CS-001041","Burnaby, BC","Seychelle Cushing\n778-782-5822\nseychelle_cushing@sfu.ca\n",{"$f":"IFERROR(HYPERLINK(_xlfn.XLOOKUP(DeliveryServicesTable[[#This Row],[CSA '#]],CSA,Pricing_Hyperlink),\"Click Here\"),\"\")","v":"Click Here"}]
[null,"Virtual","Finance","Simon Fraser University","CS-001041","Burnaby, BC","Seychelle Cushing\n778-782-5822\nseychelle_cushing@sfu.ca\n",{"$f":"IFERROR(HYPERLINK(_xlfn.XLOOKUP(DeliveryServicesTable[[#This Row],[CSA '#]],CSA,Pricing_Hyperlink),\"Click Here\"),\"\")","v":"Click Here"}]
[null,"Face to Face","Financial Econometrics","Simon Fraser University","CS-001041","Burnaby, BC","Seychelle Cushing\n778-782-5822\nseychelle_cushing@sfu.ca\n",{"$f":"IFERROR(HYPERLINK(_xlfn.XLOOKUP(DeliveryServicesTable[[#This Row],[CSA '#]],CSA,Pricing_Hyperlink),\"Click Here\"),\"\")","v":"Click Here"}]
[null,"Blended Learning","Financial Econometrics","Simon Fraser University","CS-001041","Burnaby, BC","Seychelle Cushing\n778-782-5822\nseychelle_cushing@sfu.ca\n",{"$f":"IFERROR(HYPERLINK(_xlfn.XLOOKUP(DeliveryServicesTable[[#This Row],[CSA '#]],CSA,Pricing_Hyperlink),\"Click Here\"),\"\")","v":"Click Here"}]
[null,"Virtual","Financial Econometrics","Simon Fraser University","CS-001041","Burnaby, BC","Seychelle Cushing\n778-782-5822\nseychelle_cushing@sfu.ca\n",{"$f":"IFERROR(HYPERLINK(_xlfn.XLOOKUP(DeliveryServicesTable[[#This Row],[CSA '#]],CSA,Pricing_Hyperlink),\"Click Here\"),\"\")","v":"Click Here"}]
[null,"Face to Face","Financial Economics","Simon Fraser University","CS-001041","Burnaby, BC","Seychelle Cushing\n778-782-5822\nseychelle_cushing@sfu.ca\n",{"$f":"IFERROR(HYPERLINK(_xlfn.XLOOKUP(DeliveryServicesTable[[#This Row],[CSA '#]],CSA,Pricing_Hyperlink),\"Click Here\"),\"\")","v":"Click Here"}]
[null,"Blended Learning","Financial Economics","Simon Fraser University","CS-001041","Burnaby, BC","Seychelle Cushing\n778-782-5822\nseychelle_cushing@sfu.ca\n",{"$f":"IFERROR(HYPERLINK(_xlfn.XLOOKUP(DeliveryServicesTable[[#This Row],[CSA '#]],CSA,Pricing_Hyperlink),\"Click Here\"),\"\")","v":"Click Here"}]
[null,"Virtual","Financial Economics","Simon Fraser University","CS-001041","Burnaby, BC","Seychelle Cushing\n778-782-5822\nseychelle_cushing@sfu.ca\n",{"$f":"IFERROR(HYPERLINK(_xlfn.XLOOKUP(DeliveryServicesTable[[#This Row],[CSA '#]],CSA,Pricing_Hyperlink),\"Click Here\"),\"\")","v":"Click Here"}]
[null,"Face to Face","Financial Literacy for Non-Finance Pros","Simon Fraser University","CS-001041","Burnaby, BC","Seychelle Cushing\n778-782-5822\nseychelle_cushing@sfu.ca\n",{"$f":"IFERROR(HYPERLINK(_xlfn.XLOOKUP(DeliveryServicesTable[[#This Row],[CSA '#]],CSA,Pricing_Hyperlink),\"Click Here\"),\"\")","v":"Click Here"}]
[null,"Blended Learning","Financial Literacy for Non-Finance Pros","Simon Fraser University","CS-001041","Burnaby, BC","Seychelle Cushing\n778-782-5822\nseychelle_cushing@sfu.ca\n",{"$f":"IFERROR(HYPERLINK(_xlfn.XLOOKUP(DeliveryServicesTable[[#This Row],[CSA '#]],CSA,Pricing_Hyperlink),\"Click Here\"),\"\")","v":"Click Here"}]
[null,"Virtual","Financial Literacy for Non-Finance Pros","Simon Fraser University","CS-001041","Burnaby, BC","Seychelle Cushing\n778-782-5822\nseychelle_cushing@sfu.ca\n",{"$f":"IFERROR(HYPERLINK(_xlfn.XLOOKUP(DeliveryServicesTable[[#This Row],[CSA '#]],CSA,Pricing_Hyperlink),\"Click Here\"),\"\")","v":"Click Here"}]
[null,"Face to Face","Financial Modeling","Simon Fraser University","CS-001041","Burnaby, BC","Seychelle Cushing\n778-782-5822\nseychelle_cushing@sfu.ca\n",{"$f":"IFERROR(HYPERLINK(_xlfn.XLOOKUP(DeliveryServicesTable[[#This Row],[CSA '#]],CSA,Pricing_Hyperlink),\"Click Here\"),\"\")","v":"Click Here"}]
[null,"Blended Learning","Financial Modeling","Simon Fraser University","CS-001041","Burnaby, BC","Seychelle Cushing\n778-782-5822\nseychelle_cushing@sfu.ca\n",{"$f":"IFERROR(HYPERLINK(_xlfn.XLOOKUP(DeliveryServicesTable[[#This Row],[CSA '#]],CSA,Pricing_Hyperlink),\"Click Here\"),\"\")","v":"Click Here"}]
[null,"Virtual","Financial Modeling","Simon Fraser University","CS-001041","Burnaby, BC","Seychelle Cushing\n778-782-5822\nseychelle_cushing@sfu.ca\n",{"$f":"IFERROR(HYPERLINK(_xlfn.XLOOKUP(DeliveryServicesTable[[#This Row],[CSA '#]],CSA,Pricing_Hyperlink),\"Click Here\"),\"\")","v":"Click Here"}]
[null,"Face to Face","Financial Statement Analysis","Simon Fraser University","CS-001041","Burnaby, BC","Seychelle Cushing\n778-782-5822\nseychelle_cushing@sfu.ca\n",{"$f":"IFERROR(HYPERLINK(_xlfn.XLOOKUP(DeliveryServicesTable[[#This Row],[CSA '#]],CSA,Pricing_Hyperlink),\"Click Here\"),\"\")","v":"Click Here"}]
[null,"Blended Learning","Financial Statement Analysis","Simon Fraser University","CS-001041","Burnaby, BC","Seychelle Cushing\n778-782-5822\nseychelle_cushing@sfu.ca\n",{"$f":"IFERROR(HYPERLINK(_xlfn.XLOOKUP(DeliveryServicesTable[[#This Row],[CSA '#]],CSA,Pricing_Hyperlink),\"Click Here\"),\"\")","v":"Click Here"}]
[null,"Virtual","Financial Statement Analysis","Simon Fraser University","CS-001041","Burnaby, BC","Seychelle Cushing\n778-782-5822\nseychelle_cushing@sfu.ca\n",{"$f":"IFERROR(HYPERLINK(_xlfn.XLOOKUP(DeliveryServicesTable[[#This Row],[CSA '#]],CSA,Pricing_Hyperlink),\"Click Here\"),\"\")","v":"Click Here"}]
[null,"Face to Face","Financing the New Venture","Simon Fraser University","CS-001041","Burnaby, BC","Seychelle Cushing\n778-782-5822\nseychelle_cushing@sfu.ca\n",{"$f":"IFERROR(HYPERLINK(_xlfn.XLOOKUP(DeliveryServicesTable[[#This Row],[CSA '#]],CSA,Pricing_Hyperlink),\"Click Here\"),\"\")","v":"Click Here"}]
[null,"Blended Learning","Financing the New Venture","Simon Fraser University","CS-001041","Burnaby, BC","Seychelle Cushing\n778-782-5822\nseychelle_cushing@sfu.ca\n",{"$f":"IFERROR(HYPERLINK(_xlfn.XLOOKUP(DeliveryServicesTable[[#This Row],[CSA '#]],CSA,Pricing_Hyperlink),\"Click Here\"),\"\")","v":"Click Here"}]
[null,"Virtual","Financing the New Venture","Simon Fraser University","CS-001041","Burnaby, BC","Seychelle Cushing\n778-782-5822\nseychelle_cushing@sfu.ca\n",{"$f":"IFERROR(HYPERLINK(_xlfn.XLOOKUP(DeliveryServicesTable[[#This Row],[CSA '#]],CSA,Pricing_Hyperlink),\"Click Here\"),\"\")","v":"Click Here"}]
[null,"Face to Face","Financing the Organization","Simon Fraser University","CS-001041","Burnaby, BC","Seychelle Cushing\n778-782-5822\nseychelle_cushing@sfu.ca\n",{"$f":"IFERROR(HYPERLINK(_xlfn.XLOOKUP(DeliveryServicesTable[[#This Row],[CSA '#]],CSA,Pricing_Hyperlink),\"Click Here\"),\"\")","v":"Click Here"}]
[null,"Blended Learning","Financing the Organization","Simon Fraser University","CS-001041","Burnaby, BC","Seychelle Cushing\n778-782-5822\nseychelle_cushing@sfu.ca\n",{"$f":"IFERROR(HYPERLINK(_xlfn.XLOOKUP(DeliveryServicesTable[[#This Row],[CSA '#]],CSA,Pricing_Hyperlink),\"Click Here\"),\"\")","v":"Click Here"}]
[null,"Virtual","Financing the Organization","Simon Fraser University","CS-001041","Burnaby, BC","Seychelle Cushing\n778-782-5822\nseychelle_cushing@sfu.ca\n",{"$f":"IFERROR(HYPERLINK(_xlfn.XLOOKUP(DeliveryServicesTable[[#This Row],[CSA '#]],CSA,Pricing_Hyperlink),\"Click Here\"),\"\")","v":"Click Here"}]
[null,"Face to Face","Fixed Income Security Analysis","Simon Fraser University","CS-001041","Burnaby, BC","Seychelle Cushing\n778-782-5822\nseychelle_cushing@sfu.ca\n",{"$f":"IFERROR(HYPERLINK(_xlfn.XLOOKUP(DeliveryServicesTable[[#This Row],[CSA '#]],CSA,Pricing_Hyperlink),\"Click Here\"),\"\")","v":"Click Here"}]
[null,"Blended Learning","Fixed Income Security Analysis","Simon Fraser University","CS-001041","Burnaby, BC","Seychelle Cushing\n778-782-5822\nseychelle_cushing@sfu.ca\n",{"$f":"IFERROR(HYPERLINK(_xlfn.XLOOKUP(DeliveryServicesTable[[#This Row],[CSA '#]],CSA,Pricing_Hyperlink),\"Click Here\"),\"\")","v":"Click Here"}]
[null,"Virtual","Fixed Income Security Analysis","Simon Fraser University","CS-001041","Burnaby, BC","Seychelle Cushing\n778-782-5822\nseychelle_cushing@sfu.ca\n",{"$f":"IFERROR(HYPERLINK(_xlfn.XLOOKUP(DeliveryServicesTable[[#This Row],[CSA '#]],CSA,Pricing_Hyperlink),\"Click Here\"),\"\")","v":"Click Here"}]
[null,"Face to Face","Flexible Workplaces","Simon Fraser University","CS-001041","Burnaby, BC","Seychelle Cushing\n778-782-5822\nseychelle_cushing@sfu.ca\n",{"$f":"IFERROR(HYPERLINK(_xlfn.XLOOKUP(DeliveryServicesTable[[#This Row],[CSA '#]],CSA,Pricing_Hyperlink),\"Click Here\"),\"\")","v":"Click Here"}]
[null,"Blended Learning","Flexible Workplaces","Simon Fraser University","CS-001041","Burnaby, BC","Seychelle Cushing\n778-782-5822\nseychelle_cushing@sfu.ca\n",{"$f":"IFERROR(HYPERLINK(_xlfn.XLOOKUP(DeliveryServicesTable[[#This Row],[CSA '#]],CSA,Pricing_Hyperlink),\"Click Here\"),\"\")","v":"Click Here"}]
[null,"Virtual","Flexible Workplaces","Simon Fraser University","CS-001041","Burnaby, BC","Seychelle Cushing\n778-782-5822\nseychelle_cushing@sfu.ca\n",{"$f":"IFERROR(HYPERLINK(_xlfn.XLOOKUP(DeliveryServicesTable[[#This Row],[CSA '#]],CSA,Pricing_Hyperlink),\"Click Here\"),\"\")","v":"Click Here"}]
[null,"Face to Face","Geospatial Analysis","Simon Fraser University","CS-001041","Burnaby, BC","Seychelle Cushing\n778-782-5822\nseychelle_cushing@sfu.ca\n",{"$f":"IFERROR(HYPERLINK(_xlfn.XLOOKUP(DeliveryServicesTable[[#This Row],[CSA '#]],CSA,Pricing_Hyperlink),\"Click Here\"),\"\")","v":"Click Here"}]
[null,"Blended Learning","Geospatial Analysis","Simon Fraser University","CS-001041","Burnaby, BC","Seychelle Cushing\n778-782-5822\nseychelle_cushing@sfu.ca\n",{"$f":"IFERROR(HYPERLINK(_xlfn.XLOOKUP(DeliveryServicesTable[[#This Row],[CSA '#]],CSA,Pricing_Hyperlink),\"Click Here\"),\"\")","v":"Click Here"}]
[null,"Virtual","Geospatial Analysis","Simon Fraser University","CS-001041","Burnaby, BC","Seychelle Cushing\n778-782-5822\nseychelle_cushing@sfu.ca\n",{"$f":"IFERROR(HYPERLINK(_xlfn.XLOOKUP(DeliveryServicesTable[[#This Row],[CSA '#]],CSA,Pricing_Hyperlink),\"Click Here\"),\"\")","v":"Click Here"}]
[null,"Face to Face","Health and Well-Being","Simon Fraser University","CS-001041","Burnaby, BC","Seychelle Cushing\n778-782-5822\nseychelle_cushing@sfu.ca\n",{"$f":"IFERROR(HYPERLINK(_xlfn.XLOOKUP(DeliveryServicesTable[[#This Row],[CSA '#]],CSA,Pricing_Hyperlink),\"Click Here\"),\"\")","v":"Click Here"}]
[null,"Blended Learning","Health and Well-Being","Simon Fraser University","CS-001041","Burnaby, BC","Seychelle Cushing\n778-782-5822\nseychelle_cushing@sfu.ca\n",{"$f":"IFERROR(HYPERLINK(_xlfn.XLOOKUP(DeliveryServicesTable[[#This Row],[CSA '#]],CSA,Pricing_Hyperlink),\"Click Here\"),\"\")","v":"Click Here"}]
[null,"Virtual","Health and Well-Being","Simon Fraser University","CS-001041","Burnaby, BC","Seychelle Cushing\n778-782-5822\nseychelle_cushing@sfu.ca\n",{"$f":"IFERROR(HYPERLINK(_xlfn.XLOOKUP(DeliveryServicesTable[[#This Row],[CSA '#]],CSA,Pricing_Hyperlink),\"Click Here\"),\"\")","v":"Click Here"}]
[null,"Face to Face","Health Governance & Service Delivery","Simon Fraser University","CS-001041","Burnaby, BC","Seychelle Cushing\n778-782-5822\nseychelle_cushing@sfu.ca\n",{"$f":"IFERROR(HYPERLINK(_xlfn.XLOOKUP(DeliveryServicesTable[[#This Row],[CSA '#]],CSA,Pricing_Hyperlink),\"Click Here\"),\"\")","v":"Click Here"}]
[null,"Blended Learning","Health Governance & Service Delivery","Simon Fraser University","CS-001041","Burnaby, BC","Seychelle Cushing\n778-782-5822\nseychelle_cushing@sfu.ca\n",{"$f":"IFERROR(HYPERLINK(_xlfn.XLOOKUP(DeliveryServicesTable[[#This Row],[CSA '#]],CSA,Pricing_Hyperlink),\"Click Here\"),\"\")","v":"Click Here"}]
[null,"Virtual","Health Governance & Service Delivery","Simon Fraser University","CS-001041","Burnaby, BC","Seychelle Cushing\n778-782-5822\nseychelle_cushing@sfu.ca\n",{"$f":"IFERROR(HYPERLINK(_xlfn.XLOOKUP(DeliveryServicesTable[[#This Row],[CSA '#]],CSA,Pricing_Hyperlink),\"Click Here\"),\"\")","v":"Click Here"}]
[null,"Face to Face","Health Innovation","Simon Fraser University","CS-001041","Burnaby, BC","Seychelle Cushing\n778-782-5822\nseychelle_cushing@sfu.ca\n",{"$f":"IFERROR(HYPERLINK(_xlfn.XLOOKUP(DeliveryServicesTable[[#This Row],[CSA '#]],CSA,Pricing_Hyperlink),\"Click Here\"),\"\")","v":"Click Here"}]
[null,"Blended Learning","Health Innovation","Simon Fraser University","CS-001041","Burnaby, BC","Seychelle Cushing\n778-782-5822\nseychelle_cushing@sfu.ca\n",{"$f":"IFERROR(HYPERLINK(_xlfn.XLOOKUP(DeliveryServicesTable[[#This Row],[CSA '#]],CSA,Pricing_Hyperlink),\"Click Here\"),\"\")","v":"Click Here"}]
[null,"Virtual","Health Innovation","Simon Fraser University","CS-001041","Burnaby, BC","Seychelle Cushing\n778-782-5822\nseychelle_cushing@sfu.ca\n",{"$f":"IFERROR(HYPERLINK(_xlfn.XLOOKUP(DeliveryServicesTable[[#This Row],[CSA '#]],CSA,Pricing_Hyperlink),\"Click Here\"),\"\")","v":"Click Here"}]
[null,"Face to Face","Health Service Strategy and Quality","Simon Fraser University","CS-001041","Burnaby, BC","Seychelle Cushing\n778-782-5822\nseychelle_cushing@sfu.ca\n",{"$f":"IFERROR(HYPERLINK(_xlfn.XLOOKUP(DeliveryServicesTable[[#This Row],[CSA '#]],CSA,Pricing_Hyperlink),\"Click Here\"),\"\")","v":"Click Here"}]
[null,"Blended Learning","Health Service Strategy and Quality","Simon Fraser University","CS-001041","Burnaby, BC","Seychelle Cushing\n778-782-5822\nseychelle_cushing@sfu.ca\n",{"$f":"IFERROR(HYPERLINK(_xlfn.XLOOKUP(DeliveryServicesTable[[#This Row],[CSA '#]],CSA,Pricing_Hyperlink),\"Click Here\"),\"\")","v":"Click Here"}]
[null,"Virtual","Health Service Strategy and Quality","Simon Fraser University","CS-001041","Burnaby, BC","Seychelle Cushing\n778-782-5822\nseychelle_cushing@sfu.ca\n",{"$f":"IFERROR(HYPERLINK(_xlfn.XLOOKUP(DeliveryServicesTable[[#This Row],[CSA '#]],CSA,Pricing_Hyperlink),\"Click Here\"),\"\")","v":"Click Here"}]
[null,"Face to Face","High Performance Computing (HPC)","Simon Fraser University","CS-001041","Burnaby, BC","Seychelle Cushing\n778-782-5822\nseychelle_cushing@sfu.ca\n",{"$f":"IFERROR(HYPERLINK(_xlfn.XLOOKUP(DeliveryServicesTable[[#This Row],[CSA '#]],CSA,Pricing_Hyperlink),\"Click Here\"),\"\")","v":"Click Here"}]
[null,"Blended Learning","High Performance Computing (HPC)","Simon Fraser University","CS-001041","Burnaby, BC","Seychelle Cushing\n778-782-5822\nseychelle_cushing@sfu.ca\n",{"$f":"IFERROR(HYPERLINK(_xlfn.XLOOKUP(DeliveryServicesTable[[#This Row],[CSA '#]],CSA,Pricing_Hyperlink),\"Click Here\"),\"\")","v":"Click Here"}]
[null,"Virtual","High Performance Computing (HPC)","Simon Fraser University","CS-001041","Burnaby, BC","Seychelle Cushing\n778-782-5822\nseychelle_cushing@sfu.ca\n",{"$f":"IFERROR(HYPERLINK(_xlfn.XLOOKUP(DeliveryServicesTable[[#This Row],[CSA '#]],CSA,Pricing_Hyperlink),\"Click Here\"),\"\")","v":"Click Here"}]
[null,"Face to Face","Hiring","Simon Fraser University","CS-001041","Burnaby, BC","Seychelle Cushing\n778-782-5822\nseychelle_cushing@sfu.ca\n",{"$f":"IFERROR(HYPERLINK(_xlfn.XLOOKUP(DeliveryServicesTable[[#This Row],[CSA '#]],CSA,Pricing_Hyperlink),\"Click Here\"),\"\")","v":"Click Here"}]
[null,"Blended Learning","Hiring","Simon Fraser University","CS-001041","Burnaby, BC","Seychelle Cushing\n778-782-5822\nseychelle_cushing@sfu.ca\n",{"$f":"IFERROR(HYPERLINK(_xlfn.XLOOKUP(DeliveryServicesTable[[#This Row],[CSA '#]],CSA,Pricing_Hyperlink),\"Click Here\"),\"\")","v":"Click Here"}]
[null,"Virtual","Hiring","Simon Fraser University","CS-001041","Burnaby, BC","Seychelle Cushing\n778-782-5822\nseychelle_cushing@sfu.ca\n",{"$f":"IFERROR(HYPERLINK(_xlfn.XLOOKUP(DeliveryServicesTable[[#This Row],[CSA '#]],CSA,Pricing_Hyperlink),\"Click Here\"),\"\")","v":"Click Here"}]
[null,"Face to Face","Human Resource Management","Simon Fraser University","CS-001041","Burnaby, BC","Seychelle Cushing\n778-782-5822\nseychelle_cushing@sfu.ca\n",{"$f":"IFERROR(HYPERLINK(_xlfn.XLOOKUP(DeliveryServicesTable[[#This Row],[CSA '#]],CSA,Pricing_Hyperlink),\"Click Here\"),\"\")","v":"Click Here"}]
[null,"Blended Learning","Human Resource Management","Simon Fraser University","CS-001041","Burnaby, BC","Seychelle Cushing\n778-782-5822\nseychelle_cushing@sfu.ca\n",{"$f":"IFERROR(HYPERLINK(_xlfn.XLOOKUP(DeliveryServicesTable[[#This Row],[CSA '#]],CSA,Pricing_Hyperlink),\"Click Here\"),\"\")","v":"Click Here"}]
[null,"Virtual","Human Resource Management","Simon Fraser University","CS-001041","Burnaby, BC","Seychelle Cushing\n778-782-5822\nseychelle_cushing@sfu.ca\n",{"$f":"IFERROR(HYPERLINK(_xlfn.XLOOKUP(DeliveryServicesTable[[#This Row],[CSA '#]],CSA,Pricing_Hyperlink),\"Click Here\"),\"\")","v":"Click Here"}]
[null,"Face to Face","Indigenous Business and Communities","Simon Fraser University","CS-001041","Burnaby, BC","Seychelle Cushing\n778-782-5822\nseychelle_cushing@sfu.ca\n",{"$f":"IFERROR(HYPERLINK(_xlfn.XLOOKUP(DeliveryServicesTable[[#This Row],[CSA '#]],CSA,Pricing_Hyperlink),\"Click Here\"),\"\")","v":"Click Here"}]
[null,"Blended Learning","Indigenous Business and Communities","Simon Fraser University","CS-001041","Burnaby, BC","Seychelle Cushing\n778-782-5822\nseychelle_cushing@sfu.ca\n",{"$f":"IFERROR(HYPERLINK(_xlfn.XLOOKUP(DeliveryServicesTable[[#This Row],[CSA '#]],CSA,Pricing_Hyperlink),\"Click Here\"),\"\")","v":"Click Here"}]
[null,"Virtual","Indigenous Business and Communities","Simon Fraser University","CS-001041","Burnaby, BC","Seychelle Cushing\n778-782-5822\nseychelle_cushing@sfu.ca\n",{"$f":"IFERROR(HYPERLINK(_xlfn.XLOOKUP(DeliveryServicesTable[[#This Row],[CSA '#]],CSA,Pricing_Hyperlink),\"Click Here\"),\"\")","v":"Click Here"}]
[null,"Face to Face","Indigenous Economic Development","Simon Fraser University","CS-001041","Burnaby, BC","Seychelle Cushing\n778-782-5822\nseychelle_cushing@sfu.ca\n",{"$f":"IFERROR(HYPERLINK(_xlfn.XLOOKUP(DeliveryServicesTable[[#This Row],[CSA '#]],CSA,Pricing_Hyperlink),\"Click Here\"),\"\")","v":"Click Here"}]
[null,"Blended Learning","Indigenous Economic Development","Simon Fraser University","CS-001041","Burnaby, BC","Seychelle Cushing\n778-782-5822\nseychelle_cushing@sfu.ca\n",{"$f":"IFERROR(HYPERLINK(_xlfn.XLOOKUP(DeliveryServicesTable[[#This Row],[CSA '#]],CSA,Pricing_Hyperlink),\"Click Here\"),\"\")","v":"Click Here"}]
[null,"Virtual","Indigenous Economic Development","Simon Fraser University","CS-001041","Burnaby, BC","Seychelle Cushing\n778-782-5822\nseychelle_cushing@sfu.ca\n",{"$f":"IFERROR(HYPERLINK(_xlfn.XLOOKUP(DeliveryServicesTable[[#This Row],[CSA '#]],CSA,Pricing_Hyperlink),\"Click Here\"),\"\")","v":"Click Here"}]
[null,"Face to Face","Indigenous Entrepreneurship","Simon Fraser University","CS-001041","Burnaby, BC","Seychelle Cushing\n778-782-5822\nseychelle_cushing@sfu.ca\n",{"$f":"IFERROR(HYPERLINK(_xlfn.XLOOKUP(DeliveryServicesTable[[#This Row],[CSA '#]],CSA,Pricing_Hyperlink),\"Click Here\"),\"\")","v":"Click Here"}]
[null,"Blended Learning","Indigenous Entrepreneurship","Simon Fraser University","CS-001041","Burnaby, BC","Seychelle Cushing\n778-782-5822\nseychelle_cushing@sfu.ca\n",{"$f":"IFERROR(HYPERLINK(_xlfn.XLOOKUP(DeliveryServicesTable[[#This Row],[CSA '#]],CSA,Pricing_Hyperlink),\"Click Here\"),\"\")","v":"Click Here"}]
[null,"Virtual","Indigenous Entrepreneurship","Simon Fraser University","CS-001041","Burnaby, BC","Seychelle Cushing\n778-782-5822\nseychelle_cushing@sfu.ca\n",{"$f":"IFERROR(HYPERLINK(_xlfn.XLOOKUP(DeliveryServicesTable[[#This Row],[CSA '#]],CSA,Pricing_Hyperlink),\"Click Here\"),\"\")","v":"Click Here"}]
[null,"Face to Face","Indigenous Governance","Simon Fraser University","CS-001041","Burnaby, BC","Seychelle Cushing\n778-782-5822\nseychelle_cushing@sfu.ca\n",{"$f":"IFERROR(HYPERLINK(_xlfn.XLOOKUP(DeliveryServicesTable[[#This Row],[CSA '#]],CSA,Pricing_Hyperlink),\"Click Here\"),\"\")","v":"Click Here"}]
[null,"Blended Learning","Indigenous Governance","Simon Fraser University","CS-001041","Burnaby, BC","Seychelle Cushing\n778-782-5822\nseychelle_cushing@sfu.ca\n",{"$f":"IFERROR(HYPERLINK(_xlfn.XLOOKUP(DeliveryServicesTable[[#This Row],[CSA '#]],CSA,Pricing_Hyperlink),\"Click Here\"),\"\")","v":"Click Here"}]
[null,"Virtual","Indigenous Governance","Simon Fraser University","CS-001041","Burnaby, BC","Seychelle Cushing\n778-782-5822\nseychelle_cushing@sfu.ca\n",{"$f":"IFERROR(HYPERLINK(_xlfn.XLOOKUP(DeliveryServicesTable[[#This Row],[CSA '#]],CSA,Pricing_Hyperlink),\"Click Here\"),\"\")","v":"Click Here"}]
[null,"Face to Face","Indigenous Leadership","Simon Fraser University","CS-001041","Burnaby, BC","Seychelle Cushing\n778-782-5822\nseychelle_cushing@sfu.ca\n",{"$f":"IFERROR(HYPERLINK(_xlfn.XLOOKUP(DeliveryServicesTable[[#This Row],[CSA '#]],CSA,Pricing_Hyperlink),\"Click Here\"),\"\")","v":"Click Here"}]
[null,"Blended Learning","Indigenous Leadership","Simon Fraser University","CS-001041","Burnaby, BC","Seychelle Cushing\n778-782-5822\nseychelle_cushing@sfu.ca\n",{"$f":"IFERROR(HYPERLINK(_xlfn.XLOOKUP(DeliveryServicesTable[[#This Row],[CSA '#]],CSA,Pricing_Hyperlink),\"Click Here\"),\"\")","v":"Click Here"}]
[null,"Virtual","Indigenous Leadership","Simon Fraser University","CS-001041","Burnaby, BC","Seychelle Cushing\n778-782-5822\nseychelle_cushing@sfu.ca\n",{"$f":"IFERROR(HYPERLINK(_xlfn.XLOOKUP(DeliveryServicesTable[[#This Row],[CSA '#]],CSA,Pricing_Hyperlink),\"Click Here\"),\"\")","v":"Click Here"}]
[null,"Face to Face","Indigenous Management","Simon Fraser University","CS-001041","Burnaby, BC","Seychelle Cushing\n778-782-5822\nseychelle_cushing@sfu.ca\n",{"$f":"IFERROR(HYPERLINK(_xlfn.XLOOKUP(DeliveryServicesTable[[#This Row],[CSA '#]],CSA,Pricing_Hyperlink),\"Click Here\"),\"\")","v":"Click Here"}]
[null,"Blended Learning","Indigenous Management","Simon Fraser University","CS-001041","Burnaby, BC","Seychelle Cushing\n778-782-5822\nseychelle_cushing@sfu.ca\n",{"$f":"IFERROR(HYPERLINK(_xlfn.XLOOKUP(DeliveryServicesTable[[#This Row],[CSA '#]],CSA,Pricing_Hyperlink),\"Click Here\"),\"\")","v":"Click Here"}]
[null,"Virtual","Indigenous Management","Simon Fraser University","CS-001041","Burnaby, BC","Seychelle Cushing\n778-782-5822\nseychelle_cushing@sfu.ca\n",{"$f":"IFERROR(HYPERLINK(_xlfn.XLOOKUP(DeliveryServicesTable[[#This Row],[CSA '#]],CSA,Pricing_Hyperlink),\"Click Here\"),\"\")","v":"Click Here"}]
[null,"Face to Face","Info Tech and Org. Transformation","Simon Fraser University","CS-001041","Burnaby, BC","Seychelle Cushing\n778-782-5822\nseychelle_cushing@sfu.ca\n",{"$f":"IFERROR(HYPERLINK(_xlfn.XLOOKUP(DeliveryServicesTable[[#This Row],[CSA '#]],CSA,Pricing_Hyperlink),\"Click Here\"),\"\")","v":"Click Here"}]
[null,"Blended Learning","Info Tech and Org. Transformation","Simon Fraser University","CS-001041","Burnaby, BC","Seychelle Cushing\n778-782-5822\nseychelle_cushing@sfu.ca\n",{"$f":"IFERROR(HYPERLINK(_xlfn.XLOOKUP(DeliveryServicesTable[[#This Row],[CSA '#]],CSA,Pricing_Hyperlink),\"Click Here\"),\"\")","v":"Click Here"}]
[null,"Virtual","Info Tech and Org. Transformation","Simon Fraser University","CS-001041","Burnaby, BC","Seychelle Cushing\n778-782-5822\nseychelle_cushing@sfu.ca\n",{"$f":"IFERROR(HYPERLINK(_xlfn.XLOOKUP(DeliveryServicesTable[[#This Row],[CSA '#]],CSA,Pricing_Hyperlink),\"Click Here\"),\"\")","v":"Click Here"}]
[null,"Face to Face","Information and Privacy","Simon Fraser University","CS-001041","Burnaby, BC","Seychelle Cushing\n778-782-5822\nseychelle_cushing@sfu.ca\n",{"$f":"IFERROR(HYPERLINK(_xlfn.XLOOKUP(DeliveryServicesTable[[#This Row],[CSA '#]],CSA,Pricing_Hyperlink),\"Click Here\"),\"\")","v":"Click Here"}]
[null,"Blended Learning","Information and Privacy","Simon Fraser University","CS-001041","Burnaby, BC","Seychelle Cushing\n778-782-5822\nseychelle_cushing@sfu.ca\n",{"$f":"IFERROR(HYPERLINK(_xlfn.XLOOKUP(DeliveryServicesTable[[#This Row],[CSA '#]],CSA,Pricing_Hyperlink),\"Click Here\"),\"\")","v":"Click Here"}]
[null,"Virtual","Information and Privacy","Simon Fraser University","CS-001041","Burnaby, BC","Seychelle Cushing\n778-782-5822\nseychelle_cushing@sfu.ca\n",{"$f":"IFERROR(HYPERLINK(_xlfn.XLOOKUP(DeliveryServicesTable[[#This Row],[CSA '#]],CSA,Pricing_Hyperlink),\"Click Here\"),\"\")","v":"Click Here"}]
[null,"Face to Face","Information and Technology","Simon Fraser University","CS-001041","Burnaby, BC","Seychelle Cushing\n778-782-5822\nseychelle_cushing@sfu.ca\n",{"$f":"IFERROR(HYPERLINK(_xlfn.XLOOKUP(DeliveryServicesTable[[#This Row],[CSA '#]],CSA,Pricing_Hyperlink),\"Click Here\"),\"\")","v":"Click Here"}]
[null,"Blended Learning","Information and Technology","Simon Fraser University","CS-001041","Burnaby, BC","Seychelle Cushing\n778-782-5822\nseychelle_cushing@sfu.ca\n",{"$f":"IFERROR(HYPERLINK(_xlfn.XLOOKUP(DeliveryServicesTable[[#This Row],[CSA '#]],CSA,Pricing_Hyperlink),\"Click Here\"),\"\")","v":"Click Here"}]
[null,"Virtual","Information and Technology","Simon Fraser University","CS-001041","Burnaby, BC","Seychelle Cushing\n778-782-5822\nseychelle_cushing@sfu.ca\n",{"$f":"IFERROR(HYPERLINK(_xlfn.XLOOKUP(DeliveryServicesTable[[#This Row],[CSA '#]],CSA,Pricing_Hyperlink),\"Click Here\"),\"\")","v":"Click Here"}]
[null,"Face to Face","Information Technology Management","Simon Fraser University","CS-001041","Burnaby, BC","Seychelle Cushing\n778-782-5822\nseychelle_cushing@sfu.ca\n",{"$f":"IFERROR(HYPERLINK(_xlfn.XLOOKUP(DeliveryServicesTable[[#This Row],[CSA '#]],CSA,Pricing_Hyperlink),\"Click Here\"),\"\")","v":"Click Here"}]
[null,"Blended Learning","Information Technology Management","Simon Fraser University","CS-001041","Burnaby, BC","Seychelle Cushing\n778-782-5822\nseychelle_cushing@sfu.ca\n",{"$f":"IFERROR(HYPERLINK(_xlfn.XLOOKUP(DeliveryServicesTable[[#This Row],[CSA '#]],CSA,Pricing_Hyperlink),\"Click Here\"),\"\")","v":"Click Here"}]
[null,"Virtual","Information Technology Management","Simon Fraser University","CS-001041","Burnaby, BC","Seychelle Cushing\n778-782-5822\nseychelle_cushing@sfu.ca\n",{"$f":"IFERROR(HYPERLINK(_xlfn.XLOOKUP(DeliveryServicesTable[[#This Row],[CSA '#]],CSA,Pricing_Hyperlink),\"Click Here\"),\"\")","v":"Click Here"}]
[null,"Face to Face","Innovation and Design Thinking","Simon Fraser University","CS-001041","Burnaby, BC","Seychelle Cushing\n778-782-5822\nseychelle_cushing@sfu.ca\n",{"$f":"IFERROR(HYPERLINK(_xlfn.XLOOKUP(DeliveryServicesTable[[#This Row],[CSA '#]],CSA,Pricing_Hyperlink),\"Click Here\"),\"\")","v":"Click Here"}]
[null,"Blended Learning","Innovation and Design Thinking","Simon Fraser University","CS-001041","Burnaby, BC","Seychelle Cushing\n778-782-5822\nseychelle_cushing@sfu.ca\n",{"$f":"IFERROR(HYPERLINK(_xlfn.XLOOKUP(DeliveryServicesTable[[#This Row],[CSA '#]],CSA,Pricing_Hyperlink),\"Click Here\"),\"\")","v":"Click Here"}]
[null,"Virtual","Innovation and Design Thinking","Simon Fraser University","CS-001041","Burnaby, BC","Seychelle Cushing\n778-782-5822\nseychelle_cushing@sfu.ca\n",{"$f":"IFERROR(HYPERLINK(_xlfn.XLOOKUP(DeliveryServicesTable[[#This Row],[CSA '#]],CSA,Pricing_Hyperlink),\"Click Here\"),\"\")","v":"Click Here"}]
[null,"Face to Face","Innovation in Organizations","Simon Fraser University","CS-001041","Burnaby, BC","Seychelle Cushing\n778-782-5822\nseychelle_cushing@sfu.ca\n",{"$f":"IFERROR(HYPERLINK(_xlfn.XLOOKUP(DeliveryServicesTable[[#This Row],[CSA '#]],CSA,Pricing_Hyperlink),\"Click Here\"),\"\")","v":"Click Here"}]
[null,"Blended Learning","Innovation in Organizations","Simon Fraser University","CS-001041","Burnaby, BC","Seychelle Cushing\n778-782-5822\nseychelle_cushing@sfu.ca\n",{"$f":"IFERROR(HYPERLINK(_xlfn.XLOOKUP(DeliveryServicesTable[[#This Row],[CSA '#]],CSA,Pricing_Hyperlink),\"Click Here\"),\"\")","v":"Click Here"}]
[null,"Virtual","Innovation in Organizations","Simon Fraser University","CS-001041","Burnaby, BC","Seychelle Cushing\n778-782-5822\nseychelle_cushing@sfu.ca\n",{"$f":"IFERROR(HYPERLINK(_xlfn.XLOOKUP(DeliveryServicesTable[[#This Row],[CSA '#]],CSA,Pricing_Hyperlink),\"Click Here\"),\"\")","v":"Click Here"}]
[null,"Face to Face","International Competitive Strategy","Simon Fraser University","CS-001041","Burnaby, BC","Seychelle Cushing\n778-782-5822\nseychelle_cushing@sfu.ca\n",{"$f":"IFERROR(HYPERLINK(_xlfn.XLOOKUP(DeliveryServicesTable[[#This Row],[CSA '#]],CSA,Pricing_Hyperlink),\"Click Here\"),\"\")","v":"Click Here"}]
[null,"Blended Learning","International Competitive Strategy","Simon Fraser University","CS-001041","Burnaby, BC","Seychelle Cushing\n778-782-5822\nseychelle_cushing@sfu.ca\n",{"$f":"IFERROR(HYPERLINK(_xlfn.XLOOKUP(DeliveryServicesTable[[#This Row],[CSA '#]],CSA,Pricing_Hyperlink),\"Click Here\"),\"\")","v":"Click Here"}]
[null,"Virtual","International Competitive Strategy","Simon Fraser University","CS-001041","Burnaby, BC","Seychelle Cushing\n778-782-5822\nseychelle_cushing@sfu.ca\n",{"$f":"IFERROR(HYPERLINK(_xlfn.XLOOKUP(DeliveryServicesTable[[#This Row],[CSA '#]],CSA,Pricing_Hyperlink),\"Click Here\"),\"\")","v":"Click Here"}]
[null,"Face to Face","International Management","Simon Fraser University","CS-001041","Burnaby, BC","Seychelle Cushing\n778-782-5822\nseychelle_cushing@sfu.ca\n",{"$f":"IFERROR(HYPERLINK(_xlfn.XLOOKUP(DeliveryServicesTable[[#This Row],[CSA '#]],CSA,Pricing_Hyperlink),\"Click Here\"),\"\")","v":"Click Here"}]
[null,"Blended Learning","International Management","Simon Fraser University","CS-001041","Burnaby, BC","Seychelle Cushing\n778-782-5822\nseychelle_cushing@sfu.ca\n",{"$f":"IFERROR(HYPERLINK(_xlfn.XLOOKUP(DeliveryServicesTable[[#This Row],[CSA '#]],CSA,Pricing_Hyperlink),\"Click Here\"),\"\")","v":"Click Here"}]
[null,"Virtual","International Management","Simon Fraser University","CS-001041","Burnaby, BC","Seychelle Cushing\n778-782-5822\nseychelle_cushing@sfu.ca\n",{"$f":"IFERROR(HYPERLINK(_xlfn.XLOOKUP(DeliveryServicesTable[[#This Row],[CSA '#]],CSA,Pricing_Hyperlink),\"Click Here\"),\"\")","v":"Click Here"}]
[null,"Face to Face","Labour Relations","Simon Fraser University","CS-001041","Burnaby, BC","Seychelle Cushing\n778-782-5822\nseychelle_cushing@sfu.ca\n",{"$f":"IFERROR(HYPERLINK(_xlfn.XLOOKUP(DeliveryServicesTable[[#This Row],[CSA '#]],CSA,Pricing_Hyperlink),\"Click Here\"),\"\")","v":"Click Here"}]
[null,"Blended Learning","Labour Relations","Simon Fraser University","CS-001041","Burnaby, BC","Seychelle Cushing\n778-782-5822\nseychelle_cushing@sfu.ca\n",{"$f":"IFERROR(HYPERLINK(_xlfn.XLOOKUP(DeliveryServicesTable[[#This Row],[CSA '#]],CSA,Pricing_Hyperlink),\"Click Here\"),\"\")","v":"Click Here"}]
[null,"Virtual","Labour Relations","Simon Fraser University","CS-001041","Burnaby, BC","Seychelle Cushing\n778-782-5822\nseychelle_cushing@sfu.ca\n",{"$f":"IFERROR(HYPERLINK(_xlfn.XLOOKUP(DeliveryServicesTable[[#This Row],[CSA '#]],CSA,Pricing_Hyperlink),\"Click Here\"),\"\")","v":"Click Here"}]
[null,"Face to Face","Language, Culture and Translation","Simon Fraser University","CS-001041","Burnaby, BC","Seychelle Cushing\n778-782-5822\nseychelle_cushing@sfu.ca\n",{"$f":"IFERROR(HYPERLINK(_xlfn.XLOOKUP(DeliveryServicesTable[[#This Row],[CSA '#]],CSA,Pricing_Hyperlink),\"Click Here\"),\"\")","v":"Click Here"}]
[null,"Blended Learning","Language, Culture and Translation","Simon Fraser University","CS-001041","Burnaby, BC","Seychelle Cushing\n778-782-5822\nseychelle_cushing@sfu.ca\n",{"$f":"IFERROR(HYPERLINK(_xlfn.XLOOKUP(DeliveryServicesTable[[#This Row],[CSA '#]],CSA,Pricing_Hyperlink),\"Click Here\"),\"\")","v":"Click Here"}]
[null,"Virtual","Language, Culture and Translation","Simon Fraser University","CS-001041","Burnaby, BC","Seychelle Cushing\n778-782-5822\nseychelle_cushing@sfu.ca\n",{"$f":"IFERROR(HYPERLINK(_xlfn.XLOOKUP(DeliveryServicesTable[[#This Row],[CSA '#]],CSA,Pricing_Hyperlink),\"Click Here\"),\"\")","v":"Click Here"}]
[null,"Face to Face","Leadership and Management","Simon Fraser University","CS-001041","Burnaby, BC","Seychelle Cushing\n778-782-5822\nseychelle_cushing@sfu.ca\n",{"$f":"IFERROR(HYPERLINK(_xlfn.XLOOKUP(DeliveryServicesTable[[#This Row],[CSA '#]],CSA,Pricing_Hyperlink),\"Click Here\"),\"\")","v":"Click Here"}]
[null,"Blended Learning","Leadership and Management","Simon Fraser University","CS-001041","Burnaby, BC","Seychelle Cushing\n778-782-5822\nseychelle_cushing@sfu.ca\n",{"$f":"IFERROR(HYPERLINK(_xlfn.XLOOKUP(DeliveryServicesTable[[#This Row],[CSA '#]],CSA,Pricing_Hyperlink),\"Click Here\"),\"\")","v":"Click Here"}]
[null,"Virtual","Leadership and Management","Simon Fraser University","CS-001041","Burnaby, BC","Seychelle Cushing\n778-782-5822\nseychelle_cushing@sfu.ca\n",{"$f":"IFERROR(HYPERLINK(_xlfn.XLOOKUP(DeliveryServicesTable[[#This Row],[CSA '#]],CSA,Pricing_Hyperlink),\"Click Here\"),\"\")","v":"Click Here"}]
[null,"Face to Face","Leadership and Teamwork","Simon Fraser University","CS-001041","Burnaby, BC","Seychelle Cushing\n778-782-5822\nseychelle_cushing@sfu.ca\n",{"$f":"IFERROR(HYPERLINK(_xlfn.XLOOKUP(DeliveryServicesTable[[#This Row],[CSA '#]],CSA,Pricing_Hyperlink),\"Click Here\"),\"\")","v":"Click Here"}]
[null,"Blended Learning","Leadership and Teamwork","Simon Fraser University","CS-001041","Burnaby, BC","Seychelle Cushing\n778-782-5822\nseychelle_cushing@sfu.ca\n",{"$f":"IFERROR(HYPERLINK(_xlfn.XLOOKUP(DeliveryServicesTable[[#This Row],[CSA '#]],CSA,Pricing_Hyperlink),\"Click Here\"),\"\")","v":"Click Here"}]
[null,"Virtual","Leadership and Teamwork","Simon Fraser University","CS-001041","Burnaby, BC","Seychelle Cushing\n778-782-5822\nseychelle_cushing@sfu.ca\n",{"$f":"IFERROR(HYPERLINK(_xlfn.XLOOKUP(DeliveryServicesTable[[#This Row],[CSA '#]],CSA,Pricing_Hyperlink),\"Click Here\"),\"\")","v":"Click Here"}]
[null,"Face to Face","Leadership in a Data Driven Enterprise","Simon Fraser University","CS-001041","Burnaby, BC","Seychelle Cushing\n778-782-5822\nseychelle_cushing@sfu.ca\n",{"$f":"IFERROR(HYPERLINK(_xlfn.XLOOKUP(DeliveryServicesTable[[#This Row],[CSA '#]],CSA,Pricing_Hyperlink),\"Click Here\"),\"\")","v":"Click Here"}]
[null,"Blended Learning","Leadership in a Data Driven Enterprise","Simon Fraser University","CS-001041","Burnaby, BC","Seychelle Cushing\n778-782-5822\nseychelle_cushing@sfu.ca\n",{"$f":"IFERROR(HYPERLINK(_xlfn.XLOOKUP(DeliveryServicesTable[[#This Row],[CSA '#]],CSA,Pricing_Hyperlink),\"Click Here\"),\"\")","v":"Click Here"}]
[null,"Virtual","Leadership in a Data Driven Enterprise","Simon Fraser University","CS-001041","Burnaby, BC","Seychelle Cushing\n778-782-5822\nseychelle_cushing@sfu.ca\n",{"$f":"IFERROR(HYPERLINK(_xlfn.XLOOKUP(DeliveryServicesTable[[#This Row],[CSA '#]],CSA,Pricing_Hyperlink),\"Click Here\"),\"\")","v":"Click Here"}]
[null,"Face to Face","Lean","Simon Fraser University","CS-001041","Burnaby, BC","Seychelle Cushing\n778-782-5822\nseychelle_cushing@sfu.ca\n",{"$f":"IFERROR(HYPERLINK(_xlfn.XLOOKUP(DeliveryServicesTable[[#This Row],[CSA '#]],CSA,Pricing_Hyperlink),\"Click Here\"),\"\")","v":"Click Here"}]
[null,"Blended Learning","Lean","Simon Fraser University","CS-001041","Burnaby, BC","Seychelle Cushing\n778-782-5822\nseychelle_cushing@sfu.ca\n",{"$f":"IFERROR(HYPERLINK(_xlfn.XLOOKUP(DeliveryServicesTable[[#This Row],[CSA '#]],CSA,Pricing_Hyperlink),\"Click Here\"),\"\")","v":"Click Here"}]
[null,"Virtual","Lean","Simon Fraser University","CS-001041","Burnaby, BC","Seychelle Cushing\n778-782-5822\nseychelle_cushing@sfu.ca\n",{"$f":"IFERROR(HYPERLINK(_xlfn.XLOOKUP(DeliveryServicesTable[[#This Row],[CSA '#]],CSA,Pricing_Hyperlink),\"Click Here\"),\"\")","v":"Click Here"}]
[null,"Face to Face","Machine Learning (ML)","Simon Fraser University","CS-001041","Burnaby, BC","Seychelle Cushing\n778-782-5822\nseychelle_cushing@sfu.ca\n",{"$f":"IFERROR(HYPERLINK(_xlfn.XLOOKUP(DeliveryServicesTable[[#This Row],[CSA '#]],CSA,Pricing_Hyperlink),\"Click Here\"),\"\")","v":"Click Here"}]
[null,"Blended Learning","Machine Learning (ML)","Simon Fraser University","CS-001041","Burnaby, BC","Seychelle Cushing\n778-782-5822\nseychelle_cushing@sfu.ca\n",{"$f":"IFERROR(HYPERLINK(_xlfn.XLOOKUP(DeliveryServicesTable[[#This Row],[CSA '#]],CSA,Pricing_Hyperlink),\"Click Here\"),\"\")","v":"Click Here"}]
[null,"Virtual","Machine Learning (ML)","Simon Fraser University","CS-001041","Burnaby, BC","Seychelle Cushing\n778-782-5822\nseychelle_cushing@sfu.ca\n",{"$f":"IFERROR(HYPERLINK(_xlfn.XLOOKUP(DeliveryServicesTable[[#This Row],[CSA '#]],CSA,Pricing_Hyperlink),\"Click Here\"),\"\")","v":"Click Here"}]
[null,"Face to Face","Management Information Systems","Simon Fraser University","CS-001041","Burnaby, BC","Seychelle Cushing\n778-782-5822\nseychelle_cushing@sfu.ca\n",{"$f":"IFERROR(HYPERLINK(_xlfn.XLOOKUP(DeliveryServicesTable[[#This Row],[CSA '#]],CSA,Pricing_Hyperlink),\"Click Here\"),\"\")","v":"Click Here"}]
[null,"Blended Learning","Management Information Systems","Simon Fraser University","CS-001041","Burnaby, BC","Seychelle Cushing\n778-782-5822\nseychelle_cushing@sfu.ca\n",{"$f":"IFERROR(HYPERLINK(_xlfn.XLOOKUP(DeliveryServicesTable[[#This Row],[CSA '#]],CSA,Pricing_Hyperlink),\"Click Here\"),\"\")","v":"Click Here"}]
[null,"Virtual","Management Information Systems","Simon Fraser University","CS-001041","Burnaby, BC","Seychelle Cushing\n778-782-5822\nseychelle_cushing@sfu.ca\n",{"$f":"IFERROR(HYPERLINK(_xlfn.XLOOKUP(DeliveryServicesTable[[#This Row],[CSA '#]],CSA,Pricing_Hyperlink),\"Click Here\"),\"\")","v":"Click Here"}]
[null,"Face to Face","Managerial Accounting","Simon Fraser University","CS-001041","Burnaby, BC","Seychelle Cushing\n778-782-5822\nseychelle_cushing@sfu.ca\n",{"$f":"IFERROR(HYPERLINK(_xlfn.XLOOKUP(DeliveryServicesTable[[#This Row],[CSA '#]],CSA,Pricing_Hyperlink),\"Click Here\"),\"\")","v":"Click Here"}]
[null,"Blended Learning","Managerial Accounting","Simon Fraser University","CS-001041","Burnaby, BC","Seychelle Cushing\n778-782-5822\nseychelle_cushing@sfu.ca\n",{"$f":"IFERROR(HYPERLINK(_xlfn.XLOOKUP(DeliveryServicesTable[[#This Row],[CSA '#]],CSA,Pricing_Hyperlink),\"Click Here\"),\"\")","v":"Click Here"}]
[null,"Virtual","Managerial Accounting","Simon Fraser University","CS-001041","Burnaby, BC","Seychelle Cushing\n778-782-5822\nseychelle_cushing@sfu.ca\n",{"$f":"IFERROR(HYPERLINK(_xlfn.XLOOKUP(DeliveryServicesTable[[#This Row],[CSA '#]],CSA,Pricing_Hyperlink),\"Click Here\"),\"\")","v":"Click Here"}]
[null,"Face to Face","Managerial Economics","Simon Fraser University","CS-001041","Burnaby, BC","Seychelle Cushing\n778-782-5822\nseychelle_cushing@sfu.ca\n",{"$f":"IFERROR(HYPERLINK(_xlfn.XLOOKUP(DeliveryServicesTable[[#This Row],[CSA '#]],CSA,Pricing_Hyperlink),\"Click Here\"),\"\")","v":"Click Here"}]
[null,"Blended Learning","Managerial Economics","Simon Fraser University","CS-001041","Burnaby, BC","Seychelle Cushing\n778-782-5822\nseychelle_cushing@sfu.ca\n",{"$f":"IFERROR(HYPERLINK(_xlfn.XLOOKUP(DeliveryServicesTable[[#This Row],[CSA '#]],CSA,Pricing_Hyperlink),\"Click Here\"),\"\")","v":"Click Here"}]
[null,"Virtual","Managerial Economics","Simon Fraser University","CS-001041","Burnaby, BC","Seychelle Cushing\n778-782-5822\nseychelle_cushing@sfu.ca\n",{"$f":"IFERROR(HYPERLINK(_xlfn.XLOOKUP(DeliveryServicesTable[[#This Row],[CSA '#]],CSA,Pricing_Hyperlink),\"Click Here\"),\"\")","v":"Click Here"}]
[null,"Face to Face","Managerial Economics for Technology Firm","Simon Fraser University","CS-001041","Burnaby, BC","Seychelle Cushing\n778-782-5822\nseychelle_cushing@sfu.ca\n",{"$f":"IFERROR(HYPERLINK(_xlfn.XLOOKUP(DeliveryServicesTable[[#This Row],[CSA '#]],CSA,Pricing_Hyperlink),\"Click Here\"),\"\")","v":"Click Here"}]
[null,"Blended Learning","Managerial Economics for Technology Firm","Simon Fraser University","CS-001041","Burnaby, BC","Seychelle Cushing\n778-782-5822\nseychelle_cushing@sfu.ca\n",{"$f":"IFERROR(HYPERLINK(_xlfn.XLOOKUP(DeliveryServicesTable[[#This Row],[CSA '#]],CSA,Pricing_Hyperlink),\"Click Here\"),\"\")","v":"Click Here"}]
[null,"Virtual","Managerial Economics for Technology Firm","Simon Fraser University","CS-001041","Burnaby, BC","Seychelle Cushing\n778-782-5822\nseychelle_cushing@sfu.ca\n",{"$f":"IFERROR(HYPERLINK(_xlfn.XLOOKUP(DeliveryServicesTable[[#This Row],[CSA '#]],CSA,Pricing_Hyperlink),\"Click Here\"),\"\")","v":"Click Here"}]
[null,"Face to Face","Managerial Finance","Simon Fraser University","CS-001041","Burnaby, BC","Seychelle Cushing\n778-782-5822\nseychelle_cushing@sfu.ca\n",{"$f":"IFERROR(HYPERLINK(_xlfn.XLOOKUP(DeliveryServicesTable[[#This Row],[CSA '#]],CSA,Pricing_Hyperlink),\"Click Here\"),\"\")","v":"Click Here"}]
[null,"Blended Learning","Managerial Finance","Simon Fraser University","CS-001041","Burnaby, BC","Seychelle Cushing\n778-782-5822\nseychelle_cushing@sfu.ca\n",{"$f":"IFERROR(HYPERLINK(_xlfn.XLOOKUP(DeliveryServicesTable[[#This Row],[CSA '#]],CSA,Pricing_Hyperlink),\"Click Here\"),\"\")","v":"Click Here"}]
[null,"Virtual","Managerial Finance","Simon Fraser University","CS-001041","Burnaby, BC","Seychelle Cushing\n778-782-5822\nseychelle_cushing@sfu.ca\n",{"$f":"IFERROR(HYPERLINK(_xlfn.XLOOKUP(DeliveryServicesTable[[#This Row],[CSA '#]],CSA,Pricing_Hyperlink),\"Click Here\"),\"\")","v":"Click Here"}]
[null,"Face to Face","Managing a Globalized Workforce","Simon Fraser University","CS-001041","Burnaby, BC","Seychelle Cushing\n778-782-5822\nseychelle_cushing@sfu.ca\n",{"$f":"IFERROR(HYPERLINK(_xlfn.XLOOKUP(DeliveryServicesTable[[#This Row],[CSA '#]],CSA,Pricing_Hyperlink),\"Click Here\"),\"\")","v":"Click Here"}]
[null,"Blended Learning","Managing a Globalized Workforce","Simon Fraser University","CS-001041","Burnaby, BC","Seychelle Cushing\n778-782-5822\nseychelle_cushing@sfu.ca\n",{"$f":"IFERROR(HYPERLINK(_xlfn.XLOOKUP(DeliveryServicesTable[[#This Row],[CSA '#]],CSA,Pricing_Hyperlink),\"Click Here\"),\"\")","v":"Click Here"}]
[null,"Virtual","Managing a Globalized Workforce","Simon Fraser University","CS-001041","Burnaby, BC","Seychelle Cushing\n778-782-5822\nseychelle_cushing@sfu.ca\n",{"$f":"IFERROR(HYPERLINK(_xlfn.XLOOKUP(DeliveryServicesTable[[#This Row],[CSA '#]],CSA,Pricing_Hyperlink),\"Click Here\"),\"\")","v":"Click Here"}]
[null,"Face to Face","Managing Global Enterprises","Simon Fraser University","CS-001041","Burnaby, BC","Seychelle Cushing\n778-782-5822\nseychelle_cushing@sfu.ca\n",{"$f":"IFERROR(HYPERLINK(_xlfn.XLOOKUP(DeliveryServicesTable[[#This Row],[CSA '#]],CSA,Pricing_Hyperlink),\"Click Here\"),\"\")","v":"Click Here"}]
[null,"Blended Learning","Managing Global Enterprises","Simon Fraser University","CS-001041","Burnaby, BC","Seychelle Cushing\n778-782-5822\nseychelle_cushing@sfu.ca\n",{"$f":"IFERROR(HYPERLINK(_xlfn.XLOOKUP(DeliveryServicesTable[[#This Row],[CSA '#]],CSA,Pricing_Hyperlink),\"Click Here\"),\"\")","v":"Click Here"}]
[null,"Virtual","Managing Global Enterprises","Simon Fraser University","CS-001041","Burnaby, BC","Seychelle Cushing\n778-782-5822\nseychelle_cushing@sfu.ca\n",{"$f":"IFERROR(HYPERLINK(_xlfn.XLOOKUP(DeliveryServicesTable[[#This Row],[CSA '#]],CSA,Pricing_Hyperlink),\"Click Here\"),\"\")","v":"Click Here"}]
[null,"Face to Face","Managing Innovation","Simon Fraser University","CS-001041","Burnaby, BC","Seychelle Cushing\n778-782-5822\nseychelle_cushing@sfu.ca\n",{"$f":"IFERROR(HYPERLINK(_xlfn.XLOOKUP(DeliveryServicesTable[[#This Row],[CSA '#]],CSA,Pricing_Hyperlink),\"Click Here\"),\"\")","v":"Click Here"}]
[null,"Blended Learning","Managing Innovation","Simon Fraser University","CS-001041","Burnaby, BC","Seychelle Cushing\n778-782-5822\nseychelle_cushing@sfu.ca\n",{"$f":"IFERROR(HYPERLINK(_xlfn.XLOOKUP(DeliveryServicesTable[[#This Row],[CSA '#]],CSA,Pricing_Hyperlink),\"Click Here\"),\"\")","v":"Click Here"}]
[null,"Virtual","Managing Innovation","Simon Fraser University","CS-001041","Burnaby, BC","Seychelle Cushing\n778-782-5822\nseychelle_cushing@sfu.ca\n",{"$f":"IFERROR(HYPERLINK(_xlfn.XLOOKUP(DeliveryServicesTable[[#This Row],[CSA '#]],CSA,Pricing_Hyperlink),\"Click Here\"),\"\")","v":"Click Here"}]
[null,"Face to Face","Managing People and Organizations","Simon Fraser University","CS-001041","Burnaby, BC","Seychelle Cushing\n778-782-5822\nseychelle_cushing@sfu.ca\n",{"$f":"IFERROR(HYPERLINK(_xlfn.XLOOKUP(DeliveryServicesTable[[#This Row],[CSA '#]],CSA,Pricing_Hyperlink),\"Click Here\"),\"\")","v":"Click Here"}]
[null,"Blended Learning","Managing People and Organizations","Simon Fraser University","CS-001041","Burnaby, BC","Seychelle Cushing\n778-782-5822\nseychelle_cushing@sfu.ca\n",{"$f":"IFERROR(HYPERLINK(_xlfn.XLOOKUP(DeliveryServicesTable[[#This Row],[CSA '#]],CSA,Pricing_Hyperlink),\"Click Here\"),\"\")","v":"Click Here"}]
[null,"Virtual","Managing People and Organizations","Simon Fraser University","CS-001041","Burnaby, BC","Seychelle Cushing\n778-782-5822\nseychelle_cushing@sfu.ca\n",{"$f":"IFERROR(HYPERLINK(_xlfn.XLOOKUP(DeliveryServicesTable[[#This Row],[CSA '#]],CSA,Pricing_Hyperlink),\"Click Here\"),\"\")","v":"Click Here"}]
[null,"Face to Face","Market Risk Management","Simon Fraser University","CS-001041","Burnaby, BC","Seychelle Cushing\n778-782-5822\nseychelle_cushing@sfu.ca\n",{"$f":"IFERROR(HYPERLINK(_xlfn.XLOOKUP(DeliveryServicesTable[[#This Row],[CSA '#]],CSA,Pricing_Hyperlink),\"Click Here\"),\"\")","v":"Click Here"}]
[null,"Blended Learning","Market Risk Management","Simon Fraser University","CS-001041","Burnaby, BC","Seychelle Cushing\n778-782-5822\nseychelle_cushing@sfu.ca\n",{"$f":"IFERROR(HYPERLINK(_xlfn.XLOOKUP(DeliveryServicesTable[[#This Row],[CSA '#]],CSA,Pricing_Hyperlink),\"Click Here\"),\"\")","v":"Click Here"}]
[null,"Virtual","Market Risk Management","Simon Fraser University","CS-001041","Burnaby, BC","Seychelle Cushing\n778-782-5822\nseychelle_cushing@sfu.ca\n",{"$f":"IFERROR(HYPERLINK(_xlfn.XLOOKUP(DeliveryServicesTable[[#This Row],[CSA '#]],CSA,Pricing_Hyperlink),\"Click Here\"),\"\")","v":"Click Here"}]
[null,"Face to Face","Marketing Management","Simon Fraser University","CS-001041","Burnaby, BC","Seychelle Cushing\n778-782-5822\nseychelle_cushing@sfu.ca\n",{"$f":"IFERROR(HYPERLINK(_xlfn.XLOOKUP(DeliveryServicesTable[[#This Row],[CSA '#]],CSA,Pricing_Hyperlink),\"Click Here\"),\"\")","v":"Click Here"}]
[null,"Blended Learning","Marketing Management","Simon Fraser University","CS-001041","Burnaby, BC","Seychelle Cushing\n778-782-5822\nseychelle_cushing@sfu.ca\n",{"$f":"IFERROR(HYPERLINK(_xlfn.XLOOKUP(DeliveryServicesTable[[#This Row],[CSA '#]],CSA,Pricing_Hyperlink),\"Click Here\"),\"\")","v":"Click Here"}]
[null,"Virtual","Marketing Management","Simon Fraser University","CS-001041","Burnaby, BC","Seychelle Cushing\n778-782-5822\nseychelle_cushing@sfu.ca\n",{"$f":"IFERROR(HYPERLINK(_xlfn.XLOOKUP(DeliveryServicesTable[[#This Row],[CSA '#]],CSA,Pricing_Hyperlink),\"Click Here\"),\"\")","v":"Click Here"}]
[null,"Face to Face","Marketing Strategy","Simon Fraser University","CS-001041","Burnaby, BC","Seychelle Cushing\n778-782-5822\nseychelle_cushing@sfu.ca\n",{"$f":"IFERROR(HYPERLINK(_xlfn.XLOOKUP(DeliveryServicesTable[[#This Row],[CSA '#]],CSA,Pricing_Hyperlink),\"Click Here\"),\"\")","v":"Click Here"}]
[null,"Blended Learning","Marketing Strategy","Simon Fraser University","CS-001041","Burnaby, BC","Seychelle Cushing\n778-782-5822\nseychelle_cushing@sfu.ca\n",{"$f":"IFERROR(HYPERLINK(_xlfn.XLOOKUP(DeliveryServicesTable[[#This Row],[CSA '#]],CSA,Pricing_Hyperlink),\"Click Here\"),\"\")","v":"Click Here"}]
[null,"Virtual","Marketing Strategy","Simon Fraser University","CS-001041","Burnaby, BC","Seychelle Cushing\n778-782-5822\nseychelle_cushing@sfu.ca\n",{"$f":"IFERROR(HYPERLINK(_xlfn.XLOOKUP(DeliveryServicesTable[[#This Row],[CSA '#]],CSA,Pricing_Hyperlink),\"Click Here\"),\"\")","v":"Click Here"}]
[null,"Face to Face","Marketing Tech-based Products","Simon Fraser University","CS-001041","Burnaby, BC","Seychelle Cushing\n778-782-5822\nseychelle_cushing@sfu.ca\n",{"$f":"IFERROR(HYPERLINK(_xlfn.XLOOKUP(DeliveryServicesTable[[#This Row],[CSA '#]],CSA,Pricing_Hyperlink),\"Click Here\"),\"\")","v":"Click Here"}]
[null,"Blended Learning","Marketing Tech-based Products","Simon Fraser University","CS-001041","Burnaby, BC","Seychelle Cushing\n778-782-5822\nseychelle_cushing@sfu.ca\n",{"$f":"IFERROR(HYPERLINK(_xlfn.XLOOKUP(DeliveryServicesTable[[#This Row],[CSA '#]],CSA,Pricing_Hyperlink),\"Click Here\"),\"\")","v":"Click Here"}]
[null,"Virtual","Marketing Tech-based Products","Simon Fraser University","CS-001041","Burnaby, BC","Seychelle Cushing\n778-782-5822\nseychelle_cushing@sfu.ca\n",{"$f":"IFERROR(HYPERLINK(_xlfn.XLOOKUP(DeliveryServicesTable[[#This Row],[CSA '#]],CSA,Pricing_Hyperlink),\"Click Here\"),\"\")","v":"Click Here"}]
[null,"Face to Face","Mathematics for Computational Finance","Simon Fraser University","CS-001041","Burnaby, BC","Seychelle Cushing\n778-782-5822\nseychelle_cushing@sfu.ca\n",{"$f":"IFERROR(HYPERLINK(_xlfn.XLOOKUP(DeliveryServicesTable[[#This Row],[CSA '#]],CSA,Pricing_Hyperlink),\"Click Here\"),\"\")","v":"Click Here"}]
[null,"Blended Learning","Mathematics for Computational Finance","Simon Fraser University","CS-001041","Burnaby, BC","Seychelle Cushing\n778-782-5822\nseychelle_cushing@sfu.ca\n",{"$f":"IFERROR(HYPERLINK(_xlfn.XLOOKUP(DeliveryServicesTable[[#This Row],[CSA '#]],CSA,Pricing_Hyperlink),\"Click Here\"),\"\")","v":"Click Here"}]
[null,"Virtual","Mathematics for Computational Finance","Simon Fraser University","CS-001041","Burnaby, BC","Seychelle Cushing\n778-782-5822\nseychelle_cushing@sfu.ca\n",{"$f":"IFERROR(HYPERLINK(_xlfn.XLOOKUP(DeliveryServicesTable[[#This Row],[CSA '#]],CSA,Pricing_Hyperlink),\"Click Here\"),\"\")","v":"Click Here"}]
[null,"Face to Face","Naïve Bayes","Simon Fraser University","CS-001041","Burnaby, BC","Seychelle Cushing\n778-782-5822\nseychelle_cushing@sfu.ca\n",{"$f":"IFERROR(HYPERLINK(_xlfn.XLOOKUP(DeliveryServicesTable[[#This Row],[CSA '#]],CSA,Pricing_Hyperlink),\"Click Here\"),\"\")","v":"Click Here"}]
[null,"Blended Learning","Naïve Bayes","Simon Fraser University","CS-001041","Burnaby, BC","Seychelle Cushing\n778-782-5822\nseychelle_cushing@sfu.ca\n",{"$f":"IFERROR(HYPERLINK(_xlfn.XLOOKUP(DeliveryServicesTable[[#This Row],[CSA '#]],CSA,Pricing_Hyperlink),\"Click Here\"),\"\")","v":"Click Here"}]
[null,"Virtual","Naïve Bayes","Simon Fraser University","CS-001041","Burnaby, BC","Seychelle Cushing\n778-782-5822\nseychelle_cushing@sfu.ca\n",{"$f":"IFERROR(HYPERLINK(_xlfn.XLOOKUP(DeliveryServicesTable[[#This Row],[CSA '#]],CSA,Pricing_Hyperlink),\"Click Here\"),\"\")","v":"Click Here"}]
[null,"Face to Face","Natural Language Processing (NLP)","Simon Fraser University","CS-001041","Burnaby, BC","Seychelle Cushing\n778-782-5822\nseychelle_cushing@sfu.ca\n",{"$f":"IFERROR(HYPERLINK(_xlfn.XLOOKUP(DeliveryServicesTable[[#This Row],[CSA '#]],CSA,Pricing_Hyperlink),\"Click Here\"),\"\")","v":"Click Here"}]
[null,"Blended Learning","Natural Language Processing (NLP)","Simon Fraser University","CS-001041","Burnaby, BC","Seychelle Cushing\n778-782-5822\nseychelle_cushing@sfu.ca\n",{"$f":"IFERROR(HYPERLINK(_xlfn.XLOOKUP(DeliveryServicesTable[[#This Row],[CSA '#]],CSA,Pricing_Hyperlink),\"Click Here\"),\"\")","v":"Click Here"}]
[null,"Virtual","Natural Language Processing (NLP)","Simon Fraser University","CS-001041","Burnaby, BC","Seychelle Cushing\n778-782-5822\nseychelle_cushing@sfu.ca\n",{"$f":"IFERROR(HYPERLINK(_xlfn.XLOOKUP(DeliveryServicesTable[[#This Row],[CSA '#]],CSA,Pricing_Hyperlink),\"Click Here\"),\"\")","v":"Click Here"}]
[null,"Face to Face","Negotiation and Conflict Resolution","Simon Fraser University","CS-001041","Burnaby, BC","Seychelle Cushing\n778-782-5822\nseychelle_cushing@sfu.ca\n",{"$f":"IFERROR(HYPERLINK(_xlfn.XLOOKUP(DeliveryServicesTable[[#This Row],[CSA '#]],CSA,Pricing_Hyperlink),\"Click Here\"),\"\")","v":"Click Here"}]
[null,"Blended Learning","Negotiation and Conflict Resolution","Simon Fraser University","CS-001041","Burnaby, BC","Seychelle Cushing\n778-782-5822\nseychelle_cushing@sfu.ca\n",{"$f":"IFERROR(HYPERLINK(_xlfn.XLOOKUP(DeliveryServicesTable[[#This Row],[CSA '#]],CSA,Pricing_Hyperlink),\"Click Here\"),\"\")","v":"Click Here"}]
[null,"Virtual","Negotiation and Conflict Resolution","Simon Fraser University","CS-001041","Burnaby, BC","Seychelle Cushing\n778-782-5822\nseychelle_cushing@sfu.ca\n",{"$f":"IFERROR(HYPERLINK(_xlfn.XLOOKUP(DeliveryServicesTable[[#This Row],[CSA '#]],CSA,Pricing_Hyperlink),\"Click Here\"),\"\")","v":"Click Here"}]
[null,"Face to Face","Network Analysis","Simon Fraser University","CS-001041","Burnaby, BC","Seychelle Cushing\n778-782-5822\nseychelle_cushing@sfu.ca\n",{"$f":"IFERROR(HYPERLINK(_xlfn.XLOOKUP(DeliveryServicesTable[[#This Row],[CSA '#]],CSA,Pricing_Hyperlink),\"Click Here\"),\"\")","v":"Click Here"}]
[null,"Blended Learning","Network Analysis","Simon Fraser University","CS-001041","Burnaby, BC","Seychelle Cushing\n778-782-5822\nseychelle_cushing@sfu.ca\n",{"$f":"IFERROR(HYPERLINK(_xlfn.XLOOKUP(DeliveryServicesTable[[#This Row],[CSA '#]],CSA,Pricing_Hyperlink),\"Click Here\"),\"\")","v":"Click Here"}]
[null,"Virtual","Network Analysis","Simon Fraser University","CS-001041","Burnaby, BC","Seychelle Cushing\n778-782-5822\nseychelle_cushing@sfu.ca\n",{"$f":"IFERROR(HYPERLINK(_xlfn.XLOOKUP(DeliveryServicesTable[[#This Row],[CSA '#]],CSA,Pricing_Hyperlink),\"Click Here\"),\"\")","v":"Click Here"}]
[null,"Face to Face","Neural Networks / Deep Learning","Simon Fraser University","CS-001041","Burnaby, BC","Seychelle Cushing\n778-782-5822\nseychelle_cushing@sfu.ca\n",{"$f":"IFERROR(HYPERLINK(_xlfn.XLOOKUP(DeliveryServicesTable[[#This Row],[CSA '#]],CSA,Pricing_Hyperlink),\"Click Here\"),\"\")","v":"Click Here"}]
[null,"Blended Learning","Neural Networks / Deep Learning","Simon Fraser University","CS-001041","Burnaby, BC","Seychelle Cushing\n778-782-5822\nseychelle_cushing@sfu.ca\n",{"$f":"IFERROR(HYPERLINK(_xlfn.XLOOKUP(DeliveryServicesTable[[#This Row],[CSA '#]],CSA,Pricing_Hyperlink),\"Click Here\"),\"\")","v":"Click Here"}]
[null,"Virtual","Neural Networks / Deep Learning","Simon Fraser University","CS-001041","Burnaby, BC","Seychelle Cushing\n778-782-5822\nseychelle_cushing@sfu.ca\n",{"$f":"IFERROR(HYPERLINK(_xlfn.XLOOKUP(DeliveryServicesTable[[#This Row],[CSA '#]],CSA,Pricing_Hyperlink),\"Click Here\"),\"\")","v":"Click Here"}]
[null,"Face to Face","New Ventures","Simon Fraser University","CS-001041","Burnaby, BC","Seychelle Cushing\n778-782-5822\nseychelle_cushing@sfu.ca\n",{"$f":"IFERROR(HYPERLINK(_xlfn.XLOOKUP(DeliveryServicesTable[[#This Row],[CSA '#]],CSA,Pricing_Hyperlink),\"Click Here\"),\"\")","v":"Click Here"}]
[null,"Blended Learning","New Ventures","Simon Fraser University","CS-001041","Burnaby, BC","Seychelle Cushing\n778-782-5822\nseychelle_cushing@sfu.ca\n",{"$f":"IFERROR(HYPERLINK(_xlfn.XLOOKUP(DeliveryServicesTable[[#This Row],[CSA '#]],CSA,Pricing_Hyperlink),\"Click Here\"),\"\")","v":"Click Here"}]
[null,"Virtual","New Ventures","Simon Fraser University","CS-001041","Burnaby, BC","Seychelle Cushing\n778-782-5822\nseychelle_cushing@sfu.ca\n",{"$f":"IFERROR(HYPERLINK(_xlfn.XLOOKUP(DeliveryServicesTable[[#This Row],[CSA '#]],CSA,Pricing_Hyperlink),\"Click Here\"),\"\")","v":"Click Here"}]
[null,"Face to Face","Numerical Methods","Simon Fraser University","CS-001041","Burnaby, BC","Seychelle Cushing\n778-782-5822\nseychelle_cushing@sfu.ca\n",{"$f":"IFERROR(HYPERLINK(_xlfn.XLOOKUP(DeliveryServicesTable[[#This Row],[CSA '#]],CSA,Pricing_Hyperlink),\"Click Here\"),\"\")","v":"Click Here"}]
[null,"Blended Learning","Numerical Methods","Simon Fraser University","CS-001041","Burnaby, BC","Seychelle Cushing\n778-782-5822\nseychelle_cushing@sfu.ca\n",{"$f":"IFERROR(HYPERLINK(_xlfn.XLOOKUP(DeliveryServicesTable[[#This Row],[CSA '#]],CSA,Pricing_Hyperlink),\"Click Here\"),\"\")","v":"Click Here"}]
[null,"Virtual","Numerical Methods","Simon Fraser University","CS-001041","Burnaby, BC","Seychelle Cushing\n778-782-5822\nseychelle_cushing@sfu.ca\n",{"$f":"IFERROR(HYPERLINK(_xlfn.XLOOKUP(DeliveryServicesTable[[#This Row],[CSA '#]],CSA,Pricing_Hyperlink),\"Click Here\"),\"\")","v":"Click Here"}]
[null,"Face to Face","Occupational Safety & Health","Simon Fraser University","CS-001041","Burnaby, BC","Seychelle Cushing\n778-782-5822\nseychelle_cushing@sfu.ca\n",{"$f":"IFERROR(HYPERLINK(_xlfn.XLOOKUP(DeliveryServicesTable[[#This Row],[CSA '#]],CSA,Pricing_Hyperlink),\"Click Here\"),\"\")","v":"Click Here"}]
[null,"Blended Learning","Occupational Safety & Health","Simon Fraser University","CS-001041","Burnaby, BC","Seychelle Cushing\n778-782-5822\nseychelle_cushing@sfu.ca\n",{"$f":"IFERROR(HYPERLINK(_xlfn.XLOOKUP(DeliveryServicesTable[[#This Row],[CSA '#]],CSA,Pricing_Hyperlink),\"Click Here\"),\"\")","v":"Click Here"}]
[null,"Virtual","Occupational Safety & Health","Simon Fraser University","CS-001041","Burnaby, BC","Seychelle Cushing\n778-782-5822\nseychelle_cushing@sfu.ca\n",{"$f":"IFERROR(HYPERLINK(_xlfn.XLOOKUP(DeliveryServicesTable[[#This Row],[CSA '#]],CSA,Pricing_Hyperlink),\"Click Here\"),\"\")","v":"Click Here"}]
[null,"Face to Face","Operational Finance","Simon Fraser University","CS-001041","Burnaby, BC","Seychelle Cushing\n778-782-5822\nseychelle_cushing@sfu.ca\n",{"$f":"IFERROR(HYPERLINK(_xlfn.XLOOKUP(DeliveryServicesTable[[#This Row],[CSA '#]],CSA,Pricing_Hyperlink),\"Click Here\"),\"\")","v":"Click Here"}]
[null,"Blended Learning","Operational Finance","Simon Fraser University","CS-001041","Burnaby, BC","Seychelle Cushing\n778-782-5822\nseychelle_cushing@sfu.ca\n",{"$f":"IFERROR(HYPERLINK(_xlfn.XLOOKUP(DeliveryServicesTable[[#This Row],[CSA '#]],CSA,Pricing_Hyperlink),\"Click Here\"),\"\")","v":"Click Here"}]
[null,"Virtual","Operational Finance","Simon Fraser University","CS-001041","Burnaby, BC","Seychelle Cushing\n778-782-5822\nseychelle_cushing@sfu.ca\n",{"$f":"IFERROR(HYPERLINK(_xlfn.XLOOKUP(DeliveryServicesTable[[#This Row],[CSA '#]],CSA,Pricing_Hyperlink),\"Click Here\"),\"\")","v":"Click Here"}]
[null,"Face to Face","Operational Risk Management","Simon Fraser University","CS-001041","Burnaby, BC","Seychelle Cushing\n778-782-5822\nseychelle_cushing@sfu.ca\n",{"$f":"IFERROR(HYPERLINK(_xlfn.XLOOKUP(DeliveryServicesTable[[#This Row],[CSA '#]],CSA,Pricing_Hyperlink),\"Click Here\"),\"\")","v":"Click Here"}]
[null,"Blended Learning","Operational Risk Management","Simon Fraser University","CS-001041","Burnaby, BC","Seychelle Cushing\n778-782-5822\nseychelle_cushing@sfu.ca\n",{"$f":"IFERROR(HYPERLINK(_xlfn.XLOOKUP(DeliveryServicesTable[[#This Row],[CSA '#]],CSA,Pricing_Hyperlink),\"Click Here\"),\"\")","v":"Click Here"}]
[null,"Virtual","Operational Risk Management","Simon Fraser University","CS-001041","Burnaby, BC","Seychelle Cushing\n778-782-5822\nseychelle_cushing@sfu.ca\n",{"$f":"IFERROR(HYPERLINK(_xlfn.XLOOKUP(DeliveryServicesTable[[#This Row],[CSA '#]],CSA,Pricing_Hyperlink),\"Click Here\"),\"\")","v":"Click Here"}]
[null,"Face to Face","Operations Management","Simon Fraser University","CS-001041","Burnaby, BC","Seychelle Cushing\n778-782-5822\nseychelle_cushing@sfu.ca\n",{"$f":"IFERROR(HYPERLINK(_xlfn.XLOOKUP(DeliveryServicesTable[[#This Row],[CSA '#]],CSA,Pricing_Hyperlink),\"Click Here\"),\"\")","v":"Click Here"}]
[null,"Blended Learning","Operations Management","Simon Fraser University","CS-001041","Burnaby, BC","Seychelle Cushing\n778-782-5822\nseychelle_cushing@sfu.ca\n",{"$f":"IFERROR(HYPERLINK(_xlfn.XLOOKUP(DeliveryServicesTable[[#This Row],[CSA '#]],CSA,Pricing_Hyperlink),\"Click Here\"),\"\")","v":"Click Here"}]
[null,"Virtual","Operations Management","Simon Fraser University","CS-001041","Burnaby, BC","Seychelle Cushing\n778-782-5822\nseychelle_cushing@sfu.ca\n",{"$f":"IFERROR(HYPERLINK(_xlfn.XLOOKUP(DeliveryServicesTable[[#This Row],[CSA '#]],CSA,Pricing_Hyperlink),\"Click Here\"),\"\")","v":"Click Here"}]
[null,"Face to Face","Operations Research","Simon Fraser University","CS-001041","Burnaby, BC","Seychelle Cushing\n778-782-5822\nseychelle_cushing@sfu.ca\n",{"$f":"IFERROR(HYPERLINK(_xlfn.XLOOKUP(DeliveryServicesTable[[#This Row],[CSA '#]],CSA,Pricing_Hyperlink),\"Click Here\"),\"\")","v":"Click Here"}]
[null,"Blended Learning","Operations Research","Simon Fraser University","CS-001041","Burnaby, BC","Seychelle Cushing\n778-782-5822\nseychelle_cushing@sfu.ca\n",{"$f":"IFERROR(HYPERLINK(_xlfn.XLOOKUP(DeliveryServicesTable[[#This Row],[CSA '#]],CSA,Pricing_Hyperlink),\"Click Here\"),\"\")","v":"Click Here"}]
[null,"Virtual","Operations Research","Simon Fraser University","CS-001041","Burnaby, BC","Seychelle Cushing\n778-782-5822\nseychelle_cushing@sfu.ca\n",{"$f":"IFERROR(HYPERLINK(_xlfn.XLOOKUP(DeliveryServicesTable[[#This Row],[CSA '#]],CSA,Pricing_Hyperlink),\"Click Here\"),\"\")","v":"Click Here"}]
[null,"Face to Face","Opp. Identification and Assessment","Simon Fraser University","CS-001041","Burnaby, BC","Seychelle Cushing\n778-782-5822\nseychelle_cushing@sfu.ca\n",{"$f":"IFERROR(HYPERLINK(_xlfn.XLOOKUP(DeliveryServicesTable[[#This Row],[CSA '#]],CSA,Pricing_Hyperlink),\"Click Here\"),\"\")","v":"Click Here"}]
[null,"Blended Learning","Opp. Identification and Assessment","Simon Fraser University","CS-001041","Burnaby, BC","Seychelle Cushing\n778-782-5822\nseychelle_cushing@sfu.ca\n",{"$f":"IFERROR(HYPERLINK(_xlfn.XLOOKUP(DeliveryServicesTable[[#This Row],[CSA '#]],CSA,Pricing_Hyperlink),\"Click Here\"),\"\")","v":"Click Here"}]
[null,"Virtual","Opp. Identification and Assessment","Simon Fraser University","CS-001041","Burnaby, BC","Seychelle Cushing\n778-782-5822\nseychelle_cushing@sfu.ca\n",{"$f":"IFERROR(HYPERLINK(_xlfn.XLOOKUP(DeliveryServicesTable[[#This Row],[CSA '#]],CSA,Pricing_Hyperlink),\"Click Here\"),\"\")","v":"Click Here"}]
[null,"Face to Face","Organizational Analysis","Simon Fraser University","CS-001041","Burnaby, BC","Seychelle Cushing\n778-782-5822\nseychelle_cushing@sfu.ca\n",{"$f":"IFERROR(HYPERLINK(_xlfn.XLOOKUP(DeliveryServicesTable[[#This Row],[CSA '#]],CSA,Pricing_Hyperlink),\"Click Here\"),\"\")","v":"Click Here"}]
[null,"Blended Learning","Organizational Analysis","Simon Fraser University","CS-001041","Burnaby, BC","Seychelle Cushing\n778-782-5822\nseychelle_cushing@sfu.ca\n",{"$f":"IFERROR(HYPERLINK(_xlfn.XLOOKUP(DeliveryServicesTable[[#This Row],[CSA '#]],CSA,Pricing_Hyperlink),\"Click Here\"),\"\")","v":"Click Here"}]
[null,"Virtual","Organizational Analysis","Simon Fraser University","CS-001041","Burnaby, BC","Seychelle Cushing\n778-782-5822\nseychelle_cushing@sfu.ca\n",{"$f":"IFERROR(HYPERLINK(_xlfn.XLOOKUP(DeliveryServicesTable[[#This Row],[CSA '#]],CSA,Pricing_Hyperlink),\"Click Here\"),\"\")","v":"Click Here"}]
[null,"Face to Face","Organizational Behaviour","Simon Fraser University","CS-001041","Burnaby, BC","Seychelle Cushing\n778-782-5822\nseychelle_cushing@sfu.ca\n",{"$f":"IFERROR(HYPERLINK(_xlfn.XLOOKUP(DeliveryServicesTable[[#This Row],[CSA '#]],CSA,Pricing_Hyperlink),\"Click Here\"),\"\")","v":"Click Here"}]
[null,"Blended Learning","Organizational Behaviour","Simon Fraser University","CS-001041","Burnaby, BC","Seychelle Cushing\n778-782-5822\nseychelle_cushing@sfu.ca\n",{"$f":"IFERROR(HYPERLINK(_xlfn.XLOOKUP(DeliveryServicesTable[[#This Row],[CSA '#]],CSA,Pricing_Hyperlink),\"Click Here\"),\"\")","v":"Click Here"}]
[null,"Virtual","Organizational Behaviour","Simon Fraser University","CS-001041","Burnaby, BC","Seychelle Cushing\n778-782-5822\nseychelle_cushing@sfu.ca\n",{"$f":"IFERROR(HYPERLINK(_xlfn.XLOOKUP(DeliveryServicesTable[[#This Row],[CSA '#]],CSA,Pricing_Hyperlink),\"Click Here\"),\"\")","v":"Click Here"}]
[null,"Face to Face","Organizational Change and Development","Simon Fraser University","CS-001041","Burnaby, BC","Seychelle Cushing\n778-782-5822\nseychelle_cushing@sfu.ca\n",{"$f":"IFERROR(HYPERLINK(_xlfn.XLOOKUP(DeliveryServicesTable[[#This Row],[CSA '#]],CSA,Pricing_Hyperlink),\"Click Here\"),\"\")","v":"Click Here"}]
[null,"Blended Learning","Organizational Change and Development","Simon Fraser University","CS-001041","Burnaby, BC","Seychelle Cushing\n778-782-5822\nseychelle_cushing@sfu.ca\n",{"$f":"IFERROR(HYPERLINK(_xlfn.XLOOKUP(DeliveryServicesTable[[#This Row],[CSA '#]],CSA,Pricing_Hyperlink),\"Click Here\"),\"\")","v":"Click Here"}]
[null,"Virtual","Organizational Change and Development","Simon Fraser University","CS-001041","Burnaby, BC","Seychelle Cushing\n778-782-5822\nseychelle_cushing@sfu.ca\n",{"$f":"IFERROR(HYPERLINK(_xlfn.XLOOKUP(DeliveryServicesTable[[#This Row],[CSA '#]],CSA,Pricing_Hyperlink),\"Click Here\"),\"\")","v":"Click Here"}]
[null,"Face to Face","Performance","Simon Fraser University","CS-001041","Burnaby, BC","Seychelle Cushing\n778-782-5822\nseychelle_cushing@sfu.ca\n",{"$f":"IFERROR(HYPERLINK(_xlfn.XLOOKUP(DeliveryServicesTable[[#This Row],[CSA '#]],CSA,Pricing_Hyperlink),\"Click Here\"),\"\")","v":"Click Here"}]
[null,"Blended Learning","Performance","Simon Fraser University","CS-001041","Burnaby, BC","Seychelle Cushing\n778-782-5822\nseychelle_cushing@sfu.ca\n",{"$f":"IFERROR(HYPERLINK(_xlfn.XLOOKUP(DeliveryServicesTable[[#This Row],[CSA '#]],CSA,Pricing_Hyperlink),\"Click Here\"),\"\")","v":"Click Here"}]
[null,"Virtual","Performance","Simon Fraser University","CS-001041","Burnaby, BC","Seychelle Cushing\n778-782-5822\nseychelle_cushing@sfu.ca\n",{"$f":"IFERROR(HYPERLINK(_xlfn.XLOOKUP(DeliveryServicesTable[[#This Row],[CSA '#]],CSA,Pricing_Hyperlink),\"Click Here\"),\"\")","v":"Click Here"}]
[null,"Face to Face","Personal Enrichment","Simon Fraser University","CS-001041","Burnaby, BC","Seychelle Cushing\n778-782-5822\nseychelle_cushing@sfu.ca\n",{"$f":"IFERROR(HYPERLINK(_xlfn.XLOOKUP(DeliveryServicesTable[[#This Row],[CSA '#]],CSA,Pricing_Hyperlink),\"Click Here\"),\"\")","v":"Click Here"}]
[null,"Blended Learning","Personal Enrichment","Simon Fraser University","CS-001041","Burnaby, BC","Seychelle Cushing\n778-782-5822\nseychelle_cushing@sfu.ca\n",{"$f":"IFERROR(HYPERLINK(_xlfn.XLOOKUP(DeliveryServicesTable[[#This Row],[CSA '#]],CSA,Pricing_Hyperlink),\"Click Here\"),\"\")","v":"Click Here"}]
[null,"Virtual","Personal Enrichment","Simon Fraser University","CS-001041","Burnaby, BC","Seychelle Cushing\n778-782-5822\nseychelle_cushing@sfu.ca\n",{"$f":"IFERROR(HYPERLINK(_xlfn.XLOOKUP(DeliveryServicesTable[[#This Row],[CSA '#]],CSA,Pricing_Hyperlink),\"Click Here\"),\"\")","v":"Click Here"}]
[null,"Face to Face","Policy and Government","Simon Fraser University","CS-001041","Burnaby, BC","Seychelle Cushing\n778-782-5822\nseychelle_cushing@sfu.ca\n",{"$f":"IFERROR(HYPERLINK(_xlfn.XLOOKUP(DeliveryServicesTable[[#This Row],[CSA '#]],CSA,Pricing_Hyperlink),\"Click Here\"),\"\")","v":"Click Here"}]
[null,"Blended Learning","Policy and Government","Simon Fraser University","CS-001041","Burnaby, BC","Seychelle Cushing\n778-782-5822\nseychelle_cushing@sfu.ca\n",{"$f":"IFERROR(HYPERLINK(_xlfn.XLOOKUP(DeliveryServicesTable[[#This Row],[CSA '#]],CSA,Pricing_Hyperlink),\"Click Here\"),\"\")","v":"Click Here"}]
[null,"Virtual","Policy and Government","Simon Fraser University","CS-001041","Burnaby, BC","Seychelle Cushing\n778-782-5822\nseychelle_cushing@sfu.ca\n",{"$f":"IFERROR(HYPERLINK(_xlfn.XLOOKUP(DeliveryServicesTable[[#This Row],[CSA '#]],CSA,Pricing_Hyperlink),\"Click Here\"),\"\")","v":"Click Here"}]
[null,"Face to Face","Portfolio Theory and Asset Pricing","Simon Fraser University","CS-001041","Burnaby, BC","Seychelle Cushing\n778-782-5822\nseychelle_cushing@sfu.ca\n",{"$f":"IFERROR(HYPERLINK(_xlfn.XLOOKUP(DeliveryServicesTable[[#This Row],[CSA '#]],CSA,Pricing_Hyperlink),\"Click Here\"),\"\")","v":"Click Here"}]
[null,"Blended Learning","Portfolio Theory and Asset Pricing","Simon Fraser University","CS-001041","Burnaby, BC","Seychelle Cushing\n778-782-5822\nseychelle_cushing@sfu.ca\n",{"$f":"IFERROR(HYPERLINK(_xlfn.XLOOKUP(DeliveryServicesTable[[#This Row],[CSA '#]],CSA,Pricing_Hyperlink),\"Click Here\"),\"\")","v":"Click Here"}]
[null,"Virtual","Portfolio Theory and Asset Pricing","Simon Fraser University","CS-001041","Burnaby, BC","Seychelle Cushing\n778-782-5822\nseychelle_cushing@sfu.ca\n",{"$f":"IFERROR(HYPERLINK(_xlfn.XLOOKUP(DeliveryServicesTable[[#This Row],[CSA '#]],CSA,Pricing_Hyperlink),\"Click Here\"),\"\")","v":"Click Here"}]
[null,"Face to Face","Predictive Modelling","Simon Fraser University","CS-001041","Burnaby, BC","Seychelle Cushing\n778-782-5822\nseychelle_cushing@sfu.ca\n",{"$f":"IFERROR(HYPERLINK(_xlfn.XLOOKUP(DeliveryServicesTable[[#This Row],[CSA '#]],CSA,Pricing_Hyperlink),\"Click Here\"),\"\")","v":"Click Here"}]
[null,"Blended Learning","Predictive Modelling","Simon Fraser University","CS-001041","Burnaby, BC","Seychelle Cushing\n778-782-5822\nseychelle_cushing@sfu.ca\n",{"$f":"IFERROR(HYPERLINK(_xlfn.XLOOKUP(DeliveryServicesTable[[#This Row],[CSA '#]],CSA,Pricing_Hyperlink),\"Click Here\"),\"\")","v":"Click Here"}]
[null,"Virtual","Predictive Modelling","Simon Fraser University","CS-001041","Burnaby, BC","Seychelle Cushing\n778-782-5822\nseychelle_cushing@sfu.ca\n",{"$f":"IFERROR(HYPERLINK(_xlfn.XLOOKUP(DeliveryServicesTable[[#This Row],[CSA '#]],CSA,Pricing_Hyperlink),\"Click Here\"),\"\")","v":"Click Here"}]
[null,"Face to Face","Presenting to Stakeholders","Simon Fraser University","CS-001041","Burnaby, BC","Seychelle Cushing\n778-782-5822\nseychelle_cushing@sfu.ca\n",{"$f":"IFERROR(HYPERLINK(_xlfn.XLOOKUP(DeliveryServicesTable[[#This Row],[CSA '#]],CSA,Pricing_Hyperlink),\"Click Here\"),\"\")","v":"Click Here"}]
[null,"Blended Learning","Presenting to Stakeholders","Simon Fraser University","CS-001041","Burnaby, BC","Seychelle Cushing\n778-782-5822\nseychelle_cushing@sfu.ca\n",{"$f":"IFERROR(HYPERLINK(_xlfn.XLOOKUP(DeliveryServicesTable[[#This Row],[CSA '#]],CSA,Pricing_Hyperlink),\"Click Here\"),\"\")","v":"Click Here"}]
[null,"Virtual","Presenting to Stakeholders","Simon Fraser University","CS-001041","Burnaby, BC","Seychelle Cushing\n778-782-5822\nseychelle_cushing@sfu.ca\n",{"$f":"IFERROR(HYPERLINK(_xlfn.XLOOKUP(DeliveryServicesTable[[#This Row],[CSA '#]],CSA,Pricing_Hyperlink),\"Click Here\"),\"\")","v":"Click Here"}]
[null,"Face to Face","Problem Identification and Scoping","Simon Fraser University","CS-001041","Burnaby, BC","Seychelle Cushing\n778-782-5822\nseychelle_cushing@sfu.ca\n",{"$f":"IFERROR(HYPERLINK(_xlfn.XLOOKUP(DeliveryServicesTable[[#This Row],[CSA '#]],CSA,Pricing_Hyperlink),\"Click Here\"),\"\")","v":"Click Here"}]
[null,"Blended Learning","Problem Identification and Scoping","Simon Fraser University","CS-001041","Burnaby, BC","Seychelle Cushing\n778-782-5822\nseychelle_cushing@sfu.ca\n",{"$f":"IFERROR(HYPERLINK(_xlfn.XLOOKUP(DeliveryServicesTable[[#This Row],[CSA '#]],CSA,Pricing_Hyperlink),\"Click Here\"),\"\")","v":"Click Here"}]
[null,"Virtual","Problem Identification and Scoping","Simon Fraser University","CS-001041","Burnaby, BC","Seychelle Cushing\n778-782-5822\nseychelle_cushing@sfu.ca\n",{"$f":"IFERROR(HYPERLINK(_xlfn.XLOOKUP(DeliveryServicesTable[[#This Row],[CSA '#]],CSA,Pricing_Hyperlink),\"Click Here\"),\"\")","v":"Click Here"}]
[null,"Face to Face","Procurement","Simon Fraser University","CS-001041","Burnaby, BC","Seychelle Cushing\n778-782-5822\nseychelle_cushing@sfu.ca\n",{"$f":"IFERROR(HYPERLINK(_xlfn.XLOOKUP(DeliveryServicesTable[[#This Row],[CSA '#]],CSA,Pricing_Hyperlink),\"Click Here\"),\"\")","v":"Click Here"}]
[null,"Blended Learning","Procurement","Simon Fraser University","CS-001041","Burnaby, BC","Seychelle Cushing\n778-782-5822\nseychelle_cushing@sfu.ca\n",{"$f":"IFERROR(HYPERLINK(_xlfn.XLOOKUP(DeliveryServicesTable[[#This Row],[CSA '#]],CSA,Pricing_Hyperlink),\"Click Here\"),\"\")","v":"Click Here"}]
[null,"Virtual","Procurement","Simon Fraser University","CS-001041","Burnaby, BC","Seychelle Cushing\n778-782-5822\nseychelle_cushing@sfu.ca\n",{"$f":"IFERROR(HYPERLINK(_xlfn.XLOOKUP(DeliveryServicesTable[[#This Row],[CSA '#]],CSA,Pricing_Hyperlink),\"Click Here\"),\"\")","v":"Click Here"}]
[null,"Face to Face","Project Management","Simon Fraser University","CS-001041","Burnaby, BC","Seychelle Cushing\n778-782-5822\nseychelle_cushing@sfu.ca\n",{"$f":"IFERROR(HYPERLINK(_xlfn.XLOOKUP(DeliveryServicesTable[[#This Row],[CSA '#]],CSA,Pricing_Hyperlink),\"Click Here\"),\"\")","v":"Click Here"}]
[null,"Blended Learning","Project Management","Simon Fraser University","CS-001041","Burnaby, BC","Seychelle Cushing\n778-782-5822\nseychelle_cushing@sfu.ca\n",{"$f":"IFERROR(HYPERLINK(_xlfn.XLOOKUP(DeliveryServicesTable[[#This Row],[CSA '#]],CSA,Pricing_Hyperlink),\"Click Here\"),\"\")","v":"Click Here"}]
[null,"Virtual","Project Management","Simon Fraser University","CS-001041","Burnaby, BC","Seychelle Cushing\n778-782-5822\nseychelle_cushing@sfu.ca\n",{"$f":"IFERROR(HYPERLINK(_xlfn.XLOOKUP(DeliveryServicesTable[[#This Row],[CSA '#]],CSA,Pricing_Hyperlink),\"Click Here\"),\"\")","v":"Click Here"}]
[null,"Face to Face","Python Programming","Simon Fraser University","CS-001041","Burnaby, BC","Seychelle Cushing\n778-782-5822\nseychelle_cushing@sfu.ca\n",{"$f":"IFERROR(HYPERLINK(_xlfn.XLOOKUP(DeliveryServicesTable[[#This Row],[CSA '#]],CSA,Pricing_Hyperlink),\"Click Here\"),\"\")","v":"Click Here"}]
[null,"Blended Learning","Python Programming","Simon Fraser University","CS-001041","Burnaby, BC","Seychelle Cushing\n778-782-5822\nseychelle_cushing@sfu.ca\n",{"$f":"IFERROR(HYPERLINK(_xlfn.XLOOKUP(DeliveryServicesTable[[#This Row],[CSA '#]],CSA,Pricing_Hyperlink),\"Click Here\"),\"\")","v":"Click Here"}]
[null,"Virtual","Python Programming","Simon Fraser University","CS-001041","Burnaby, BC","Seychelle Cushing\n778-782-5822\nseychelle_cushing@sfu.ca\n",{"$f":"IFERROR(HYPERLINK(_xlfn.XLOOKUP(DeliveryServicesTable[[#This Row],[CSA '#]],CSA,Pricing_Hyperlink),\"Click Here\"),\"\")","v":"Click Here"}]
[null,"Face to Face","Quantitative Business Methods","Simon Fraser University","CS-001041","Burnaby, BC","Seychelle Cushing\n778-782-5822\nseychelle_cushing@sfu.ca\n",{"$f":"IFERROR(HYPERLINK(_xlfn.XLOOKUP(DeliveryServicesTable[[#This Row],[CSA '#]],CSA,Pricing_Hyperlink),\"Click Here\"),\"\")","v":"Click Here"}]
[null,"Blended Learning","Quantitative Business Methods","Simon Fraser University","CS-001041","Burnaby, BC","Seychelle Cushing\n778-782-5822\nseychelle_cushing@sfu.ca\n",{"$f":"IFERROR(HYPERLINK(_xlfn.XLOOKUP(DeliveryServicesTable[[#This Row],[CSA '#]],CSA,Pricing_Hyperlink),\"Click Here\"),\"\")","v":"Click Here"}]
[null,"Virtual","Quantitative Business Methods","Simon Fraser University","CS-001041","Burnaby, BC","Seychelle Cushing\n778-782-5822\nseychelle_cushing@sfu.ca\n",{"$f":"IFERROR(HYPERLINK(_xlfn.XLOOKUP(DeliveryServicesTable[[#This Row],[CSA '#]],CSA,Pricing_Hyperlink),\"Click Here\"),\"\")","v":"Click Here"}]
[null,"Face to Face","R Programming","Simon Fraser University","CS-001041","Burnaby, BC","Seychelle Cushing\n778-782-5822\nseychelle_cushing@sfu.ca\n",{"$f":"IFERROR(HYPERLINK(_xlfn.XLOOKUP(DeliveryServicesTable[[#This Row],[CSA '#]],CSA,Pricing_Hyperlink),\"Click Here\"),\"\")","v":"Click Here"}]
[null,"Blended Learning","R Programming","Simon Fraser University","CS-001041","Burnaby, BC","Seychelle Cushing\n778-782-5822\nseychelle_cushing@sfu.ca\n",{"$f":"IFERROR(HYPERLINK(_xlfn.XLOOKUP(DeliveryServicesTable[[#This Row],[CSA '#]],CSA,Pricing_Hyperlink),\"Click Here\"),\"\")","v":"Click Here"}]
[null,"Virtual","R Programming","Simon Fraser University","CS-001041","Burnaby, BC","Seychelle Cushing\n778-782-5822\nseychelle_cushing@sfu.ca\n",{"$f":"IFERROR(HYPERLINK(_xlfn.XLOOKUP(DeliveryServicesTable[[#This Row],[CSA '#]],CSA,Pricing_Hyperlink),\"Click Here\"),\"\")","v":"Click Here"}]
[null,"Face to Face","Record Linkage","Simon Fraser University","CS-001041","Burnaby, BC","Seychelle Cushing\n778-782-5822\nseychelle_cushing@sfu.ca\n",{"$f":"IFERROR(HYPERLINK(_xlfn.XLOOKUP(DeliveryServicesTable[[#This Row],[CSA '#]],CSA,Pricing_Hyperlink),\"Click Here\"),\"\")","v":"Click Here"}]
[null,"Blended Learning","Record Linkage","Simon Fraser University","CS-001041","Burnaby, BC","Seychelle Cushing\n778-782-5822\nseychelle_cushing@sfu.ca\n",{"$f":"IFERROR(HYPERLINK(_xlfn.XLOOKUP(DeliveryServicesTable[[#This Row],[CSA '#]],CSA,Pricing_Hyperlink),\"Click Here\"),\"\")","v":"Click Here"}]
[null,"Virtual","Record Linkage","Simon Fraser University","CS-001041","Burnaby, BC","Seychelle Cushing\n778-782-5822\nseychelle_cushing@sfu.ca\n",{"$f":"IFERROR(HYPERLINK(_xlfn.XLOOKUP(DeliveryServicesTable[[#This Row],[CSA '#]],CSA,Pricing_Hyperlink),\"Click Here\"),\"\")","v":"Click Here"}]
[null,"Face to Face","Reproducible ETL","Simon Fraser University","CS-001041","Burnaby, BC","Seychelle Cushing\n778-782-5822\nseychelle_cushing@sfu.ca\n",{"$f":"IFERROR(HYPERLINK(_xlfn.XLOOKUP(DeliveryServicesTable[[#This Row],[CSA '#]],CSA,Pricing_Hyperlink),\"Click Here\"),\"\")","v":"Click Here"}]
[null,"Blended Learning","Reproducible ETL","Simon Fraser University","CS-001041","Burnaby, BC","Seychelle Cushing\n778-782-5822\nseychelle_cushing@sfu.ca\n",{"$f":"IFERROR(HYPERLINK(_xlfn.XLOOKUP(DeliveryServicesTable[[#This Row],[CSA '#]],CSA,Pricing_Hyperlink),\"Click Here\"),\"\")","v":"Click Here"}]
[null,"Virtual","Reproducible ETL","Simon Fraser University","CS-001041","Burnaby, BC","Seychelle Cushing\n778-782-5822\nseychelle_cushing@sfu.ca\n",{"$f":"IFERROR(HYPERLINK(_xlfn.XLOOKUP(DeliveryServicesTable[[#This Row],[CSA '#]],CSA,Pricing_Hyperlink),\"Click Here\"),\"\")","v":"Click Here"}]
[null,"Face to Face","Social Entrepreneurship & Innovation","Simon Fraser University","CS-001041","Burnaby, BC","Seychelle Cushing\n778-782-5822\nseychelle_cushing@sfu.ca\n",{"$f":"IFERROR(HYPERLINK(_xlfn.XLOOKUP(DeliveryServicesTable[[#This Row],[CSA '#]],CSA,Pricing_Hyperlink),\"Click Here\"),\"\")","v":"Click Here"}]
[null,"Blended Learning","Social Entrepreneurship & Innovation","Simon Fraser University","CS-001041","Burnaby, BC","Seychelle Cushing\n778-782-5822\nseychelle_cushing@sfu.ca\n",{"$f":"IFERROR(HYPERLINK(_xlfn.XLOOKUP(DeliveryServicesTable[[#This Row],[CSA '#]],CSA,Pricing_Hyperlink),\"Click Here\"),\"\")","v":"Click Here"}]
[null,"Virtual","Social Entrepreneurship & Innovation","Simon Fraser University","CS-001041","Burnaby, BC","Seychelle Cushing\n778-782-5822\nseychelle_cushing@sfu.ca\n",{"$f":"IFERROR(HYPERLINK(_xlfn.XLOOKUP(DeliveryServicesTable[[#This Row],[CSA '#]],CSA,Pricing_Hyperlink),\"Click Here\"),\"\")","v":"Click Here"}]
[null,"Face to Face","Stakeholder Management","Simon Fraser University","CS-001041","Burnaby, BC","Seychelle Cushing\n778-782-5822\nseychelle_cushing@sfu.ca\n",{"$f":"IFERROR(HYPERLINK(_xlfn.XLOOKUP(DeliveryServicesTable[[#This Row],[CSA '#]],CSA,Pricing_Hyperlink),\"Click Here\"),\"\")","v":"Click Here"}]
[null,"Blended Learning","Stakeholder Management","Simon Fraser University","CS-001041","Burnaby, BC","Seychelle Cushing\n778-782-5822\nseychelle_cushing@sfu.ca\n",{"$f":"IFERROR(HYPERLINK(_xlfn.XLOOKUP(DeliveryServicesTable[[#This Row],[CSA '#]],CSA,Pricing_Hyperlink),\"Click Here\"),\"\")","v":"Click Here"}]
[null,"Virtual","Stakeholder Management","Simon Fraser University","CS-001041","Burnaby, BC","Seychelle Cushing\n778-782-5822\nseychelle_cushing@sfu.ca\n",{"$f":"IFERROR(HYPERLINK(_xlfn.XLOOKUP(DeliveryServicesTable[[#This Row],[CSA '#]],CSA,Pricing_Hyperlink),\"Click Here\"),\"\")","v":"Click Here"}]
[null,"Face to Face","Statistical Analysis","Simon Fraser University","CS-001041","Burnaby, BC","Seychelle Cushing\n778-782-5822\nseychelle_cushing@sfu.ca\n",{"$f":"IFERROR(HYPERLINK(_xlfn.XLOOKUP(DeliveryServicesTable[[#This Row],[CSA '#]],CSA,Pricing_Hyperlink),\"Click Here\"),\"\")","v":"Click Here"}]
[null,"Blended Learning","Statistical Analysis","Simon Fraser University","CS-001041","Burnaby, BC","Seychelle Cushing\n778-782-5822\nseychelle_cushing@sfu.ca\n",{"$f":"IFERROR(HYPERLINK(_xlfn.XLOOKUP(DeliveryServicesTable[[#This Row],[CSA '#]],CSA,Pricing_Hyperlink),\"Click Here\"),\"\")","v":"Click Here"}]
[null,"Virtual","Statistical Analysis","Simon Fraser University","CS-001041","Burnaby, BC","Seychelle Cushing\n778-782-5822\nseychelle_cushing@sfu.ca\n",{"$f":"IFERROR(HYPERLINK(_xlfn.XLOOKUP(DeliveryServicesTable[[#This Row],[CSA '#]],CSA,Pricing_Hyperlink),\"Click Here\"),\"\")","v":"Click Here"}]
[null,"Face to Face","Statistical Thinking and Methods","Simon Fraser University","CS-001041","Burnaby, BC","Seychelle Cushing\n778-782-5822\nseychelle_cushing@sfu.ca\n",{"$f":"IFERROR(HYPERLINK(_xlfn.XLOOKUP(DeliveryServicesTable[[#This Row],[CSA '#]],CSA,Pricing_Hyperlink),\"Click Here\"),\"\")","v":"Click Here"}]
[null,"Blended Learning","Statistical Thinking and Methods","Simon Fraser University","CS-001041","Burnaby, BC","Seychelle Cushing\n778-782-5822\nseychelle_cushing@sfu.ca\n",{"$f":"IFERROR(HYPERLINK(_xlfn.XLOOKUP(DeliveryServicesTable[[#This Row],[CSA '#]],CSA,Pricing_Hyperlink),\"Click Here\"),\"\")","v":"Click Here"}]
[null,"Virtual","Statistical Thinking and Methods","Simon Fraser University","CS-001041","Burnaby, BC","Seychelle Cushing\n778-782-5822\nseychelle_cushing@sfu.ca\n",{"$f":"IFERROR(HYPERLINK(_xlfn.XLOOKUP(DeliveryServicesTable[[#This Row],[CSA '#]],CSA,Pricing_Hyperlink),\"Click Here\"),\"\")","v":"Click Here"}]
[null,"Face to Face","Statistics for Financial Economics","Simon Fraser University","CS-001041","Burnaby, BC","Seychelle Cushing\n778-782-5822\nseychelle_cushing@sfu.ca\n",{"$f":"IFERROR(HYPERLINK(_xlfn.XLOOKUP(DeliveryServicesTable[[#This Row],[CSA '#]],CSA,Pricing_Hyperlink),\"Click Here\"),\"\")","v":"Click Here"}]
[null,"Blended Learning","Statistics for Financial Economics","Simon Fraser University","CS-001041","Burnaby, BC","Seychelle Cushing\n778-782-5822\nseychelle_cushing@sfu.ca\n",{"$f":"IFERROR(HYPERLINK(_xlfn.XLOOKUP(DeliveryServicesTable[[#This Row],[CSA '#]],CSA,Pricing_Hyperlink),\"Click Here\"),\"\")","v":"Click Here"}]
[null,"Virtual","Statistics for Financial Economics","Simon Fraser University","CS-001041","Burnaby, BC","Seychelle Cushing\n778-782-5822\nseychelle_cushing@sfu.ca\n",{"$f":"IFERROR(HYPERLINK(_xlfn.XLOOKUP(DeliveryServicesTable[[#This Row],[CSA '#]],CSA,Pricing_Hyperlink),\"Click Here\"),\"\")","v":"Click Here"}]
[null,"Face to Face","Strategic Asset Allocation","Simon Fraser University","CS-001041","Burnaby, BC","Seychelle Cushing\n778-782-5822\nseychelle_cushing@sfu.ca\n",{"$f":"IFERROR(HYPERLINK(_xlfn.XLOOKUP(DeliveryServicesTable[[#This Row],[CSA '#]],CSA,Pricing_Hyperlink),\"Click Here\"),\"\")","v":"Click Here"}]
[null,"Blended Learning","Strategic Asset Allocation","Simon Fraser University","CS-001041","Burnaby, BC","Seychelle Cushing\n778-782-5822\nseychelle_cushing@sfu.ca\n",{"$f":"IFERROR(HYPERLINK(_xlfn.XLOOKUP(DeliveryServicesTable[[#This Row],[CSA '#]],CSA,Pricing_Hyperlink),\"Click Here\"),\"\")","v":"Click Here"}]
[null,"Virtual","Strategic Asset Allocation","Simon Fraser University","CS-001041","Burnaby, BC","Seychelle Cushing\n778-782-5822\nseychelle_cushing@sfu.ca\n",{"$f":"IFERROR(HYPERLINK(_xlfn.XLOOKUP(DeliveryServicesTable[[#This Row],[CSA '#]],CSA,Pricing_Hyperlink),\"Click Here\"),\"\")","v":"Click Here"}]
[null,"Face to Face","Strategic Management of Tech-Based Firms","Simon Fraser University","CS-001041","Burnaby, BC","Seychelle Cushing\n778-782-5822\nseychelle_cushing@sfu.ca\n",{"$f":"IFERROR(HYPERLINK(_xlfn.XLOOKUP(DeliveryServicesTable[[#This Row],[CSA '#]],CSA,Pricing_Hyperlink),\"Click Here\"),\"\")","v":"Click Here"}]
[null,"Blended Learning","Strategic Management of Tech-Based Firms","Simon Fraser University","CS-001041","Burnaby, BC","Seychelle Cushing\n778-782-5822\nseychelle_cushing@sfu.ca\n",{"$f":"IFERROR(HYPERLINK(_xlfn.XLOOKUP(DeliveryServicesTable[[#This Row],[CSA '#]],CSA,Pricing_Hyperlink),\"Click Here\"),\"\")","v":"Click Here"}]
[null,"Virtual","Strategic Management of Tech-Based Firms","Simon Fraser University","CS-001041","Burnaby, BC","Seychelle Cushing\n778-782-5822\nseychelle_cushing@sfu.ca\n",{"$f":"IFERROR(HYPERLINK(_xlfn.XLOOKUP(DeliveryServicesTable[[#This Row],[CSA '#]],CSA,Pricing_Hyperlink),\"Click Here\"),\"\")","v":"Click Here"}]
[null,"Face to Face","Strategic Use of Data and Knowledge","Simon Fraser University","CS-001041","Burnaby, BC","Seychelle Cushing\n778-782-5822\nseychelle_cushing@sfu.ca\n",{"$f":"IFERROR(HYPERLINK(_xlfn.XLOOKUP(DeliveryServicesTable[[#This Row],[CSA '#]],CSA,Pricing_Hyperlink),\"Click Here\"),\"\")","v":"Click Here"}]
[null,"Blended Learning","Strategic Use of Data and Knowledge","Simon Fraser University","CS-001041","Burnaby, BC","Seychelle Cushing\n778-782-5822\nseychelle_cushing@sfu.ca\n",{"$f":"IFERROR(HYPERLINK(_xlfn.XLOOKUP(DeliveryServicesTable[[#This Row],[CSA '#]],CSA,Pricing_Hyperlink),\"Click Here\"),\"\")","v":"Click Here"}]
[null,"Virtual","Strategic Use of Data and Knowledge","Simon Fraser University","CS-001041","Burnaby, BC","Seychelle Cushing\n778-782-5822\nseychelle_cushing@sfu.ca\n",{"$f":"IFERROR(HYPERLINK(_xlfn.XLOOKUP(DeliveryServicesTable[[#This Row],[CSA '#]],CSA,Pricing_Hyperlink),\"Click Here\"),\"\")","v":"Click Here"}]
[null,"Face to Face","Strategy","Simon Fraser University","CS-001041","Burnaby, BC","Seychelle Cushing\n778-782-5822\nseychelle_cushing@sfu.ca\n",{"$f":"IFERROR(HYPERLINK(_xlfn.XLOOKUP(DeliveryServicesTable[[#This Row],[CSA '#]],CSA,Pricing_Hyperlink),\"Click Here\"),\"\")","v":"Click Here"}]
[null,"Blended Learning","Strategy","Simon Fraser University","CS-001041","Burnaby, BC","Seychelle Cushing\n778-782-5822\nseychelle_cushing@sfu.ca\n",{"$f":"IFERROR(HYPERLINK(_xlfn.XLOOKUP(DeliveryServicesTable[[#This Row],[CSA '#]],CSA,Pricing_Hyperlink),\"Click Here\"),\"\")","v":"Click Here"}]
[null,"Virtual","Strategy","Simon Fraser University","CS-001041","Burnaby, BC","Seychelle Cushing\n778-782-5822\nseychelle_cushing@sfu.ca\n",{"$f":"IFERROR(HYPERLINK(_xlfn.XLOOKUP(DeliveryServicesTable[[#This Row],[CSA '#]],CSA,Pricing_Hyperlink),\"Click Here\"),\"\")","v":"Click Here"}]
[null,"Face to Face","Structure and Change in Organizations","Simon Fraser University","CS-001041","Burnaby, BC","Seychelle Cushing\n778-782-5822\nseychelle_cushing@sfu.ca\n",{"$f":"IFERROR(HYPERLINK(_xlfn.XLOOKUP(DeliveryServicesTable[[#This Row],[CSA '#]],CSA,Pricing_Hyperlink),\"Click Here\"),\"\")","v":"Click Here"}]
[null,"Blended Learning","Structure and Change in Organizations","Simon Fraser University","CS-001041","Burnaby, BC","Seychelle Cushing\n778-782-5822\nseychelle_cushing@sfu.ca\n",{"$f":"IFERROR(HYPERLINK(_xlfn.XLOOKUP(DeliveryServicesTable[[#This Row],[CSA '#]],CSA,Pricing_Hyperlink),\"Click Here\"),\"\")","v":"Click Here"}]
[null,"Virtual","Structure and Change in Organizations","Simon Fraser University","CS-001041","Burnaby, BC","Seychelle Cushing\n778-782-5822\nseychelle_cushing@sfu.ca\n",{"$f":"IFERROR(HYPERLINK(_xlfn.XLOOKUP(DeliveryServicesTable[[#This Row],[CSA '#]],CSA,Pricing_Hyperlink),\"Click Here\"),\"\")","v":"Click Here"}]
[null,"Face to Face","Supervisory Development","Simon Fraser University","CS-001041","Burnaby, BC","Seychelle Cushing\n778-782-5822\nseychelle_cushing@sfu.ca\n",{"$f":"IFERROR(HYPERLINK(_xlfn.XLOOKUP(DeliveryServicesTable[[#This Row],[CSA '#]],CSA,Pricing_Hyperlink),\"Click Here\"),\"\")","v":"Click Here"}]
[null,"Blended Learning","Supervisory Development","Simon Fraser University","CS-001041","Burnaby, BC","Seychelle Cushing\n778-782-5822\nseychelle_cushing@sfu.ca\n",{"$f":"IFERROR(HYPERLINK(_xlfn.XLOOKUP(DeliveryServicesTable[[#This Row],[CSA '#]],CSA,Pricing_Hyperlink),\"Click Here\"),\"\")","v":"Click Here"}]
[null,"Virtual","Supervisory Development","Simon Fraser University","CS-001041","Burnaby, BC","Seychelle Cushing\n778-782-5822\nseychelle_cushing@sfu.ca\n",{"$f":"IFERROR(HYPERLINK(_xlfn.XLOOKUP(DeliveryServicesTable[[#This Row],[CSA '#]],CSA,Pricing_Hyperlink),\"Click Here\"),\"\")","v":"Click Here"}]
[null,"Face to Face","Tableau and BI Programming","Simon Fraser University","CS-001041","Burnaby, BC","Seychelle Cushing\n778-782-5822\nseychelle_cushing@sfu.ca\n",{"$f":"IFERROR(HYPERLINK(_xlfn.XLOOKUP(DeliveryServicesTable[[#This Row],[CSA '#]],CSA,Pricing_Hyperlink),\"Click Here\"),\"\")","v":"Click Here"}]
[null,"Blended Learning","Tableau and BI Programming","Simon Fraser University","CS-001041","Burnaby, BC","Seychelle Cushing\n778-782-5822\nseychelle_cushing@sfu.ca\n",{"$f":"IFERROR(HYPERLINK(_xlfn.XLOOKUP(DeliveryServicesTable[[#This Row],[CSA '#]],CSA,Pricing_Hyperlink),\"Click Here\"),\"\")","v":"Click Here"}]
[null,"Virtual","Tableau and BI Programming","Simon Fraser University","CS-001041","Burnaby, BC","Seychelle Cushing\n778-782-5822\nseychelle_cushing@sfu.ca\n",{"$f":"IFERROR(HYPERLINK(_xlfn.XLOOKUP(DeliveryServicesTable[[#This Row],[CSA '#]],CSA,Pricing_Hyperlink),\"Click Here\"),\"\")","v":"Click Here"}]
[null,"Face to Face","Technology Management","Simon Fraser University","CS-001041","Burnaby, BC","Seychelle Cushing\n778-782-5822\nseychelle_cushing@sfu.ca\n",{"$f":"IFERROR(HYPERLINK(_xlfn.XLOOKUP(DeliveryServicesTable[[#This Row],[CSA '#]],CSA,Pricing_Hyperlink),\"Click Here\"),\"\")","v":"Click Here"}]
[null,"Blended Learning","Technology Management","Simon Fraser University","CS-001041","Burnaby, BC","Seychelle Cushing\n778-782-5822\nseychelle_cushing@sfu.ca\n",{"$f":"IFERROR(HYPERLINK(_xlfn.XLOOKUP(DeliveryServicesTable[[#This Row],[CSA '#]],CSA,Pricing_Hyperlink),\"Click Here\"),\"\")","v":"Click Here"}]
[null,"Virtual","Technology Management","Simon Fraser University","CS-001041","Burnaby, BC","Seychelle Cushing\n778-782-5822\nseychelle_cushing@sfu.ca\n",{"$f":"IFERROR(HYPERLINK(_xlfn.XLOOKUP(DeliveryServicesTable[[#This Row],[CSA '#]],CSA,Pricing_Hyperlink),\"Click Here\"),\"\")","v":"Click Here"}]
[null,"Face to Face","Text Analysis and NLP","Simon Fraser University","CS-001041","Burnaby, BC","Seychelle Cushing\n778-782-5822\nseychelle_cushing@sfu.ca\n",{"$f":"IFERROR(HYPERLINK(_xlfn.XLOOKUP(DeliveryServicesTable[[#This Row],[CSA '#]],CSA,Pricing_Hyperlink),\"Click Here\"),\"\")","v":"Click Here"}]
[null,"Blended Learning","Text Analysis and NLP","Simon Fraser University","CS-001041","Burnaby, BC","Seychelle Cushing\n778-782-5822\nseychelle_cushing@sfu.ca\n",{"$f":"IFERROR(HYPERLINK(_xlfn.XLOOKUP(DeliveryServicesTable[[#This Row],[CSA '#]],CSA,Pricing_Hyperlink),\"Click Here\"),\"\")","v":"Click Here"}]
[null,"Virtual","Text Analysis and NLP","Simon Fraser University","CS-001041","Burnaby, BC","Seychelle Cushing\n778-782-5822\nseychelle_cushing@sfu.ca\n",{"$f":"IFERROR(HYPERLINK(_xlfn.XLOOKUP(DeliveryServicesTable[[#This Row],[CSA '#]],CSA,Pricing_Hyperlink),\"Click Here\"),\"\")","v":"Click Here"}]
[null,"Face to Face","Time Series Analysis","Simon Fraser University","CS-001041","Burnaby, BC","Seychelle Cushing\n778-782-5822\nseychelle_cushing@sfu.ca\n",{"$f":"IFERROR(HYPERLINK(_xlfn.XLOOKUP(DeliveryServicesTable[[#This Row],[CSA '#]],CSA,Pricing_Hyperlink),\"Click Here\"),\"\")","v":"Click Here"}]
[null,"Blended Learning","Time Series Analysis","Simon Fraser University","CS-001041","Burnaby, BC","Seychelle Cushing\n778-782-5822\nseychelle_cushing@sfu.ca\n",{"$f":"IFERROR(HYPERLINK(_xlfn.XLOOKUP(DeliveryServicesTable[[#This Row],[CSA '#]],CSA,Pricing_Hyperlink),\"Click Here\"),\"\")","v":"Click Here"}]
[null,"Virtual","Time Series Analysis","Simon Fraser University","CS-001041","Burnaby, BC","Seychelle Cushing\n778-782-5822\nseychelle_cushing@sfu.ca\n",{"$f":"IFERROR(HYPERLINK(_xlfn.XLOOKUP(DeliveryServicesTable[[#This Row],[CSA '#]],CSA,Pricing_Hyperlink),\"Click Here\"),\"\")","v":"Click Here"}]
[null,"Face to Face","Urban planning and Community Building","Simon Fraser University","CS-001041","Burnaby, BC","Seychelle Cushing\n778-782-5822\nseychelle_cushing@sfu.ca\n",{"$f":"IFERROR(HYPERLINK(_xlfn.XLOOKUP(DeliveryServicesTable[[#This Row],[CSA '#]],CSA,Pricing_Hyperlink),\"Click Here\"),\"\")","v":"Click Here"}]
[null,"Blended Learning","Urban planning and Community Building","Simon Fraser University","CS-001041","Burnaby, BC","Seychelle Cushing\n778-782-5822\nseychelle_cushing@sfu.ca\n",{"$f":"IFERROR(HYPERLINK(_xlfn.XLOOKUP(DeliveryServicesTable[[#This Row],[CSA '#]],CSA,Pricing_Hyperlink),\"Click Here\"),\"\")","v":"Click Here"}]
[null,"Virtual","Urban planning and Community Building","Simon Fraser University","CS-001041","Burnaby, BC","Seychelle Cushing\n778-782-5822\nseychelle_cushing@sfu.ca\n",{"$f":"IFERROR(HYPERLINK(_xlfn.XLOOKUP(DeliveryServicesTable[[#This Row],[CSA '#]],CSA,Pricing_Hyperlink),\"Click Here\"),\"\")","v":"Click Here"}]
[null,"Face to Face","Visual Analytics","Simon Fraser University","CS-001041","Burnaby, BC","Seychelle Cushing\n778-782-5822\nseychelle_cushing@sfu.ca\n",{"$f":"IFERROR(HYPERLINK(_xlfn.XLOOKUP(DeliveryServicesTable[[#This Row],[CSA '#]],CSA,Pricing_Hyperlink),\"Click Here\"),\"\")","v":"Click Here"}]
[null,"Blended Learning","Visual Analytics","Simon Fraser University","CS-001041","Burnaby, BC","Seychelle Cushing\n778-782-5822\nseychelle_cushing@sfu.ca\n",{"$f":"IFERROR(HYPERLINK(_xlfn.XLOOKUP(DeliveryServicesTable[[#This Row],[CSA '#]],CSA,Pricing_Hyperlink),\"Click Here\"),\"\")","v":"Click Here"}]
[null,"Virtual","Visual Analytics","Simon Fraser University","CS-001041","Burnaby, BC","Seychelle Cushing\n778-782-5822\nseychelle_cushing@sfu.ca\n",{"$f":"IFERROR(HYPERLINK(_xlfn.XLOOKUP(DeliveryServicesTable[[#This Row],[CSA '#]],CSA,Pricing_Hyperlink),\"Click Here\"),\"\")","v":"Click Here"}]
[null,"Face to Face","Web Scaping","Simon Fraser University","CS-001041","Burnaby, BC","Seychelle Cushing\n778-782-5822\nseychelle_cushing@sfu.ca\n",{"$f":"IFERROR(HYPERLINK(_xlfn.XLOOKUP(DeliveryServicesTable[[#This Row],[CSA '#]],CSA,Pricing_Hyperlink),\"Click Here\"),\"\")","v":"Click Here"}]
[null,"Blended Learning","Web Scaping","Simon Fraser University","CS-001041","Burnaby, BC","Seychelle Cushing\n778-782-5822\nseychelle_cushing@sfu.ca\n",{"$f":"IFERROR(HYPERLINK(_xlfn.XLOOKUP(DeliveryServicesTable[[#This Row],[CSA '#]],CSA,Pricing_Hyperlink),\"Click Here\"),\"\")","v":"Click Here"}]
[null,"Virtual","Web Scaping","Simon Fraser University","CS-001041","Burnaby, BC","Seychelle Cushing\n778-782-5822\nseychelle_cushing@sfu.ca\n",{"$f":"IFERROR(HYPERLINK(_xlfn.XLOOKUP(DeliveryServicesTable[[#This Row],[CSA '#]],CSA,Pricing_Hyperlink),\"Click Here\"),\"\")","v":"Click Here"}]
[null,"Face to Face","Workplace Culture","Simon Fraser University","CS-001041","Burnaby, BC","Seychelle Cushing\n778-782-5822\nseychelle_cushing@sfu.ca\n",{"$f":"IFERROR(HYPERLINK(_xlfn.XLOOKUP(DeliveryServicesTable[[#This Row],[CSA '#]],CSA,Pricing_Hyperlink),\"Click Here\"),\"\")","v":"Click Here"}]
[null,"Blended Learning","Workplace Culture","Simon Fraser University","CS-001041","Burnaby, BC","Seychelle Cushing\n778-782-5822\nseychelle_cushing@sfu.ca\n",{"$f":"IFERROR(HYPERLINK(_xlfn.XLOOKUP(DeliveryServicesTable[[#This Row],[CSA '#]],CSA,Pricing_Hyperlink),\"Click Here\"),\"\")","v":"Click Here"}]
[null,"Virtual","Workplace Culture","Simon Fraser University","CS-001041","Burnaby, BC","Seychelle Cushing\n778-782-5822\nseychelle_cushing@sfu.ca\n",{"$f":"IFERROR(HYPERLINK(_xlfn.XLOOKUP(DeliveryServicesTable[[#This Row],[CSA '#]],CSA,Pricing_Hyperlink),\"Click Here\"),\"\")","v":"Click Here"}]
[null,"Face to Face","Learning with diverse groups or senior leaders focused on complex systems and wicked problems in organizational development. ","Red Ball Solutions Inc.","CS-001044","Delta, BC","Cheryl Mitchell, 604-818-0950,  cheryl@redballsolutions.com",{"$f":"IFERROR(HYPERLINK(_xlfn.XLOOKUP(DeliveryServicesTable[[#This Row],[CSA '#]],CSA,Pricing_Hyperlink),\"Click Here\"),\"\")","v":"Click Here"}]
[null,"Virtual","Learning with diverse groups or senior leaders focused on complex systems and wicked problems in organizational development. ","Red Ball Solutions Inc.","CS-001044","Delta, BC","Cheryl Mitchell, 604-818-0950,  cheryl@redballsolutions.com",{"$f":"IFERROR(HYPERLINK(_xlfn.XLOOKUP(DeliveryServicesTable[[#This Row],[CSA '#]],CSA,Pricing_Hyperlink),\"Click Here\"),\"\")","v":"Click Here"}]
[null,"Blended Learning","Learning with diverse groups or senior leaders focused on complex systems and wicked problems in organizational development. ","Red Ball Solutions Inc.","CS-001044","Delta, BC","Cheryl Mitchell, 604-818-0950,  cheryl@redballsolutions.com",{"$f":"IFERROR(HYPERLINK(_xlfn.XLOOKUP(DeliveryServicesTable[[#This Row],[CSA '#]],CSA,Pricing_Hyperlink),\"Click Here\"),\"\")","v":"Click Here"}]
[null,"Virtual","Cultural competence, anti-racism, adult education","Indigenous Reconciliation Group Inc.","CS-001045","Ottawa, ON","Rose LeMay\n613-903-4919\nceo@reconciliationgroup.ca",{"$f":"IFERROR(HYPERLINK(_xlfn.XLOOKUP(DeliveryServicesTable[[#This Row],[CSA '#]],CSA,Pricing_Hyperlink),\"Click Here\"),\"\")","v":"Click Here"}]
[null,"Face to Face","Effective Communication","McCoppin Enterprises Inc.","CS-001048","Victoria, BC","Peter McCoppin,  250-595-3872,  petermccoppin@telus.net",{"$f":"IFERROR(HYPERLINK(_xlfn.XLOOKUP(DeliveryServicesTable[[#This Row],[CSA '#]],CSA,Pricing_Hyperlink),\"Click Here\"),\"\")","v":"Click Here"}]
[null,"Face to Face","Goal Setting and Strategic Planning","McCoppin Enterprises Inc.","CS-001048","Victoria, BC","Peter McCoppin,  250-595-3872,  petermccoppin@telus.net",{"$f":"IFERROR(HYPERLINK(_xlfn.XLOOKUP(DeliveryServicesTable[[#This Row],[CSA '#]],CSA,Pricing_Hyperlink),\"Click Here\"),\"\")","v":"Click Here"}]
[null,"Face to Face","Leadership Development","McCoppin Enterprises Inc.","CS-001048","Victoria, BC","Peter McCoppin,  250-595-3872,  petermccoppin@telus.net",{"$f":"IFERROR(HYPERLINK(_xlfn.XLOOKUP(DeliveryServicesTable[[#This Row],[CSA '#]],CSA,Pricing_Hyperlink),\"Click Here\"),\"\")","v":"Click Here"}]
[null,"Face to Face","Motivating High Levels of Performance","McCoppin Enterprises Inc.","CS-001048","Victoria, BC","Peter McCoppin,  250-595-3872,  petermccoppin@telus.net",{"$f":"IFERROR(HYPERLINK(_xlfn.XLOOKUP(DeliveryServicesTable[[#This Row],[CSA '#]],CSA,Pricing_Hyperlink),\"Click Here\"),\"\")","v":"Click Here"}]
[null,"Face to Face","Team Building","McCoppin Enterprises Inc.","CS-001048","Victoria, BC","Peter McCoppin,  250-595-3872,  petermccoppin@telus.net",{"$f":"IFERROR(HYPERLINK(_xlfn.XLOOKUP(DeliveryServicesTable[[#This Row],[CSA '#]],CSA,Pricing_Hyperlink),\"Click Here\"),\"\")","v":"Click Here"}]
[null,"Face to Face","Procurement (includes PCMP courses)","0995226 B.C. Ltd dba Busch Procurement Advisory Service","CS-001049","Victoria, BC","Liz Busch,  250-474-1973, \n liz@buschprocurement.ca",{"$f":"IFERROR(HYPERLINK(_xlfn.XLOOKUP(DeliveryServicesTable[[#This Row],[CSA '#]],CSA,Pricing_Hyperlink),\"Click Here\"),\"\")","v":"Click Here"}]
[null,"Virtual","Procurement (includes PCMP courses)","0995226 B.C. Ltd dba Busch Procurement Advisory Service","CS-001049","Victoria, BC","Liz Busch,  250-474-1973, \n liz@buschprocurement.ca",{"$f":"IFERROR(HYPERLINK(_xlfn.XLOOKUP(DeliveryServicesTable[[#This Row],[CSA '#]],CSA,Pricing_Hyperlink),\"Click Here\"),\"\")","v":"Click Here"}]
[null,"Blended Learning","Workshop: Creating Capacity for Change: Team Level","Refined World Consulting Inc.","CS-001051","White Rock, BC","Angela Malli,  604-700-5847,  angela@refinedrecruitment.ca",{"$f":"IFERROR(HYPERLINK(_xlfn.XLOOKUP(DeliveryServicesTable[[#This Row],[CSA '#]],CSA,Pricing_Hyperlink),\"Click Here\"),\"\")","v":"Click Here"}]
[null,"Blended Learning","Workshop: Prioritization & Time Management: Team Level ","Refined World Consulting Inc.","CS-001051","White Rock, BC","Angela Malli,  604-700-5847,  angela@refinedrecruitment.ca",{"$f":"IFERROR(HYPERLINK(_xlfn.XLOOKUP(DeliveryServicesTable[[#This Row],[CSA '#]],CSA,Pricing_Hyperlink),\"Click Here\"),\"\")","v":"Click Here"}]
[null,"Blended Learning","Workshop: Social Styles and Embracing Diversity","Refined World Consulting Inc.","CS-001051","White Rock, BC","Angela Malli,  604-700-5847,  angela@refinedrecruitment.ca",{"$f":"IFERROR(HYPERLINK(_xlfn.XLOOKUP(DeliveryServicesTable[[#This Row],[CSA '#]],CSA,Pricing_Hyperlink),\"Click Here\"),\"\")","v":"Click Here"}]
[null,"Blended Learning","Workshop: Team Values and Coherency","Refined World Consulting Inc.","CS-001051","White Rock, BC","Angela Malli,  604-700-5847,  angela@refinedrecruitment.ca",{"$f":"IFERROR(HYPERLINK(_xlfn.XLOOKUP(DeliveryServicesTable[[#This Row],[CSA '#]],CSA,Pricing_Hyperlink),\"Click Here\"),\"\")","v":"Click Here"}]
[null,"Blended Learning","Developing Executive Presence: 1:1 learning","Refined World Consulting Inc.","CS-001051","White Rock, BC","Angela Malli,  604-700-5847,  angela@refinedrecruitment.ca",{"$f":"IFERROR(HYPERLINK(_xlfn.XLOOKUP(DeliveryServicesTable[[#This Row],[CSA '#]],CSA,Pricing_Hyperlink),\"Click Here\"),\"\")","v":"Click Here"}]
[null,"Blended Learning","Executive Communications: 1:1 learning","Refined World Consulting Inc.","CS-001051","White Rock, BC","Angela Malli,  604-700-5847,  angela@refinedrecruitment.ca",{"$f":"IFERROR(HYPERLINK(_xlfn.XLOOKUP(DeliveryServicesTable[[#This Row],[CSA '#]],CSA,Pricing_Hyperlink),\"Click Here\"),\"\")","v":"Click Here"}]
[null,"Blended Learning","Innovative Leadership: 1:1 learning","Refined World Consulting Inc.","CS-001051","White Rock, BC","Angela Malli,  604-700-5847,  angela@refinedrecruitment.ca",{"$f":"IFERROR(HYPERLINK(_xlfn.XLOOKUP(DeliveryServicesTable[[#This Row],[CSA '#]],CSA,Pricing_Hyperlink),\"Click Here\"),\"\")","v":"Click Here"}]
[null,"Blended Learning","Strategic Influence: 1:1 learning","Refined World Consulting Inc.","CS-001051","White Rock, BC","Angela Malli,  604-700-5847,  angela@refinedrecruitment.ca",{"$f":"IFERROR(HYPERLINK(_xlfn.XLOOKUP(DeliveryServicesTable[[#This Row],[CSA '#]],CSA,Pricing_Hyperlink),\"Click Here\"),\"\")","v":"Click Here"}]
[null,"Blended Learning","Developing a Strategic Network: 1:1 learning","Refined World Consulting Inc.","CS-001051","White Rock, BC","Angela Malli,  604-700-5847,  angela@refinedrecruitment.ca",{"$f":"IFERROR(HYPERLINK(_xlfn.XLOOKUP(DeliveryServicesTable[[#This Row],[CSA '#]],CSA,Pricing_Hyperlink),\"Click Here\"),\"\")","v":"Click Here"}]
[null,"Blended Learning","Digital Literacy: 1:1 learning","Refined World Consulting Inc.","CS-001051","White Rock, BC","Angela Malli,  604-700-5847,  angela@refinedrecruitment.ca",{"$f":"IFERROR(HYPERLINK(_xlfn.XLOOKUP(DeliveryServicesTable[[#This Row],[CSA '#]],CSA,Pricing_Hyperlink),\"Click Here\"),\"\")","v":"Click Here"}]
[null,"Blended Learning","Prioritization & Time Management: 1:1 learning","Refined World Consulting Inc.","CS-001051","White Rock, BC","Angela Malli,  604-700-5847,  angela@refinedrecruitment.ca",{"$f":"IFERROR(HYPERLINK(_xlfn.XLOOKUP(DeliveryServicesTable[[#This Row],[CSA '#]],CSA,Pricing_Hyperlink),\"Click Here\"),\"\")","v":"Click Here"}]
[null,"Blended Learning","Diversity & Inclusive Leadership: 1:1 learning","Refined World Consulting Inc.","CS-001051","White Rock, BC","Angela Malli,  604-700-5847,  angela@refinedrecruitment.ca",{"$f":"IFERROR(HYPERLINK(_xlfn.XLOOKUP(DeliveryServicesTable[[#This Row],[CSA '#]],CSA,Pricing_Hyperlink),\"Click Here\"),\"\")","v":"Click Here"}]
[null,"Blended Learning","Empowering & Developing Others: 1:1 learning","Refined World Consulting Inc.","CS-001051","White Rock, BC","Angela Malli,  604-700-5847,  angela@refinedrecruitment.ca",{"$f":"IFERROR(HYPERLINK(_xlfn.XLOOKUP(DeliveryServicesTable[[#This Row],[CSA '#]],CSA,Pricing_Hyperlink),\"Click Here\"),\"\")","v":"Click Here"}]
[null,"Blended Learning","Creating Capacity for Change: 1:1 learning","Refined World Consulting Inc.","CS-001051","White Rock, BC","Angela Malli,  604-700-5847,  angela@refinedrecruitment.ca",{"$f":"IFERROR(HYPERLINK(_xlfn.XLOOKUP(DeliveryServicesTable[[#This Row],[CSA '#]],CSA,Pricing_Hyperlink),\"Click Here\"),\"\")","v":"Click Here"}]
[null,"Face to Face","Indigenous cultural competency training, life skills, cultural safety, workplace culture","Arrive Consulting","CS-001052","Victoria, BC","Rachel Mason,  778-922-0534,  rachelemason@gmail.com",{"$f":"IFERROR(HYPERLINK(_xlfn.XLOOKUP(DeliveryServicesTable[[#This Row],[CSA '#]],CSA,Pricing_Hyperlink),\"Click Here\"),\"\")","v":"Click Here"}]
[null,"Virtual","Indigenous cultural competency training, life skills, cultural safety, workplace culture","Arrive Consulting","CS-001052","Victoria, BC","Rachel Mason,  778-922-0534,  rachelemason@gmail.com",{"$f":"IFERROR(HYPERLINK(_xlfn.XLOOKUP(DeliveryServicesTable[[#This Row],[CSA '#]],CSA,Pricing_Hyperlink),\"Click Here\"),\"\")","v":"Click Here"}]
[null,"Blended Learning","Indigenous cultural competency training, personalized, experiential and inquiry-based learning approaches, life skills, cultural safety, workplace culture","Arrive Consulting","CS-001052","Victoria, BC","Rachel Mason,  778-922-0534,  rachelemason@gmail.com",{"$f":"IFERROR(HYPERLINK(_xlfn.XLOOKUP(DeliveryServicesTable[[#This Row],[CSA '#]],CSA,Pricing_Hyperlink),\"Click Here\"),\"\")","v":"Click Here"}]
[null,"Face to Face","Building your Supervisory Skills","Lucero Business Consulting Inc","CS-001054","Vancouver, BC","Enrique Arce Gonzalez,  778-233-1727,  enrique@managerondemand.ca",{"$f":"IFERROR(HYPERLINK(_xlfn.XLOOKUP(DeliveryServicesTable[[#This Row],[CSA '#]],CSA,Pricing_Hyperlink),\"Click Here\"),\"\")","v":"Click Here"}]
[null,"Virtual","Building your Supervisory Skills","Lucero Business Consulting Inc","CS-001054","Vancouver, BC","Enrique Arce Gonzalez,  778-233-1727,  enrique@managerondemand.ca",{"$f":"IFERROR(HYPERLINK(_xlfn.XLOOKUP(DeliveryServicesTable[[#This Row],[CSA '#]],CSA,Pricing_Hyperlink),\"Click Here\"),\"\")","v":"Click Here"}]
[null,"Face to Face","Culture and Diversity in the Workplace","Lucero Business Consulting Inc","CS-001054","Vancouver, BC","Enrique Arce Gonzalez,  778-233-1727,  enrique@managerondemand.ca",{"$f":"IFERROR(HYPERLINK(_xlfn.XLOOKUP(DeliveryServicesTable[[#This Row],[CSA '#]],CSA,Pricing_Hyperlink),\"Click Here\"),\"\")","v":"Click Here"}]
[null,"Virtual","Culture and Diversity in the Workplace","Lucero Business Consulting Inc","CS-001054","Vancouver, BC","Enrique Arce Gonzalez,  778-233-1727,  enrique@managerondemand.ca",{"$f":"IFERROR(HYPERLINK(_xlfn.XLOOKUP(DeliveryServicesTable[[#This Row],[CSA '#]],CSA,Pricing_Hyperlink),\"Click Here\"),\"\")","v":"Click Here"}]
[null,"Face to Face","Customer Service Skills","Lucero Business Consulting Inc","CS-001054","Vancouver, BC","Enrique Arce Gonzalez,  778-233-1727,  enrique@managerondemand.ca",{"$f":"IFERROR(HYPERLINK(_xlfn.XLOOKUP(DeliveryServicesTable[[#This Row],[CSA '#]],CSA,Pricing_Hyperlink),\"Click Here\"),\"\")","v":"Click Here"}]
[null,"Virtual","Customer Service Skills","Lucero Business Consulting Inc","CS-001054","Vancouver, BC","Enrique Arce Gonzalez,  778-233-1727,  enrique@managerondemand.ca",{"$f":"IFERROR(HYPERLINK(_xlfn.XLOOKUP(DeliveryServicesTable[[#This Row],[CSA '#]],CSA,Pricing_Hyperlink),\"Click Here\"),\"\")","v":"Click Here"}]
[null,"Face to Face","Developing your Team Building Skills","Lucero Business Consulting Inc","CS-001054","Vancouver, BC","Enrique Arce Gonzalez,  778-233-1727,  enrique@managerondemand.ca",{"$f":"IFERROR(HYPERLINK(_xlfn.XLOOKUP(DeliveryServicesTable[[#This Row],[CSA '#]],CSA,Pricing_Hyperlink),\"Click Here\"),\"\")","v":"Click Here"}]
[null,"Virtual","Developing your Team Building Skills","Lucero Business Consulting Inc","CS-001054","Vancouver, BC","Enrique Arce Gonzalez,  778-233-1727,  enrique@managerondemand.ca",{"$f":"IFERROR(HYPERLINK(_xlfn.XLOOKUP(DeliveryServicesTable[[#This Row],[CSA '#]],CSA,Pricing_Hyperlink),\"Click Here\"),\"\")","v":"Click Here"}]
[null,"Virtual","Finance for Non-Financial Managers","Lucero Business Consulting Inc","CS-001054","Vancouver, BC","Enrique Arce Gonzalez,  778-233-1727,  enrique@managerondemand.ca",{"$f":"IFERROR(HYPERLINK(_xlfn.XLOOKUP(DeliveryServicesTable[[#This Row],[CSA '#]],CSA,Pricing_Hyperlink),\"Click Here\"),\"\")","v":"Click Here"}]
[null,"Face to Face","Finance for Non-Financial Managers","Lucero Business Consulting Inc","CS-001054","Vancouver, BC","Enrique Arce Gonzalez,  778-233-1727,  enrique@managerondemand.ca",{"$f":"IFERROR(HYPERLINK(_xlfn.XLOOKUP(DeliveryServicesTable[[#This Row],[CSA '#]],CSA,Pricing_Hyperlink),\"Click Here\"),\"\")","v":"Click Here"}]
[null,"Blended Learning","Finance for Non-Financial Managers","Lucero Business Consulting Inc","CS-001054","Vancouver, BC","Enrique Arce Gonzalez,  778-233-1727,  enrique@managerondemand.ca",{"$f":"IFERROR(HYPERLINK(_xlfn.XLOOKUP(DeliveryServicesTable[[#This Row],[CSA '#]],CSA,Pricing_Hyperlink),\"Click Here\"),\"\")","v":"Click Here"}]
[null,"Face to Face","Preventing Bullying & Harassment in the Workplace","Lucero Business Consulting Inc","CS-001054","Vancouver, BC","Enrique Arce Gonzalez,  778-233-1727,  enrique@managerondemand.ca",{"$f":"IFERROR(HYPERLINK(_xlfn.XLOOKUP(DeliveryServicesTable[[#This Row],[CSA '#]],CSA,Pricing_Hyperlink),\"Click Here\"),\"\")","v":"Click Here"}]
[null,"Virtual","Workplace and Employee Engagement","Lucero Business Consulting Inc","CS-001054","Vancouver, BC","Enrique Arce Gonzalez,  778-233-1727,  enrique@managerondemand.ca",{"$f":"IFERROR(HYPERLINK(_xlfn.XLOOKUP(DeliveryServicesTable[[#This Row],[CSA '#]],CSA,Pricing_Hyperlink),\"Click Here\"),\"\")","v":"Click Here"}]
[null,"Blended Learning","Teams; Leadership; Communication; Conflict Resolution; Creating Respectful Workplaces; Health, Safety and Wellbeing; Workplace Culture; Diversity and Inclusion ","Catherine Margaret Faith Wilcox","CS-001055","Victoria, BC","Catherine Wilcox,  250-893-7097,  catherine.mf.wilcox@gmail.com",{"$f":"IFERROR(HYPERLINK(_xlfn.XLOOKUP(DeliveryServicesTable[[#This Row],[CSA '#]],CSA,Pricing_Hyperlink),\"Click Here\"),\"\")","v":"Click Here"}]
[null,"Face to Face","Teams; Leadership; Communication; Conflict Resolution; Creating Respectful Workplaces; Health, Safety and Wellbeing; Workplace Culture; Diversity and Inclusion ","Catherine Margaret Faith Wilcox","CS-001055","Victoria, BC","Catherine Wilcox,  250-893-7097,  catherine.mf.wilcox@gmail.com",{"$f":"IFERROR(HYPERLINK(_xlfn.XLOOKUP(DeliveryServicesTable[[#This Row],[CSA '#]],CSA,Pricing_Hyperlink),\"Click Here\"),\"\")","v":"Click Here"}]
[null,"Virtual","Teams; Leadership; Communication; Conflict Resolution; Creating Respectful Workplaces; Health, Safety and Wellbeing; Workplace Culture; Diversity and Inclusion ","Catherine Margaret Faith Wilcox","CS-001055","Victoria, BC","Catherine Wilcox,  250-893-7097,  catherine.mf.wilcox@gmail.com",{"$f":"IFERROR(HYPERLINK(_xlfn.XLOOKUP(DeliveryServicesTable[[#This Row],[CSA '#]],CSA,Pricing_Hyperlink),\"Click Here\"),\"\")","v":"Click Here"}]
[null,"Group Process Facilitation","Liberating Structures – a two-day immersion workshop in learning how to use these facilitative processes","Karen Elizabeth Cougler Bloom","CS-001056","Sooke, BC","Beth Cougler Blom,  250-686-0036,  beth@bethcouglerblom.com",{"$f":"IFERROR(HYPERLINK(_xlfn.XLOOKUP(DeliveryServicesTable[[#This Row],[CSA '#]],CSA,Pricing_Hyperlink),\"Click Here\"),\"\")","v":"Click Here"}]
[null,"Group Process Facilitation","Liberating Structures Online: Introduction – any length virtual workshop (e.g. 1.5 hours, 3 hours, or more)","Karen Elizabeth Cougler Bloom","CS-001056","Sooke, BC","Beth Cougler Blom,  250-686-0036,  beth@bethcouglerblom.com",{"$f":"IFERROR(HYPERLINK(_xlfn.XLOOKUP(DeliveryServicesTable[[#This Row],[CSA '#]],CSA,Pricing_Hyperlink),\"Click Here\"),\"\")","v":"Click Here"}]
[null,"Group Process Facilitation","Designing Online with Liberating Structures - a four week asynchronous/synchronous online blended course ","Karen Elizabeth Cougler Bloom","CS-001056","Sooke, BC","Beth Cougler Blom,  250-686-0036,  beth@bethcouglerblom.com",{"$f":"IFERROR(HYPERLINK(_xlfn.XLOOKUP(DeliveryServicesTable[[#This Row],[CSA '#]],CSA,Pricing_Hyperlink),\"Click Here\"),\"\")","v":"Click Here"}]
[null,"Facilitation of Learning","Instructional Skills Workshop – a 3 or 4-day workshop to learn facilitation skills","Karen Elizabeth Cougler Bloom","CS-001056","Sooke, BC","Beth Cougler Blom,  250-686-0036,  beth@bethcouglerblom.com",{"$f":"IFERROR(HYPERLINK(_xlfn.XLOOKUP(DeliveryServicesTable[[#This Row],[CSA '#]],CSA,Pricing_Hyperlink),\"Click Here\"),\"\")","v":"Click Here"}]
[null,"Facilitation of Learning","Virtual Instructional Skills Workshop - length to be determined","Karen Elizabeth Cougler Bloom","CS-001056","Sooke, BC","Beth Cougler Blom,  250-686-0036,  beth@bethcouglerblom.com",{"$f":"IFERROR(HYPERLINK(_xlfn.XLOOKUP(DeliveryServicesTable[[#This Row],[CSA '#]],CSA,Pricing_Hyperlink),\"Click Here\"),\"\")","v":"Click Here"}]
[null,"\"Train the Trainer\" - Facilitation of Learning","Facilitator Development Workshop – A four-day workshop to learn how to facilitate the Instructional Skills Workshop (4 days)","Karen Elizabeth Cougler Bloom","CS-001056","Sooke, BC","Beth Cougler Blom,  250-686-0036,  beth@bethcouglerblom.com",{"$f":"IFERROR(HYPERLINK(_xlfn.XLOOKUP(DeliveryServicesTable[[#This Row],[CSA '#]],CSA,Pricing_Hyperlink),\"Click Here\"),\"\")","v":"Click Here"}]
[null,"\"Train the Trainer\" - Facilitation of Learning","Facilitator Development Workshop –  to learn how to facilitate the Instructional Skills Workshop (length TBD)","Karen Elizabeth Cougler Bloom","CS-001056","Sooke, BC","Beth Cougler Blom,  250-686-0036,  beth@bethcouglerblom.com",{"$f":"IFERROR(HYPERLINK(_xlfn.XLOOKUP(DeliveryServicesTable[[#This Row],[CSA '#]],CSA,Pricing_Hyperlink),\"Click Here\"),\"\")","v":"Click Here"}]
[null,"Facilitation of Learning/ Group Process Facilitation","Any teaching/learning/facilitation/training/education-based topics","Karen Elizabeth Cougler Bloom","CS-001056","Sooke, BC","Beth Cougler Blom,  250-686-0036,  beth@bethcouglerblom.com",{"$f":"IFERROR(HYPERLINK(_xlfn.XLOOKUP(DeliveryServicesTable[[#This Row],[CSA '#]],CSA,Pricing_Hyperlink),\"Click Here\"),\"\")","v":"Click Here"}]
[null,"Virtual","Zoom (technical and pedagogical use)","Karen Elizabeth Cougler Bloom","CS-001056","Sooke, BC","Beth Cougler Blom,  250-686-0036,  beth@bethcouglerblom.com",{"$f":"IFERROR(HYPERLINK(_xlfn.XLOOKUP(DeliveryServicesTable[[#This Row],[CSA '#]],CSA,Pricing_Hyperlink),\"Click Here\"),\"\")","v":"Click Here"}]
[null,"Virtual","An Element of Fun: Virtual Games and Activities for Groups (1.5-2 hours)","Karen Elizabeth Cougler Bloom","CS-001056","Sooke, BC","Beth Cougler Blom,  250-686-0036,  beth@bethcouglerblom.com",{"$f":"IFERROR(HYPERLINK(_xlfn.XLOOKUP(DeliveryServicesTable[[#This Row],[CSA '#]],CSA,Pricing_Hyperlink),\"Click Here\"),\"\")","v":"Click Here"}]
[null,"Virtual","Beyond the Ordinary: Getting Creative in Virtual Facilitation (2 hours)","Karen Elizabeth Cougler Bloom","CS-001056","Sooke, BC","Beth Cougler Blom,  250-686-0036,  beth@bethcouglerblom.com",{"$f":"IFERROR(HYPERLINK(_xlfn.XLOOKUP(DeliveryServicesTable[[#This Row],[CSA '#]],CSA,Pricing_Hyperlink),\"Click Here\"),\"\")","v":"Click Here"}]
[null,"Virtual","Creating Effective Virtual Learning Experiences (3 hours)","Karen Elizabeth Cougler Bloom","CS-001056","Sooke, BC","Beth Cougler Blom,  250-686-0036,  beth@bethcouglerblom.com",{"$f":"IFERROR(HYPERLINK(_xlfn.XLOOKUP(DeliveryServicesTable[[#This Row],[CSA '#]],CSA,Pricing_Hyperlink),\"Click Here\"),\"\")","v":"Click Here"}]
[null,"Virtual","The Business of Breakout Rooms (Zoom Breakout Rooms practice session with a small group) - 2 hours","Karen Elizabeth Cougler Bloom","CS-001056","Sooke, BC","Beth Cougler Blom,  250-686-0036,  beth@bethcouglerblom.com",{"$f":"IFERROR(HYPERLINK(_xlfn.XLOOKUP(DeliveryServicesTable[[#This Row],[CSA '#]],CSA,Pricing_Hyperlink),\"Click Here\"),\"\")","v":"Click Here"}]
[null,"Virtual","Three Keys to Great Learning Design (1.5 hours)","Karen Elizabeth Cougler Bloom","CS-001056","Sooke, BC","Beth Cougler Blom,  250-686-0036,  beth@bethcouglerblom.com",{"$f":"IFERROR(HYPERLINK(_xlfn.XLOOKUP(DeliveryServicesTable[[#This Row],[CSA '#]],CSA,Pricing_Hyperlink),\"Click Here\"),\"\")","v":"Click Here"}]
[null,"Virtual","Creating Engaging Online Meetings (1.5 hours)","Karen Elizabeth Cougler Bloom","CS-001056","Sooke, BC","Beth Cougler Blom,  250-686-0036,  beth@bethcouglerblom.com",{"$f":"IFERROR(HYPERLINK(_xlfn.XLOOKUP(DeliveryServicesTable[[#This Row],[CSA '#]],CSA,Pricing_Hyperlink),\"Click Here\"),\"\")","v":"Click Here"}]
[null,"Face to Face or Online","Indigenous Cultural Safety Training:  We deliver learning on Indigenous peoples from Indigenous 101 to the complexity of decolonizing practice and engaging in collaborative work with Indigenous partners. \n\nSee pre-existing courses for an existing list of workshops. We also offer custom-designed faciltiated learning tailored to the needs of organizations. ","Roundtable Consulting Inc, dba  Called to Action Collaborative","CS-001057","Victoria, BC","Sebastian Silva,  250-686-2363,  sebastian@roundtableconsulting.ca",{"$f":"IFERROR(HYPERLINK(_xlfn.XLOOKUP(DeliveryServicesTable[[#This Row],[CSA '#]],CSA,Pricing_Hyperlink),\"Click Here\"),\"\")","v":"Click Here"}]
[null,"Delivery of face to face/virtual training sessions.","Delivery: Delivery of face to face/virtual training sessions. Use of Professional expertise in adult learning to deliver a variety of innovative learning and training activities, techniques and tools. Assesses participants to measure progress against required learning. Use of PowerPoint, Lync and other virtual facilitation technologies.","Eva Camille Van Krugel","CS-001058","Victoria, BC","Eva Van Krugel, 250-580-5643,  eva@livewithfervor.com ",{"$f":"IFERROR(HYPERLINK(_xlfn.XLOOKUP(DeliveryServicesTable[[#This Row],[CSA '#]],CSA,Pricing_Hyperlink),\"Click Here\"),\"\")","v":"Click Here"}]
[null,"Virtual","Inclusion Literacy for Executive & Senior Leadership","Inclusive Excellence Strategy Solutions Inc. ","CS-001087","Vancouver, BC","Alden E. Habacon\nalden@aldenhabacon.com\nHilary Leung\nhilary.leung@iexcellencestrategy.com",{"$f":"IFERROR(HYPERLINK(_xlfn.XLOOKUP(DeliveryServicesTable[[#This Row],[CSA '#]],CSA,Pricing_Hyperlink),\"Click Here\"),\"\")","v":"Click Here"}]
[null,"Virtual","Understanding and Mitigating Unconscious Bias for Executive & Senior Leadership","Inclusive Excellence Strategy Solutions Inc. ","CS-001087","Vancouver, BC","Alden E. Habacon\nalden@aldenhabacon.com\nHilary Leung\nhilary.leung@iexcellencestrategy.com",{"$f":"IFERROR(HYPERLINK(_xlfn.XLOOKUP(DeliveryServicesTable[[#This Row],[CSA '#]],CSA,Pricing_Hyperlink),\"Click Here\"),\"\")","v":"Click Here"}]
[null,"Virtual","Disrupting Unconscious Bias in Recruitment for Executive & Senior Leadership","Inclusive Excellence Strategy Solutions Inc. ","CS-001087","Vancouver, BC","Alden E. Habacon\nalden@aldenhabacon.com\nHilary Leung\nhilary.leung@iexcellencestrategy.com",{"$f":"IFERROR(HYPERLINK(_xlfn.XLOOKUP(DeliveryServicesTable[[#This Row],[CSA '#]],CSA,Pricing_Hyperlink),\"Click Here\"),\"\")","v":"Click Here"}]
[null,"Virtual","Allyship for Executive & Senior Leadership","Inclusive Excellence Strategy Solutions Inc. ","CS-001087","Vancouver, BC","Alden E. Habacon\nalden@aldenhabacon.com\nHilary Leung\nhilary.leung@iexcellencestrategy.com",{"$f":"IFERROR(HYPERLINK(_xlfn.XLOOKUP(DeliveryServicesTable[[#This Row],[CSA '#]],CSA,Pricing_Hyperlink),\"Click Here\"),\"\")","v":"Click Here"}]
[null,"Virtual","Active Bystander Training for Executive & Senior Leadership","Inclusive Excellence Strategy Solutions Inc. ","CS-001087","Vancouver, BC","Alden E. Habacon\nalden@aldenhabacon.com\nHilary Leung\nhilary.leung@iexcellencestrategy.com",{"$f":"IFERROR(HYPERLINK(_xlfn.XLOOKUP(DeliveryServicesTable[[#This Row],[CSA '#]],CSA,Pricing_Hyperlink),\"Click Here\"),\"\")","v":"Click Here"}]
[null,"Virtual","Intercultural Skills Development for Executive & Senior Leadership","Inclusive Excellence Strategy Solutions Inc. ","CS-001087","Vancouver, BC","Alden E. Habacon\nalden@aldenhabacon.com\nHilary Leung\nhilary.leung@iexcellencestrategy.com",{"$f":"IFERROR(HYPERLINK(_xlfn.XLOOKUP(DeliveryServicesTable[[#This Row],[CSA '#]],CSA,Pricing_Hyperlink),\"Click Here\"),\"\")","v":"Click Here"}]
[null,"Virtual","Multiculturalism 3.0","Inclusive Excellence Strategy Solutions Inc. ","CS-001087","Vancouver, BC","Alden E. Habacon\nalden@aldenhabacon.com\nHilary Leung\nhilary.leung@iexcellencestrategy.com",{"$f":"IFERROR(HYPERLINK(_xlfn.XLOOKUP(DeliveryServicesTable[[#This Row],[CSA '#]],CSA,Pricing_Hyperlink),\"Click Here\"),\"\")","v":"Click Here"}]
[null,"Virtual","Listening and Learning Series","Inclusive Excellence Strategy Solutions Inc. ","CS-001087","Vancouver, BC","Alden E. Habacon\nalden@aldenhabacon.com\nHilary Leung\nhilary.leung@iexcellencestrategy.com",{"$f":"IFERROR(HYPERLINK(_xlfn.XLOOKUP(DeliveryServicesTable[[#This Row],[CSA '#]],CSA,Pricing_Hyperlink),\"Click Here\"),\"\")","v":"Click Here"}]
[null,"Virtual","Foundational Conversations about Race and Racism","Inclusive Excellence Strategy Solutions Inc. ","CS-001087","Vancouver, BC","Alden E. Habacon\nalden@aldenhabacon.com\nHilary Leung\nhilary.leung@iexcellencestrategy.com",{"$f":"IFERROR(HYPERLINK(_xlfn.XLOOKUP(DeliveryServicesTable[[#This Row],[CSA '#]],CSA,Pricing_Hyperlink),\"Click Here\"),\"\")","v":"Click Here"}]
[null,"Virtual","Town Halls: Conversations about Race and Racism on the Personal, Procedural, and Structural Level","Inclusive Excellence Strategy Solutions Inc. ","CS-001087","Vancouver, BC","Alden E. Habacon\nalden@aldenhabacon.com\nHilary Leung\nhilary.leung@iexcellencestrategy.com",{"$f":"IFERROR(HYPERLINK(_xlfn.XLOOKUP(DeliveryServicesTable[[#This Row],[CSA '#]],CSA,Pricing_Hyperlink),\"Click Here\"),\"\")","v":"Click Here"}]
[null,"Face to Face","Inclusion Literacy for Executive & Senior Leadership","Inclusive Excellence Strategy Solutions Inc. ","CS-001087","Vancouver, BC","Alden E. Habacon\nalden@aldenhabacon.com\nHilary Leung\nhilary.leung@iexcellencestrategy.com",{"$f":"IFERROR(HYPERLINK(_xlfn.XLOOKUP(DeliveryServicesTable[[#This Row],[CSA '#]],CSA,Pricing_Hyperlink),\"Click Here\"),\"\")","v":"Click Here"}]
[null,"Face to Face","Understanding and Mitigating Unconscious Bias for Executive & Senior Leadership","Inclusive Excellence Strategy Solutions Inc. ","CS-001087","Vancouver, BC","Alden E. Habacon\nalden@aldenhabacon.com\nHilary Leung\nhilary.leung@iexcellencestrategy.com",{"$f":"IFERROR(HYPERLINK(_xlfn.XLOOKUP(DeliveryServicesTable[[#This Row],[CSA '#]],CSA,Pricing_Hyperlink),\"Click Here\"),\"\")","v":"Click Here"}]
[null,"Face to Face","Disrupting Unconscious Bias in Recruitment for Executive & Senior Leadership","Inclusive Excellence Strategy Solutions Inc. ","CS-001087","Vancouver, BC","Alden E. Habacon\nalden@aldenhabacon.com\nHilary Leung\nhilary.leung@iexcellencestrategy.com",{"$f":"IFERROR(HYPERLINK(_xlfn.XLOOKUP(DeliveryServicesTable[[#This Row],[CSA '#]],CSA,Pricing_Hyperlink),\"Click Here\"),\"\")","v":"Click Here"}]
[null,"Face to Face","Allyship for Executive & Senior Leadership","Inclusive Excellence Strategy Solutions Inc. ","CS-001087","Vancouver, BC","Alden E. Habacon\nalden@aldenhabacon.com\nHilary Leung\nhilary.leung@iexcellencestrategy.com",{"$f":"IFERROR(HYPERLINK(_xlfn.XLOOKUP(DeliveryServicesTable[[#This Row],[CSA '#]],CSA,Pricing_Hyperlink),\"Click Here\"),\"\")","v":"Click Here"}]
[null,"Face to Face","Active Bystander Training for Executive & Senior Leadership","Inclusive Excellence Strategy Solutions Inc. ","CS-001087","Vancouver, BC","Alden E. Habacon\nalden@aldenhabacon.com\nHilary Leung\nhilary.leung@iexcellencestrategy.com",{"$f":"IFERROR(HYPERLINK(_xlfn.XLOOKUP(DeliveryServicesTable[[#This Row],[CSA '#]],CSA,Pricing_Hyperlink),\"Click Here\"),\"\")","v":"Click Here"}]
[null,"Face to Face","Intercultural Skills Development for Executive & Senior Leadership","Inclusive Excellence Strategy Solutions Inc. ","CS-001087","Vancouver, BC","Alden E. Habacon\nalden@aldenhabacon.com\nHilary Leung\nhilary.leung@iexcellencestrategy.com",{"$f":"IFERROR(HYPERLINK(_xlfn.XLOOKUP(DeliveryServicesTable[[#This Row],[CSA '#]],CSA,Pricing_Hyperlink),\"Click Here\"),\"\")","v":"Click Here"}]
[null,"Face to Face","Multiculturalism 3.0","Inclusive Excellence Strategy Solutions Inc. ","CS-001087","Vancouver, BC","Alden E. Habacon\nalden@aldenhabacon.com\nHilary Leung\nhilary.leung@iexcellencestrategy.com",{"$f":"IFERROR(HYPERLINK(_xlfn.XLOOKUP(DeliveryServicesTable[[#This Row],[CSA '#]],CSA,Pricing_Hyperlink),\"Click Here\"),\"\")","v":"Click Here"}]
[null,"Face to Face","Listening and Learning Series","Inclusive Excellence Strategy Solutions Inc. ","CS-001087","Vancouver, BC","Alden E. Habacon\nalden@aldenhabacon.com\nHilary Leung\nhilary.leung@iexcellencestrategy.com",{"$f":"IFERROR(HYPERLINK(_xlfn.XLOOKUP(DeliveryServicesTable[[#This Row],[CSA '#]],CSA,Pricing_Hyperlink),\"Click Here\"),\"\")","v":"Click Here"}]
[null,"Face to Face","Foundational Conversations about Race and Racism","Inclusive Excellence Strategy Solutions Inc. ","CS-001087","Vancouver, BC","Alden E. Habacon\nalden@aldenhabacon.com\nHilary Leung\nhilary.leung@iexcellencestrategy.com",{"$f":"IFERROR(HYPERLINK(_xlfn.XLOOKUP(DeliveryServicesTable[[#This Row],[CSA '#]],CSA,Pricing_Hyperlink),\"Click Here\"),\"\")","v":"Click Here"}]
[null,"Face to Face","Town Halls: Conversations about Race and Racism on the Personal, Procedural, and Structural Level","Inclusive Excellence Strategy Solutions Inc. ","CS-001087","Vancouver, BC","Alden E. Habacon\nalden@aldenhabacon.com\nHilary Leung\nhilary.leung@iexcellencestrategy.com",{"$f":"IFERROR(HYPERLINK(_xlfn.XLOOKUP(DeliveryServicesTable[[#This Row],[CSA '#]],CSA,Pricing_Hyperlink),\"Click Here\"),\"\")","v":"Click Here"}]
[null,"Blended Learning","Inclusion Literacy for Executive & Senior Leadership","Inclusive Excellence Strategy Solutions Inc. ","CS-001087","Vancouver, BC","Alden E. Habacon\nalden@aldenhabacon.com\nHilary Leung\nhilary.leung@iexcellencestrategy.com",{"$f":"IFERROR(HYPERLINK(_xlfn.XLOOKUP(DeliveryServicesTable[[#This Row],[CSA '#]],CSA,Pricing_Hyperlink),\"Click Here\"),\"\")","v":"Click Here"}]
[null,"Blended Learning","Understanding and Mitigating Unconscious Bias for Executive & Senior Leadership","Inclusive Excellence Strategy Solutions Inc. ","CS-001087","Vancouver, BC","Alden E. Habacon\nalden@aldenhabacon.com\nHilary Leung\nhilary.leung@iexcellencestrategy.com",{"$f":"IFERROR(HYPERLINK(_xlfn.XLOOKUP(DeliveryServicesTable[[#This Row],[CSA '#]],CSA,Pricing_Hyperlink),\"Click Here\"),\"\")","v":"Click Here"}]
[null,"Blended Learning","Disrupting Unconscious Bias in Recruitment for Executive & Senior Leadership","Inclusive Excellence Strategy Solutions Inc. ","CS-001087","Vancouver, BC","Alden E. Habacon\nalden@aldenhabacon.com\nHilary Leung\nhilary.leung@iexcellencestrategy.com",{"$f":"IFERROR(HYPERLINK(_xlfn.XLOOKUP(DeliveryServicesTable[[#This Row],[CSA '#]],CSA,Pricing_Hyperlink),\"Click Here\"),\"\")","v":"Click Here"}]
[null,"Blended Learning","Allyship for Executive & Senior Leadership","Inclusive Excellence Strategy Solutions Inc. ","CS-001087","Vancouver, BC","Alden E. Habacon\nalden@aldenhabacon.com\nHilary Leung\nhilary.leung@iexcellencestrategy.com",{"$f":"IFERROR(HYPERLINK(_xlfn.XLOOKUP(DeliveryServicesTable[[#This Row],[CSA '#]],CSA,Pricing_Hyperlink),\"Click Here\"),\"\")","v":"Click Here"}]
[null,"Blended Learning","Active Bystander Training for Executive & Senior Leadership","Inclusive Excellence Strategy Solutions Inc. ","CS-001087","Vancouver, BC","Alden E. Habacon\nalden@aldenhabacon.com\nHilary Leung\nhilary.leung@iexcellencestrategy.com",{"$f":"IFERROR(HYPERLINK(_xlfn.XLOOKUP(DeliveryServicesTable[[#This Row],[CSA '#]],CSA,Pricing_Hyperlink),\"Click Here\"),\"\")","v":"Click Here"}]
[null,"Blended Learning","Intercultural Skills Development for Executive & Senior Leadership","Inclusive Excellence Strategy Solutions Inc. ","CS-001087","Vancouver, BC","Alden E. Habacon\nalden@aldenhabacon.com\nHilary Leung\nhilary.leung@iexcellencestrategy.com",{"$f":"IFERROR(HYPERLINK(_xlfn.XLOOKUP(DeliveryServicesTable[[#This Row],[CSA '#]],CSA,Pricing_Hyperlink),\"Click Here\"),\"\")","v":"Click Here"}]
[null,"Blended Learning","Multiculturalism 3.0","Inclusive Excellence Strategy Solutions Inc. ","CS-001087","Vancouver, BC","Alden E. Habacon\nalden@aldenhabacon.com\nHilary Leung\nhilary.leung@iexcellencestrategy.com",{"$f":"IFERROR(HYPERLINK(_xlfn.XLOOKUP(DeliveryServicesTable[[#This Row],[CSA '#]],CSA,Pricing_Hyperlink),\"Click Here\"),\"\")","v":"Click Here"}]
[null,"Blended Learning","Listening and Learning Series","Inclusive Excellence Strategy Solutions Inc. ","CS-001087","Vancouver, BC","Alden E. Habacon\nalden@aldenhabacon.com\nHilary Leung\nhilary.leung@iexcellencestrategy.com",{"$f":"IFERROR(HYPERLINK(_xlfn.XLOOKUP(DeliveryServicesTable[[#This Row],[CSA '#]],CSA,Pricing_Hyperlink),\"Click Here\"),\"\")","v":"Click Here"}]
[null,"Blended Learning","Foundational Conversations about Race and Racism","Inclusive Excellence Strategy Solutions Inc. ","CS-001087","Vancouver, BC","Alden E. Habacon\nalden@aldenhabacon.com\nHilary Leung\nhilary.leung@iexcellencestrategy.com",{"$f":"IFERROR(HYPERLINK(_xlfn.XLOOKUP(DeliveryServicesTable[[#This Row],[CSA '#]],CSA,Pricing_Hyperlink),\"Click Here\"),\"\")","v":"Click Here"}]
[null,"Blended Learning","Town Halls: Conversations about Race and Racism on the Personal, Procedural, and Structural Level","Inclusive Excellence Strategy Solutions Inc. ","CS-001087","Vancouver, BC","Alden E. Habacon\nalden@aldenhabacon.com\nHilary Leung\nhilary.leung@iexcellencestrategy.com",{"$f":"IFERROR(HYPERLINK(_xlfn.XLOOKUP(DeliveryServicesTable[[#This Row],[CSA '#]],CSA,Pricing_Hyperlink),\"Click Here\"),\"\")","v":"Click Here"}]
[null,"Virtual","Inclusion Literacy for Directors, Managers, Supervisors","Inclusive Excellence Strategy Solutions Inc. ","CS-001087","Vancouver, BC","Alden E. Habacon\nalden@aldenhabacon.com\nHilary Leung\nhilary.leung@iexcellencestrategy.com",{"$f":"IFERROR(HYPERLINK(_xlfn.XLOOKUP(DeliveryServicesTable[[#This Row],[CSA '#]],CSA,Pricing_Hyperlink),\"Click Here\"),\"\")","v":"Click Here"}]
[null,"Virtual","Understanding and Mitigating Unconscious Bias for Executive & Senior Leadership","Inclusive Excellence Strategy Solutions Inc. ","CS-001087","Vancouver, BC","Alden E. Habacon\nalden@aldenhabacon.com\nHilary Leung\nhilary.leung@iexcellencestrategy.com",{"$f":"IFERROR(HYPERLINK(_xlfn.XLOOKUP(DeliveryServicesTable[[#This Row],[CSA '#]],CSA,Pricing_Hyperlink),\"Click Here\"),\"\")","v":"Click Here"}]
[null,"Virtual","Disrupting Unconscious Bias in Recruitment for Executive & Senior Leadership","Inclusive Excellence Strategy Solutions Inc. ","CS-001087","Vancouver, BC","Alden E. Habacon\nalden@aldenhabacon.com\nHilary Leung\nhilary.leung@iexcellencestrategy.com",{"$f":"IFERROR(HYPERLINK(_xlfn.XLOOKUP(DeliveryServicesTable[[#This Row],[CSA '#]],CSA,Pricing_Hyperlink),\"Click Here\"),\"\")","v":"Click Here"}]
[null,"Virtual","Allyship for Executive & Senior Leadership","Inclusive Excellence Strategy Solutions Inc. ","CS-001087","Vancouver, BC","Alden E. Habacon\nalden@aldenhabacon.com\nHilary Leung\nhilary.leung@iexcellencestrategy.com",{"$f":"IFERROR(HYPERLINK(_xlfn.XLOOKUP(DeliveryServicesTable[[#This Row],[CSA '#]],CSA,Pricing_Hyperlink),\"Click Here\"),\"\")","v":"Click Here"}]
[null,"Virtual","Active Bystander Training for Executive & Senior Leadership","Inclusive Excellence Strategy Solutions Inc. ","CS-001087","Vancouver, BC","Alden E. Habacon\nalden@aldenhabacon.com\nHilary Leung\nhilary.leung@iexcellencestrategy.com",{"$f":"IFERROR(HYPERLINK(_xlfn.XLOOKUP(DeliveryServicesTable[[#This Row],[CSA '#]],CSA,Pricing_Hyperlink),\"Click Here\"),\"\")","v":"Click Here"}]
[null,"Virtual","Intercultural Skills Development for Executive & Senior Leadership","Inclusive Excellence Strategy Solutions Inc. ","CS-001087","Vancouver, BC","Alden E. Habacon\nalden@aldenhabacon.com\nHilary Leung\nhilary.leung@iexcellencestrategy.com",{"$f":"IFERROR(HYPERLINK(_xlfn.XLOOKUP(DeliveryServicesTable[[#This Row],[CSA '#]],CSA,Pricing_Hyperlink),\"Click Here\"),\"\")","v":"Click Here"}]
[null,"Virtual","Multiculturalism 3.0","Inclusive Excellence Strategy Solutions Inc. ","CS-001087","Vancouver, BC","Alden E. Habacon\nalden@aldenhabacon.com\nHilary Leung\nhilary.leung@iexcellencestrategy.com",{"$f":"IFERROR(HYPERLINK(_xlfn.XLOOKUP(DeliveryServicesTable[[#This Row],[CSA '#]],CSA,Pricing_Hyperlink),\"Click Here\"),\"\")","v":"Click Here"}]
[null,"Virtual","Listening and Learning Series","Inclusive Excellence Strategy Solutions Inc. ","CS-001087","Vancouver, BC","Alden E. Habacon\nalden@aldenhabacon.com\nHilary Leung\nhilary.leung@iexcellencestrategy.com",{"$f":"IFERROR(HYPERLINK(_xlfn.XLOOKUP(DeliveryServicesTable[[#This Row],[CSA '#]],CSA,Pricing_Hyperlink),\"Click Here\"),\"\")","v":"Click Here"}]
[null,"Virtual","Foundational Conversations about Race and Racism","Inclusive Excellence Strategy Solutions Inc. ","CS-001087","Vancouver, BC","Alden E. Habacon\nalden@aldenhabacon.com\nHilary Leung\nhilary.leung@iexcellencestrategy.com",{"$f":"IFERROR(HYPERLINK(_xlfn.XLOOKUP(DeliveryServicesTable[[#This Row],[CSA '#]],CSA,Pricing_Hyperlink),\"Click Here\"),\"\")","v":"Click Here"}]
[null,"Virtual","Town Halls: Conversations about Race and Racism on the Personal, Procedural, and Structural Level","Inclusive Excellence Strategy Solutions Inc. ","CS-001087","Vancouver, BC","Alden E. Habacon\nalden@aldenhabacon.com\nHilary Leung\nhilary.leung@iexcellencestrategy.com",{"$f":"IFERROR(HYPERLINK(_xlfn.XLOOKUP(DeliveryServicesTable[[#This Row],[CSA '#]],CSA,Pricing_Hyperlink),\"Click Here\"),\"\")","v":"Click Here"}]
[null,"Face to Face","Inclusion Literacy for Directors, Managers, Supervisors","Inclusive Excellence Strategy Solutions Inc. ","CS-001087","Vancouver, BC","Alden E. Habacon\nalden@aldenhabacon.com\nHilary Leung\nhilary.leung@iexcellencestrategy.com",{"$f":"IFERROR(HYPERLINK(_xlfn.XLOOKUP(DeliveryServicesTable[[#This Row],[CSA '#]],CSA,Pricing_Hyperlink),\"Click Here\"),\"\")","v":"Click Here"}]
[null,"Face to Face","Understanding and Mitigating Unconscious Bias for Executive & Senior Leadership","Inclusive Excellence Strategy Solutions Inc. ","CS-001087","Vancouver, BC","Alden E. Habacon\nalden@aldenhabacon.com\nHilary Leung\nhilary.leung@iexcellencestrategy.com",{"$f":"IFERROR(HYPERLINK(_xlfn.XLOOKUP(DeliveryServicesTable[[#This Row],[CSA '#]],CSA,Pricing_Hyperlink),\"Click Here\"),\"\")","v":"Click Here"}]
[null,"Face to Face","Disrupting Unconscious Bias in Recruitment for Executive & Senior Leadership","Inclusive Excellence Strategy Solutions Inc. ","CS-001087","Vancouver, BC","Alden E. Habacon\nalden@aldenhabacon.com\nHilary Leung\nhilary.leung@iexcellencestrategy.com",{"$f":"IFERROR(HYPERLINK(_xlfn.XLOOKUP(DeliveryServicesTable[[#This Row],[CSA '#]],CSA,Pricing_Hyperlink),\"Click Here\"),\"\")","v":"Click Here"}]
[null,"Face to Face","Allyship for Executive & Senior Leadership","Inclusive Excellence Strategy Solutions Inc. ","CS-001087","Vancouver, BC","Alden E. Habacon\nalden@aldenhabacon.com\nHilary Leung\nhilary.leung@iexcellencestrategy.com",{"$f":"IFERROR(HYPERLINK(_xlfn.XLOOKUP(DeliveryServicesTable[[#This Row],[CSA '#]],CSA,Pricing_Hyperlink),\"Click Here\"),\"\")","v":"Click Here"}]
[null,"Face to Face","Active Bystander Training for Executive & Senior Leadership","Inclusive Excellence Strategy Solutions Inc. ","CS-001087","Vancouver, BC","Alden E. Habacon\nalden@aldenhabacon.com\nHilary Leung\nhilary.leung@iexcellencestrategy.com",{"$f":"IFERROR(HYPERLINK(_xlfn.XLOOKUP(DeliveryServicesTable[[#This Row],[CSA '#]],CSA,Pricing_Hyperlink),\"Click Here\"),\"\")","v":"Click Here"}]
[null,"Face to Face","Intercultural Skills Development for Executive & Senior Leadership","Inclusive Excellence Strategy Solutions Inc. ","CS-001087","Vancouver, BC","Alden E. Habacon\nalden@aldenhabacon.com\nHilary Leung\nhilary.leung@iexcellencestrategy.com",{"$f":"IFERROR(HYPERLINK(_xlfn.XLOOKUP(DeliveryServicesTable[[#This Row],[CSA '#]],CSA,Pricing_Hyperlink),\"Click Here\"),\"\")","v":"Click Here"}]
[null,"Face to Face","Multiculturalism 3.0","Inclusive Excellence Strategy Solutions Inc. ","CS-001087","Vancouver, BC","Alden E. Habacon\nalden@aldenhabacon.com\nHilary Leung\nhilary.leung@iexcellencestrategy.com",{"$f":"IFERROR(HYPERLINK(_xlfn.XLOOKUP(DeliveryServicesTable[[#This Row],[CSA '#]],CSA,Pricing_Hyperlink),\"Click Here\"),\"\")","v":"Click Here"}]
[null,"Face to Face","Listening and Learning Series","Inclusive Excellence Strategy Solutions Inc. ","CS-001087","Vancouver, BC","Alden E. Habacon\nalden@aldenhabacon.com\nHilary Leung\nhilary.leung@iexcellencestrategy.com",{"$f":"IFERROR(HYPERLINK(_xlfn.XLOOKUP(DeliveryServicesTable[[#This Row],[CSA '#]],CSA,Pricing_Hyperlink),\"Click Here\"),\"\")","v":"Click Here"}]
[null,"Face to Face","Foundational Conversations about Race and Racism","Inclusive Excellence Strategy Solutions Inc. ","CS-001087","Vancouver, BC","Alden E. Habacon\nalden@aldenhabacon.com\nHilary Leung\nhilary.leung@iexcellencestrategy.com",{"$f":"IFERROR(HYPERLINK(_xlfn.XLOOKUP(DeliveryServicesTable[[#This Row],[CSA '#]],CSA,Pricing_Hyperlink),\"Click Here\"),\"\")","v":"Click Here"}]
[null,"Face to Face","Town Halls: Conversations about Race and Racism on the Personal, Procedural, and Structural Level","Inclusive Excellence Strategy Solutions Inc. ","CS-001087","Vancouver, BC","Alden E. Habacon\nalden@aldenhabacon.com\nHilary Leung\nhilary.leung@iexcellencestrategy.com",{"$f":"IFERROR(HYPERLINK(_xlfn.XLOOKUP(DeliveryServicesTable[[#This Row],[CSA '#]],CSA,Pricing_Hyperlink),\"Click Here\"),\"\")","v":"Click Here"}]
[null,"Blended Learning","Inclusion Literacy for Directors, Managers, Supervisors","Inclusive Excellence Strategy Solutions Inc. ","CS-001087","Vancouver, BC","Alden E. Habacon\nalden@aldenhabacon.com\nHilary Leung\nhilary.leung@iexcellencestrategy.com",{"$f":"IFERROR(HYPERLINK(_xlfn.XLOOKUP(DeliveryServicesTable[[#This Row],[CSA '#]],CSA,Pricing_Hyperlink),\"Click Here\"),\"\")","v":"Click Here"}]
[null,"Blended Learning","Understanding and Mitigating Unconscious Bias for Executive & Senior Leadership","Inclusive Excellence Strategy Solutions Inc. ","CS-001087","Vancouver, BC","Alden E. Habacon\nalden@aldenhabacon.com\nHilary Leung\nhilary.leung@iexcellencestrategy.com",{"$f":"IFERROR(HYPERLINK(_xlfn.XLOOKUP(DeliveryServicesTable[[#This Row],[CSA '#]],CSA,Pricing_Hyperlink),\"Click Here\"),\"\")","v":"Click Here"}]
[null,"Blended Learning","Disrupting Unconscious Bias in Recruitment for Executive & Senior Leadership","Inclusive Excellence Strategy Solutions Inc. ","CS-001087","Vancouver, BC","Alden E. Habacon\nalden@aldenhabacon.com\nHilary Leung\nhilary.leung@iexcellencestrategy.com",{"$f":"IFERROR(HYPERLINK(_xlfn.XLOOKUP(DeliveryServicesTable[[#This Row],[CSA '#]],CSA,Pricing_Hyperlink),\"Click Here\"),\"\")","v":"Click Here"}]
[null,"Blended Learning","Allyship for Executive & Senior Leadership","Inclusive Excellence Strategy Solutions Inc. ","CS-001087","Vancouver, BC","Alden E. Habacon\nalden@aldenhabacon.com\nHilary Leung\nhilary.leung@iexcellencestrategy.com",{"$f":"IFERROR(HYPERLINK(_xlfn.XLOOKUP(DeliveryServicesTable[[#This Row],[CSA '#]],CSA,Pricing_Hyperlink),\"Click Here\"),\"\")","v":"Click Here"}]
[null,"Blended Learning","Active Bystander Training for Executive & Senior Leadership","Inclusive Excellence Strategy Solutions Inc. ","CS-001087","Vancouver, BC","Alden E. Habacon\nalden@aldenhabacon.com\nHilary Leung\nhilary.leung@iexcellencestrategy.com",{"$f":"IFERROR(HYPERLINK(_xlfn.XLOOKUP(DeliveryServicesTable[[#This Row],[CSA '#]],CSA,Pricing_Hyperlink),\"Click Here\"),\"\")","v":"Click Here"}]
[null,"Blended Learning","Intercultural Skills Development for Executive & Senior Leadership","Inclusive Excellence Strategy Solutions Inc. ","CS-001087","Vancouver, BC","Alden E. Habacon\nalden@aldenhabacon.com\nHilary Leung\nhilary.leung@iexcellencestrategy.com",{"$f":"IFERROR(HYPERLINK(_xlfn.XLOOKUP(DeliveryServicesTable[[#This Row],[CSA '#]],CSA,Pricing_Hyperlink),\"Click Here\"),\"\")","v":"Click Here"}]
[null,"Blended Learning","Multiculturalism 3.0","Inclusive Excellence Strategy Solutions Inc. ","CS-001087","Vancouver, BC","Alden E. Habacon\nalden@aldenhabacon.com\nHilary Leung\nhilary.leung@iexcellencestrategy.com",{"$f":"IFERROR(HYPERLINK(_xlfn.XLOOKUP(DeliveryServicesTable[[#This Row],[CSA '#]],CSA,Pricing_Hyperlink),\"Click Here\"),\"\")","v":"Click Here"}]
[null,"Blended Learning","Listening and Learning Series","Inclusive Excellence Strategy Solutions Inc. ","CS-001087","Vancouver, BC","Alden E. Habacon\nalden@aldenhabacon.com\nHilary Leung\nhilary.leung@iexcellencestrategy.com",{"$f":"IFERROR(HYPERLINK(_xlfn.XLOOKUP(DeliveryServicesTable[[#This Row],[CSA '#]],CSA,Pricing_Hyperlink),\"Click Here\"),\"\")","v":"Click Here"}]
[null,"Blended Learning","Foundational Conversations about Race and Racism","Inclusive Excellence Strategy Solutions Inc. ","CS-001087","Vancouver, BC","Alden E. Habacon\nalden@aldenhabacon.com\nHilary Leung\nhilary.leung@iexcellencestrategy.com",{"$f":"IFERROR(HYPERLINK(_xlfn.XLOOKUP(DeliveryServicesTable[[#This Row],[CSA '#]],CSA,Pricing_Hyperlink),\"Click Here\"),\"\")","v":"Click Here"}]
[null,"Blended Learning","Town Halls: Conversations about Race and Racism on the Personal, Procedural, and Structural Level","Inclusive Excellence Strategy Solutions Inc. ","CS-001087","Vancouver, BC","Alden E. Habacon\nalden@aldenhabacon.com\nHilary Leung\nhilary.leung@iexcellencestrategy.com",{"$f":"IFERROR(HYPERLINK(_xlfn.XLOOKUP(DeliveryServicesTable[[#This Row],[CSA '#]],CSA,Pricing_Hyperlink),\"Click Here\"),\"\")","v":"Click Here"}]
[null,"Blended Learning","Executive Readiness and Team Alignment Training (for New Executive Teams)","Inclusive Excellence Strategy Solutions Inc. ","CS-001087","Vancouver, BC","Alden E. Habacon\nalden@aldenhabacon.com\nHilary Leung\nhilary.leung@iexcellencestrategy.com",{"$f":"IFERROR(HYPERLINK(_xlfn.XLOOKUP(DeliveryServicesTable[[#This Row],[CSA '#]],CSA,Pricing_Hyperlink),\"Click Here\"),\"\")","v":"Click Here"}]
[null,"Face to Face","Allyship Training for Operations Managers","Inclusive Excellence Strategy Solutions Inc. ","CS-001087","Vancouver, BC","Alden E. Habacon\nalden@aldenhabacon.com\nHilary Leung\nhilary.leung@iexcellencestrategy.com",{"$f":"IFERROR(HYPERLINK(_xlfn.XLOOKUP(DeliveryServicesTable[[#This Row],[CSA '#]],CSA,Pricing_Hyperlink),\"Click Here\"),\"\")","v":"Click Here"}]

{"sheet":"Data - DO NOT DELETE","index":1,"n_rows":75,"n_cols":3,"rows_kept":75,"cut":false,"hidden":false,"merged":[]}
[]
[null,"CSA Hyperlinks"]
[]
[null,"CSA #","Pricing Hyperlink"]
[null,"CS-000821","https://citz.sp.gov.bc.ca/sites/Shared/Program/CSA/_layouts/15/WopiFrame.aspx?sourcedoc={4887FB7B-4C88-41B8-8A34-A5FC419D2FB6}&file=CS-000821_Arete%20Safety%20and%20Protection%20Inc..xlsx&action=default"]
[null,"CS-000822","https://citz.sp.gov.bc.ca/sites/Shared/Program/CSA/_layouts/15/WopiFrame.aspx?sourcedoc={FC5E16B9-41D0-4946-878C-F9FE1CC77C15}&file=CS-000822_Good%20Insights%20Strategy.xlsx&action=default"]
[null,"CS-000823","https://citz.sp.gov.bc.ca/sites/Shared/Program/CSA/_layouts/15/WopiFrame.aspx?sourcedoc={2683C6DF-02CF-464E-84EE-8F93802B3E37}&file=CS-000823_ICOM%20PRODUCTIONS.xlsx&action=default"]
[null,"CS-000824","https://citz.sp.gov.bc.ca/sites/Shared/Program/CSA/_layouts/15/WopiFrame.aspx?sourcedoc={69BF36F5-A820-4AE2-B6C6-A01875D4CF26}&file=CS-000824_Pathwise%20Solutions.xlsx&action=default"]
[null,"CS-000825","https://citz.sp.gov.bc.ca/sites/Shared/Program/CSA/_layouts/15/WopiFrame.aspx?sourcedoc=%7bC9574DF2-EEB7-4086-A992-3577442E0C7A%7d&file=CS-000825_(Spark%2BCo).xlsx&action=default"]
[null,"CS-000826","https://citz.sp.gov.bc.ca/sites/Shared/Program/CSA/_layouts/15/WopiFrame.aspx?sourcedoc={8C74364D-AD69-49CE-9EBE-78CCBD2FFB53}&file=CS-000826_Binnie.xlsx&action=default"]
[null,"CS-000827","https://citz.sp.gov.bc.ca/sites/Shared/Program/CSA/Confidential_CSA_Pricing_Information/Learning_and_development_services/cs-000827_pricing_linda_dobson.pdf"]
[null,"CS-000828","https://citz.sp.gov.bc.ca/sites/Shared/Program/CSA/Confidential_CSA_Pricing_Information/Learning_and_development_services/cs-000828_pricing_inspiricity_consulting.pdf"]
[null,"CS-000829","https://citz.sp.gov.bc.ca/sites/Shared/Program/CSA/_layouts/15/WopiFrame.aspx?sourcedoc={1EFBC03E-BA7E-49EE-9288-3355F2F749E7}&file=CS-000829_Global%20Knowledge.xlsx&action=default"]
[null,"CS-000831","https://citz.sp.gov.bc.ca/sites/Shared/Program/CSA/_layouts/15/WopiFrame.aspx?sourcedoc=%7b785247F8-221C-492D-8616-5AEBD2D2345B%7d&file=CS-000831_Berlin,%20Eaton%20%26%20Associates%20Ltd..xlsx&action=default"]
[null,"CS-000832","https://citz.sp.gov.bc.ca/sites/Shared/Program/CSA/_layouts/15/WopiFrame.aspx?sourcedoc=%7b8F791294-29D9-4D47-A36E-2026C8A3FE12%7d&file=CS-000832_Lucent%20Quay%20Consulting%20Inc..xlsx&action=default"]
[null,"CS-000835","https://citz.sp.gov.bc.ca/sites/Shared/Program/CSA/Confidential_CSA_Pricing_Information/Learning_and_development_services/cs-000835_pricing_ethos_career_management_group.pdf"]
[null,"CS-000837","https://citz.sp.gov.bc.ca/sites/Shared/Program/CSA/_layouts/15/DocIdRedir.aspx?ID=KFARFDVUS2V6-2407278-721"]
[null,"CS-000838","https://citz.sp.gov.bc.ca/sites/Shared/Program/CSA/_layouts/15/DocIdRedir.aspx?ID=KFARFDVUS2V6-2407278-722"]
[null,"CS-000840","https://citz.sp.gov.bc.ca/sites/Shared/Program/CSA/_layouts/15/DocIdRedir.aspx?ID=KFARFDVUS2V6-2407278-723"]
[null,"CS-000841","https://citz.sp.gov.bc.ca/sites/Shared/Program/CSA/_layouts/15/DocIdRedir.aspx?ID=KFARFDVUS2V6-2407278-724"]
[null,"CS-000842","https://citz.sp.gov.bc.ca/sites/Shared/Program/CSA/_layouts/15/DocIdRedir.aspx?ID=KFARFDVUS2V6-2407278-725"]
[null,"CS-000843","https://citz.sp.gov.bc.ca/sites/Shared/Program/CSA/_layouts/15/WopiFrame.aspx?sourcedoc=%7bBA97A8AF-AAEE-4B4C-AAB2-D93235290848%7d&file=CS-000843_Patricia%20Kathryn%20Galaczy.xlsx&action=default"]
[null,"CS-000844","https://citz.sp.gov.bc.ca/sites/Shared/Program/CSA/_layouts/15/WopiFrame.aspx?sourcedoc={1F2C1428-DC63-4E83-843A-289A6261ED10}&file=CS-000844_Joyanne%20Landers.xlsx&action=default"]
[null,"CS-000845","https://citz.sp.gov.bc.ca/sites/Shared/Program/CSA/_layouts/15/WopiFrame.aspx?sourcedoc={3DBA3E54-D6A8-4F3D-ADD5-1FCB745452DB}&file=CS-000845_NECI%20dba%20the%20procurement%20school.xlsx&action=default"]
[null,"CS-000846","https://citz.sp.gov.bc.ca/sites/Shared/Program/CSA/_layouts/15/DocIdRedir.aspx?ID=KFARFDVUS2V6-2407278-745"]
[null,"CS-000847","https://citz.sp.gov.bc.ca/sites/Shared/Program/CSA/_layouts/15/DocIdRedir.aspx?ID=KFARFDVUS2V6-2407278-728"]
[null,"CS-000848","https://citz.sp.gov.bc.ca/sites/Shared/Program/CSA/_layouts/15/DocIdRedir.aspx?ID=KFARFDVUS2V6-2407278-729"]
[null,"CS-000850","https://citz.sp.gov.bc.ca/sites/Shared/Program/CSA/_layouts/15/DocIdRedir.aspx?ID=KFARFDVUS2V6-2407278-730"]
[null,"CS-000851","https://citz.sp.gov.bc.ca/sites/Shared/Program/CSA/_layouts/15/DocIdRedir.aspx?ID=KFARFDVUS2V6-2407278-731"]
[null,"CS-000852","https://citz.sp.gov.bc.ca/sites/Shared/Program/CSA/_layouts/15/WopiFrame.aspx?sourcedoc={46973DEF-604C-4E33-BFC5-7E727340CDA6}&file=CS-000852_TaylorMade%20Learning%20Solutions%20Inc..xlsx&action=default"]
[null,"CS-000854","https://citz.sp.gov.bc.ca/sites/Shared/Program/CSA/_layouts/15/DocIdRedir.aspx?ID=KFARFDVUS2V6-2407278-733"]
[null,"CS-000855","https://citz.sp.gov.bc.ca/sites/Shared/Program/CSA/Confidential_CSA_Pricing_Information/Learning_and_development_services/cs-000855_pricing_carr_kline_associates.pdf"]
[null,"CS-000856","https://citz.sp.gov.bc.ca/sites/Shared/Program/CSA/_layouts/15/DocIdRedir.aspx?ID=KFARFDVUS2V6-2407278-734"]
[null,"CS-000857","https://citz.sp.gov.bc.ca/sites/Shared/Program/CSA/_layouts/15/DocIdRedir.aspx?ID=KFARFDVUS2V6-2407278-735"]
[null,"CS-000860","https://citz.sp.gov.bc.ca/sites/Shared/Program/CSA/_layouts/15/DocIdRedir.aspx?ID=KFARFDVUS2V6-2407278-736"]
[null,"CS-000861","https://citz.sp.gov.bc.ca/sites/Shared/Program/CSA/_layouts/15/DocIdRedir.aspx?ID=KFARFDVUS2V6-2407278-737"]
[null,"CS-000862","https://citz.sp.gov.bc.ca/sites/Shared/Program/CSA/Confidential_CSA_Pricing_Information/Learning_and_development_services/cs-000862_pricing_burns_associates.pdf"]
[null,"CS-000863","https://citz.sp.gov.bc.ca/sites/Shared/Program/CSA/_layouts/15/DocIdRedir.aspx?ID=KFARFDVUS2V6-2407278-738"]
[null,"CS-000864","https://citz.sp.gov.bc.ca/sites/Shared/Program/CSA/_layouts/15/DocIdRedir.aspx?ID=KFARFDVUS2V6-2407278-739"]
[null,"CS-000865","https://citz.sp.gov.bc.ca/sites/Shared/Program/CSA/_layouts/15/DocIdRedir.aspx?ID=KFARFDVUS2V6-2407278-740"]
[null,"CS-000869","https://citz.sp.gov.bc.ca/sites/Shared/Program/CSA/_layouts/15/DocIdRedir.aspx?ID=KFARFDVUS2V6-2407278-741"]
[null,"CS-000874","https://citz.sp.gov.bc.ca/sites/Shared/Program/CSA/_layouts/15/DocIdRedir.aspx?ID=KFARFDVUS2V6-2407278-742"]
[null,"CS-000875","https://citz.sp.gov.bc.ca/sites/Shared/Program/CSA/_layouts/15/WopiFrame.aspx?sourcedoc={C79ED12D-CA5F-4D4E-8DCA-5EC2C652244A}&file=CS-000875_Limestone%20Learning%20Inc..xlsx&action=default"]
[null,"CS-000876","https://citz.sp.gov.bc.ca/sites/Shared/Program/CSA/_layouts/15/WopiFrame.aspx?sourcedoc={46973DEF-604C-4E33-BFC5-7E727340CDA6}&file=CS-000852_TaylorMade%20Learning%20Solutions%20Inc..xlsx&action=default"]
[null,"CS-000910","https://citz.sp.gov.bc.ca/sites/Shared/Program/CSA/_layouts/15/WopiFrame.aspx?sourcedoc={C79ED12D-CA5F-4D4E-8DCA-5EC2C652244A}&file=CS-000875_Limestone%20Learning%20Inc..xlsx&action=default"]
[null,"CS-000911","https://citz.sp.gov.bc.ca/sites/Shared/Program/CSA/_layouts/15/WopiFrame.aspx?sourcedoc={3EFE3F73-9AE9-4053-9C4B-0FD0762AD67D}&file=cs-000911_pricing_pathways.xlsx&action=default"]
[null,"CS-000912","https://citz.sp.gov.bc.ca/sites/Shared/Program/CSA/_layouts/15/WopiFrame.aspx?sourcedoc={DD4BFB70-ADEE-4697-BCFC-55BDAC8476B2}&file=cs-000912_pricing_hille.xlsx&action=default"]
[null,"CS-000913","https://citz.sp.gov.bc.ca/sites/Shared/Program/CSA/_layouts/15/WopiFrame.aspx?sourcedoc={A44469E0-FA5A-4CC7-8BBD-4E2C8D7B2033}&file=CS-000913_Patwell%20Consulting.xlsx&action=default"]
[null,"CS-000914","https://citz.sp.gov.bc.ca/sites/Shared/Program/CSA/_layouts/15/WopiFrame.aspx?sourcedoc={C79ED12D-CA5F-4D4E-8DCA-5EC2C652244A}&file=CS-000875_Limestone%20Learning%20Inc..xlsx&action=default"]
[null,"CS-000915","https://citz.sp.gov.bc.ca/sites/Shared/Program/CSA/_layouts/15/WopiFrame.aspx?sourcedoc={D6378CAD-F627-49B4-8011-D31234C89F8B}&file=CS-000915_Alluvial%20Management%20Consulting%20Inc..xlsx&action=default"]
[null,"CS-000917","https://citz.sp.gov.bc.ca/sites/Shared/Program/CSA/_layouts/15/WopiFrame.aspx?sourcedoc={F9556DE8-7EB2-4A27-BB24-E24C3F8E91F4}&file=CS-000917_Indigenous%20Perspectives%20Society.xlsx&action=default"]
[null,"CS-000918","https://citz.sp.gov.bc.ca/sites/Shared/Program/CSA/_layouts/15/WopiFrame.aspx?sourcedoc={D6054BD3-665D-4569-BDA9-62BE2F1F8071}&file=CS-000918_Camosun.xlsx&action=default"]
[null,"CS-000919","https://citz.sp.gov.bc.ca/sites/Shared/Program/CSA/_layouts/15/DocIdRedir.aspx?ID=KFARFDVUS2V6-2407278-777"]
[null,"CS-000921","https://citz.sp.gov.bc.ca/sites/Shared/Program/CSA/_layouts/15/WopiFrame.aspx?sourcedoc={7C584717-559E-4B04-B1AB-1DD81B5C2B1D}&file=CS-000921_Leslie%20Robinson.xlsx&action=default"]
[null,"CS-000922","https://citz.sp.gov.bc.ca/sites/Shared/Program/CSA/_layouts/15/WopiFrame.aspx?sourcedoc={B96DF624-2D0F-49EA-A1E3-27546FF1BD85}&file=cs-000922_pricing_mindscopes.xlsx&action=default"]
[null,"CS-001038","https://citz.sp.gov.bc.ca/sites/Shared/Program/CSA/_layouts/15/WopiFrame.aspx?sourcedoc={E6384A8A-1C94-4647-9C1A-7B85C1236532}&file=CS-001038_EDLS.xlsx&action=default"]
[null,"CS-001039","https://citz.sp.gov.bc.ca/sites/Shared/Program/CSA/_layouts/15/WopiFrame.aspx?sourcedoc={D16D1A9D-0301-4ADE-9F13-A92F94DABFBB}&file=CS-001039_Carolyn%20Oliver.xlsx&action=default"]
[null,"CS-001040","https://citz.sp.gov.bc.ca/sites/Shared/Program/CSA/_layouts/15/WopiFrame.aspx?sourcedoc={BB1351B0-CA9B-45BA-9F25-399C0190FFF1}&file=CS-001040_CSPN_Customer%20Service%20Professional%20Network.xlsx&action=default"]
[null,"CS-001041","https://citz.sp.gov.bc.ca/sites/Shared/Program/CSA/_layouts/15/WopiFrame.aspx?sourcedoc={F8DC7DF2-DE50-4777-8A97-2F47CDA4332D}&file=CS-001041_Simon%20Fraser%20University.xlsx&action=default"]
[null,"CS-001043","https://citz.sp.gov.bc.ca/sites/Shared/Program/CSA/_layouts/15/DocIdRedir.aspx?ID=KFARFDVUS2V6-2407278-774"]
[null,"CS-001044","https://citz.sp.gov.bc.ca/sites/Shared/Program/CSA/_layouts/15/DocIdRedir.aspx?ID=KFARFDVUS2V6-2407278-775"]
[null,"CS-001045","https://citz.sp.gov.bc.ca/sites/Shared/Program/CSA/_layouts/15/WopiFrame.aspx?sourcedoc={6237B2EE-1115-47CD-B7FB-5719D2E15B3F}&file=CS-001045_The%20Indigenous%20Reconciliation%20Group.xlsx&action=default"]
[null,"CS-001047","https://citz.sp.gov.bc.ca/sites/Shared/Program/CSA/_layouts/15/DocIdRedir.aspx?ID=KFARFDVUS2V6-2407278-760"]
[null,"CS-001048","https://citz.sp.gov.bc.ca/sites/Shared/Program/CSA/_layouts/15/WopiFrame.aspx?sourcedoc={D20A8540-D912-45A6-896C-FA83146821E1}&file=CS-001048_McCoppin%20Enterprises.xlsx&action=default"]
[null,"CS-001049","https://citz.sp.gov.bc.ca/sites/Shared/Program/CSA/_layouts/15/WopiFrame.aspx?sourcedoc={12DCBC1E-E609-43D8-B91A-5B66289F4A52}&file=CS-001049_Busch%20Procurement%20Advisory%20Services.xlsx&action=default"]
[null,"CS-001050","https://citz.sp.gov.bc.ca/sites/Shared/Program/CSA/_layouts/15/DocIdRedir.aspx?ID=KFARFDVUS2V6-2407278-763"]
[null,"CS-001051","https://citz.sp.gov.bc.ca/sites/Shared/Program/CSA/_layouts/15/WopiFrame.aspx?sourcedoc={6835414E-C643-4A89-99B3-8A580A83693F}&file=CS-001051_RefinedworldConsultingInc.xlsx&action=default"]
[null,"CS-001052","https://citz.sp.gov.bc.ca/sites/Shared/Program/CSA/_layouts/15/WopiFrame.aspx?sourcedoc={FF027209-8A68-4FF4-A5F4-E60AE97CFCDA}&file=CS-001052_Arrive%20Consulting.xlsx&action=default"]
[null,"CS-001053","https://citz.sp.gov.bc.ca/sites/Shared/Program/CSA/_layouts/15/DocIdRedir.aspx?ID=KFARFDVUS2V6-2407278-766"]
[null,"CS-001054","https://citz.sp.gov.bc.ca/sites/Shared/Program/CSA/_layouts/15/WopiFrame.aspx?sourcedoc={13AC0C37-CA7A-4041-B5E2-839DAE470A2C}&file=CS-001054_Lucero%20Business%20Consulting%20Inc..xlsx&action=default"]
[null,"CS-001055","https://citz.sp.gov.bc.ca/sites/Shared/Program/CSA/_layouts/15/DocIdRedir.aspx?ID=KFARFDVUS2V6-2407278-776"]
[null,"CS-001056","https://citz.sp.gov.bc.ca/sites/Shared/Program/CSA/_layouts/15/WopiFrame.aspx?sourcedoc={838A38B8-1A2C-4ADB-B913-610A4D3096D5}&file=CS-001056_Beth%20Couglar%20Blom%20Facilitation.xlsx&action=default"]
[null,"CS-001057","https://citz.sp.gov.bc.ca/sites/Shared/Program/CSA/_layouts/15/WopiFrame.aspx?sourcedoc={D9874E66-69BF-4F7E-A781-40E13C2A647A}&file=CS-001057_Called%20To%20Action%20Collaborative%20-%20Roundtable.xlsx&action=default"]
[null,"CS-001058","https://citz.sp.gov.bc.ca/sites/Shared/Program/CSA/_layouts/15/WopiFrame.aspx?sourcedoc={9999CEA5-B6F9-4A05-8B81-015560D3670C}&file=CS-001058_Eva%20Van%20Krugel_Fervor%20Leadership.xlsx&action=default"]
[null,"CS-001087","https://citz.sp.gov.bc.ca/sites/Shared/Program/CSA/_layouts/15/WopiFrame.aspx?sourcedoc={C23FFEDF-2710-4046-8793-5F5B69154228}&file=CS-001087_Inclusive%20Excellence%20Strategy.xlsx&action=default"]